Workbook

Sheet Summary
A1: Blue cells contain Section Headings
A2: Rose cells contain questions that need to be answered to fill out calculator.
A3: Grey cells contain units requested for entry.
A4: Yellow cells indicate user entry fields.
A5: Green cells contain additional explanations and resource links.
A6: Maroon cells contain summary values.
A7: Action Agency Reference #
A8: FWS or NMFS #
A9: Project Name
A10: Prepared on and by:
A11: Puget Sound Nearshore Conservation Calculator
D12: Version: | E12: 2021-03-10
A13: This calculator estimates conservation points for the Puget Sound nearshore.
C14: Conservation Credits/Debits | D14: DSAYs | E14: Notes
A15: Overwater Structures | B15: Debit | C15: ='Overwater Structures'!F37+'Overwater Structures'!F73 -> 0 | D15: =C15/100 -> 0
B16: Credit | C16: ='Overwater Structures'!F120 -> 0 | D16: 0 | E16: Includes credits from creosote removal
B17: Balance | C17: =SUM(C15:C16) -> 0 | D17: 0
A18: Shoreline Armoring | B18: Debit | C18: ='ShorelStab '!C20+'ShorelStab '!C21 -> 0 | D18: 0
B19: Credit from Armor Removal | C19: ='ShorelStab '!C35 -> 0 | D19: 0
B20: Credit from Creosote Removal | C20: ='ShorelStab '!C38 -> 0 | D20: 0
B21: Balance | C21: =C18+C19+C20 -> 0 | D21: 0
A22: Maintenance Dredging | B22: Balance | C22: =MDredging!E10 -> 0 | D22: 0
A23: Boatramps, Jetties, Rubble | B23: Debit | C23: ='BoatR, Jetty'!F27+'BoatR, Jetty'!F52 -> 0 | D23: 0
B24: Credit | C24: ='BoatR, Jetty'!F74 -> 0 | D24: =C24/100 -> 0
B25: Balance | C25: =C23+C24 -> 0 | D25: =C25/100 -> 0
A26: Beach Nourishment | B26: Credit | C26: ='Beach N'!D6 -> 0 | D26: =C26/100 -> 0
A27: Riparian Enhancement/Degradation | B27: Conservation Points | C27: =RZ!C40 -> 0 | D27: 0
A28: Total Points | C28: =C27+C26+C25+C22+C21+C17 -> 0 | D28: =C28/100 -> 0

Sheet ProjectD
A1: We included the project details tab to encourage users to detail the metrics needed to fill out the calculator worksheets here.
A2: Record where you found the relevant information (JARPA, BE, other)
A3: If you have to perform calculations like determining the average elevation of the toe of hard armoring, explain details here.

Sheet RZ
A1: Impact and Benefit Determination for the Riparian Zone
A2: The Riparian Zone encompassess the area within 40 meters (130 feet) of HAT. There may be locations in which woody vegetation growth extends below HAT, especially in areas with stabilized shorelines. In those locations, the area where woody vegetation is planted for mitigation may be entered in this tab, including any areas below HAT.
A3: You do not need to fill out this tab if your project has no impacts/benefits to riparian areas.
A4: Riparian enhancements can be evaluated with the RZ tab/worksheet regardless of location as long as they are located within the same marine basin as the impact site.
A5: A General Project Factors
E6: Notes
A7: Duration | B7: Are the project impacts permanent? | C7: Yes/No | D7: No | E7: If project impacts or benefits are not permanent make sure to select NO.
B8: If temporary enter years of project impact. | C8: Temp Impact Years | D8: 40 | E8: Enter the number of years the project will exist if other than permanent (leave blank if permanent). Usually a site protection mechanism is needed to receive credit for riparian plantings.
B9: Add time delay between impact and vegetation restoration in number of years. | D9: 1 | E9: Enter 0 for impacts and restoration within same year. Enter 2 for a 2 year delay between impact and restoration.
A10: Habitat Evaluation
E11: Before | G11: After | I11: Version: 03/10/2021
A12: # | B12: Indicator of Physical Habitat Question | D12: Riparian Habitat Value | E12: Area [sqft] | F12: Habitat Value times discounting factors | G12: Area [sqft] | H12: Habitat Value times discounting factors | I12: Time till fully functioning for restoration | J12: Elements of Nearshore Marine PCEs addressed | K12: Notes
A13: Enter how many square feet of each cover type as described below under 1a to 1d is present before and after. For example, if there are 1000 SF of shrubs before and 1000 SF of impervious after enter 1000 in E 22 and 1000 in G 24.
A14: 1a | B14: TREES: How many sqft of the riparian area that will be improved or degraded within 130 feet landward of HAT along length of shoreline action area are vegetated with trees: native woody vegetation. | D14: 0.55 | E14: 0 | F14: =D14*F21*$F$19*$F$20 -> 0.275 | G14: 0 | H14: =D14*H21*$H$19*$H$20 -> 0.275 | I14: 20 | J14: F, C | K14: For a restored area to count as tree cover the performance standard is: Minimum of 90% tree canopy cover with shrubs in understory at 20 years.
A15: 1b | B15: SHRUBS: How many sqft of the riparian area that will be improved or degraded within 130 feet landward of HAT along length of shoreline action area are vegetated with shrubs, native woody vegetation. | D15: 0.4 | E15: 0 | F15: =D15*F21*$F$19*$F$20 -> 0.2 | G15: 0 | H15: =D15*H21*$H$19*$H$20 -> 0.2 | I15: 10 | J15: F, C
A16: 1c | B16: HERBACEOUS VEG: How many sqft of the riparian area that will be improved or degraded within 130 ft width along length of shoreline action area are vegetated with lawn, herbaceous vegetation, or invasive vegetation? Include all invasive vegetation in this category, regardless of type/size. | D16: 0.1 | E16: 0 | F16: =D16*F21*$F$19*$F$20 -> 0.05 | G16: 0 | H16: =D16*H21*$H$19*$H$20 -> 0.05 | I16: 1 | J16: F, C | K16: How Habitat Values and Discount Factors were scaled: A shrub at 49 ft from the water should provide more value to fish (allochtonous input) than grass. Most of the 0.1 habitat value for grass is attributed to infiltration and WQ function.
A17: 1d | B17: IMPERVIOUS SURFACE/UNVEGETATED: How many sqft of the riparian area that will be improved or degraded within 130 feet landward of HAT along length of shoreline action area are covered with mostly impervious surface like pavers, gravel, concrete, wood deck? | D17: 0 | E17: 0 | F17: No discounting factors apply as value already 0. | G17: 0 | H17: No discounting factors apply as value already 0. | I17: 1 | J17: F, C
B18: Discounting Factors | D18: Answer Fromat | E18: Discount Factors related to Distance & Connectivity
A19: 1 | B19: Distance of riparian vegetation from the shoreline, bulkhead or HAT for natural shoreline. For example, if a row of trees is within 130 ft landward of HAT, but behind 10 feet of lawn with the lawn adjacent to the water, enter distance, 10 ft, in ft. Use half of the drip line to determine this distance. | D19: 0 ft to 130 ft | E19: 0 | F19: =1-D37/129.5*E19 -> 1 | G19: 0 | H19: =1-D37/129.5*G19 -> 1
A20: 2 | B20: Do structures between vegetation and shoreline reduce connectivity and function of native woody vegetation? Enter % [1-100] of area that is disconnected before and after project. If 100 % of considered area is disconnected/shielded from shoreline by buildings like a boat shed, enter 100. | D20: 0 to 100 percent | E20: 0 | F20: =1-D38*E20/100 -> 1 | G20: 0 | H20: =1-D38*G20/100 -> 1 | K20: develop bins
B21: Is riparian vegetation disconnected from upper intertidal via armoring? | E21: Yes | F21: =IF(E21="no",1,0.5) -> 0.5 | G21: Yes | H21: =IF(G21="no",1,0.5) -> 0.5 | I21: Discount factor for when riparian vegetation is disconnected by hard shoreline armoring like bulkheads and riprap from the USZ. When the woody riparian vegetation is disconnected from the USZ its ability to provide shade, food, and cover is diminuished.
A22: Total affected riparin area [sqft]. Square footage before and after needs to be the same. | C22: =IF(E22=G22,"","Check entries!! Make sure affected area is the same before and after planting/impact.") ->  | E22: =E14+E15+E16+E17+0.000000001 -> 1e-09 | F22: =(F14*E14+F15*E15+F16*E16+E17*D17)/E22 -> 0 | G22: =G14+G15+G16+G17+0.000000001 -> 1e-09 | H22: =(H14*G14+H15*G15+H16*G16+G17*D17)/G22 -> 0 | I22: =(I14*G14+I15*G15+I16*G16+I17*G17)/G22 -> 0 | J22: Area weighted average over different vegetation types for time untill new vegetation would fully function.
A23: Total affected riparin area [acres] | E23: =E22*0.000022956841139 -> 2.295684114e-14 | F23: Weighted Average Habitat Value Before | H23: Weighted Average Habitat Value After
A24: C. Site Specific Credit/Debit Factors
A25: Credit factors apply to the entire elevation polygon, they do not reflect a before after change. They are a function of site inherint conditions.
D26: Enter Yes/No | F26: Notes
A27: Is the project located within 5 miles of a Puget Sound Chinook natal estuary zone or within 1 mile of a Hood Canal summer-chum estuary zone? | D27: No | E27: =IF(AND(D27="Yes",D29="yes"),0.9,IF(AND(D27="yes",D29="no"),0.5,0)) -> 0 | F27: Reference: Application of Credit Factors
A28: Puget Sound Natal & Pocket Estuaries | F28: Projects located within a natal Chinook or Hood Canal summer chum estuary zone owe/receive 50% more debits/credits. If the action is located within a pocket estuary within a natal estuary zone, a combined 90% more debits/credits apply.
A29: Is the project is located within a pocket estuary/embayment? | D29: No | E29: =IF(AND(D29="yes",D27="no"),0.3,0) -> 0 | F29: Reference: Explanation of Pocket Estuaries and Embayments
A30: Puget Sound Natal & Pocket Estuaries | F30: Projects located within a pocket estuary or embayment owe/receive 30% more conservation debits/credits. If the pocket estuary is within a natal Chinook or Hood Canal summer chum estuary zone, 40% more debits/credits apply.
A31: Is there observed (as mapped or determined by WDFW) sand lance or surf smelt spawning on the project site? | D31: No | E31: =IF(D31="Yes",0.5,0) -> 0 | F31: In areas with forage fish spawning, 50% more conservation debits/credits apply.
A32: WDFW Forage Fish Spawning Map
A33: Is the project located at a feeder bluff? | D33: No | E33: =IF(D33="Yes",0.5,0) -> 0 | F33: For changes to vegetation conditions at feeder bluffs, 50% more conservation credits/debits apply.
A34: Coastal Atlas Map
A35: Summary Credit/Debit Factor | E35: =(1+E31+E29)*(1+E27+E33) -> 1 | F35: Increases in credits are based on special habitat and site conditions. Some credits are multiplied others added depending on underlying biological relationships.
A37: Discount if vegetation is planted 130 feet away from water | D37: 0.7 | E37: If vegetation is planted 130 feet from the shoreline (bulkhead or HAT) the habitat value of this vegetation is 30 percent of that immediately adjacent to the shoreline.
A38: Discount if vegetation is 100% disconnected from shoreline by vertical structures like boat houses. | D38: 0.9 | E38: If vegetation is 100% disconnected by structures like boat houses from shoreline, 10% of its value remains via some food/insects still reaching the water and infiltration of rainwater.
A39: DSAYs for USZ | C39: ='RZ HEA'!E4*E35 -> 0
A40: Conservation Points | C40: =C39*100 -> 0

Sheet Overwater Structures
A1: Impact and Benefit Determination for Overwater Structure Elements
A2: To expand an entry block for data entry click on the + sign on the left. Clicking the 2 will expand all entry blocks. | E2: Version: | F2: 2021-03-10
A3: Entry Block I: Overwater structure Entry for New or Expansion Overwater Structure Elements
A4: Enter new overwater structure elements in this entry block and all areas that are considered expansions with replacements. Enter replacement overwater structure elements in Entry block II below.
A5: SAV | B5: Must enter vegetation scenario for LSZ | C5: Enter LSZ SAV scenario 0-3 | E5: 0 | F5: Reference: LSZ SAV Scenarios | G5: Addition of USZ vegetation scenarios planned for next version
B6: Description | C6: OWS Element | D6: Units | E6: Quantity | F6: Total Conservation Debits | G6: Notes and Examples
A7: Pier and Ramp to be Installed | B7: Enter dimensions of elevated pier and ramp in respective shore zone. If a pier has partial grating, enter dimensions of grated and ungrated portions into respective fields. Enter central portions of piers wider than 40 feet as floats as there is little side lighting in such structures. | C7: Pier & Ramp USZ fully grated | D7: SqFt | E7: 0 | F7: =E7*'OWS Lookup Tables'!F14*2 -> 0 | G7: To account for the dark center on wide decks, enter the deck area within 20 feet from the edge as pier, and enter the deck area more than 20 feet from the edge as a float. See Figure below. FYI: Forage fish credit factors do not apply to piers and ramps. Figure by Lee Corum (USFWS)
C8: Pier & Ramp USZ solid | D8: SqFt | E8: 0 | F8: =E8*'OWS Lookup Tables'!F15*2 -> 0
C9: Pier & Ramp LSZ fully grated | D9: SqFt | E9: 0 | F9: =E9*LOOKUP(E5,'OWS Lookup Tables'!M3:M6,'OWS Lookup Tables'!F3:F6)*2 -> 0
C10: Pier & Ramp LSZ solid | D10: SqFt | E10: 0 | F10: =E10*LOOKUP(E5,'OWS Lookup Tables'!M7:M10,'OWS Lookup Tables'!F7:F10)*2 -> 0
C11: Pier & Ramp DZ fully grated | D11: SqFt | E11: 0 | F11: =E11*'OWS Lookup Tables'!F16*2 -> 0
B12: Reference: Delineation of Shore Zones | C12: Pier & Ramp DZ solid | D12: SqFt | E12: 0 | F12: =E12*'OWS Lookup Tables'!F17*2 -> 0
A13: Piles | B13: Piles can be steel, concrete, plastic, untreated wood or, outside of DNR land, ACZA-treated and urea coated piles. Installation of creosote wood is not included. Use pile calculator below to determine average pile diameter. | C13: Enter number of piles in USZ | E13: 0 | F13: =((POWER(((E14/2)/12),2)*PI())*E13*'OWS Lookup Tables'!F62)*(1+E80)*2 -> 0
C14: Enter average diameter of piles in USZ. | D14: [inches] | E14: 0
C15: Enter number of piles in LSZ | E15: 0 | F15: =((POWER(((E16/2)/12),2)*PI())*E15*LOOKUP(E5,'OWS Lookup Tables'!M62:M65,'OWS Lookup Tables'!F62:F65))*(1+E82)*2 -> 0
C16: Enter average diameter of piles in LSZ. | D16: [inches] | E16: 0
C17: Enter number of piles in DZ | E17: 0 | F17: =(POWER(((E18/2)/12),2)*PI())*E17*'OWS Lookup Tables'!F66*2 -> 0
C18: Enter average diameter of piles in DZ. | D18: [inches] | E18: 0
A19: Grated Float to be Installed | B19: Enter the outside dimensions of new floats with at least 50% grating and 60% or more open space as grated floats (Compliant with WAC 220-660-280). For simplicity and as we expect floats to meet state regulations, grated floats are not split between grated and ungrated portions. For complex floats, enter the longest outside dimensions of the float. See Example Complex Float 1. | C19: USZ Outside dimensions of new float or expanded portion of float. | D19: Length [feet] | E19: 0 | F19: Enter length and width of floats for buffer determination. Lenth is the longer dimension. For complex floats, enter the sum of the length of each float and the average width of the floats. Set length and width to 0 for zones where no structure present.
D20: Width [feet] | E20: 0
C21: LSZ Outside dimensions of new float or expanded portion of float. | D21: Length [feet] | E21: 0
D22: Width [feet] | E22: 0
C23: DZ Outside dimensions of new float or expanded portion of float. | D23: Length [feet] | E23: 0
D24: Width [feet] | E24: 0 | F24: Reference: Complex Floats | G24: Buffer Area
B25: The area of the float in each respective shore zone is calculated from length and width entered above. For complex floats, the user should directly enter the square footage of the float in the appropriate zone. BMP: Floats should not be located in the USZ and cannot ground out. | C25: Grated Float USZ | D25: SqFt | E25: =E19*E20 -> 0 | F25: =(E25*'OWS Lookup Tables'!F22+G25*'OWS Lookup Tables'!F23)*(1+E80)*2 -> 0 | G25: =(E19*2+E20)*10 -> 0 | H25: For complex floats the calculated SqFt will not match the actual SqFt. Enter SqFt manually in column E.
C26: Grated Float LSZ | D26: SqFt | E26: =E21*E22 -> 0 | F26: =(E26*LOOKUP(E5,'OWS Lookup Tables'!M25:M28,'OWS Lookup Tables'!F25:F28)+G26*LOOKUP(E5,'OWS Lookup Tables'!M29:M32,'OWS Lookup Tables'!F29:F32))*(1+E82)*2 -> 0 | G26: =(E21*2+E22)*10 -> 0
C27: Grated Float DZ | D27: SqFt | E27: =E23*E24 -> 0 | F27: =(E27*'OWS Lookup Tables'!F34+G27*'OWS Lookup Tables'!F35)*2 -> 0 | G27: =(E23*2+E24)*10 -> 0 | H27: Floats in the DZ in herring spawning & holding areas may have herring factor applied.
A28: Solid Float to be Installed | B28: Solid float have higher adverse effects on the nearshore environment compared to grated floats. We highly encourage applicants to grate overwater structures as much as possible. Because of the higher impacts from solid floats compared to grated floats, resulting conservation debits are higher. Enter the length and width of the float in the appropriate shore zone (see Table 2). For complex floats, enter longest outside dimensions of float. See Example Complex Float 1. | C28: USZ Outside dimensions of new float or expanded portion of float. | D28: Length [feet] | E28: 0 | F28: Enter length and width of floats for buffer determination. For complex floats, enter the sum of the length of each float and the average width of the floats. Set length and width to 0 for zones where no structure present.
D29: Width [feet] | E29: 0
C30: LSZ Outside dimensions of new float or expanded portion of float. | D30: Length [feet] | E30: 0
D31: Width [feet] | E31: 0
C32: DZ Outside dimensions of new float or expanded portion of float. | D32: Length [feet] | E32: 0
D33: Width [feet] | E33: 0 | F33: Reference: Complex Floats | G33: Buffer Area
B34: The area of a new float is calculated by shore zone from the length and width entered above. For irregularly shaped floats, enter the square footage of the float in the appropriate zone (see Notes for more information on irregularly shaped floats). BMP: Floats should not be located in the USZ and cannot ground out. | C34: Solid Float USZ | D34: SqFt | E34: =(E28*E29) -> 0 | F34: =(E34*'OWS Lookup Tables'!F38+G34*'OWS Lookup Tables'!F39)*(1+E80)*2 -> 0 | G34: =(E28*2+E29)*10 -> 0 | H34: For complex floats the calculated SqFt will not match the actual SqFt. Enter SqFt manually in column E.
C35: Solid Float LSZ | D35: SqFt | E35: =E30*E31 -> 0 | F35: =(E35*LOOKUP(E5,'OWS Lookup Tables'!M41:M44,'OWS Lookup Tables'!F41:F44)+G35*LOOKUP(E5,'OWS Lookup Tables'!M45:M48,'OWS Lookup Tables'!F45:F48))*(E82+1)*2 -> 0 | G35: =(E30*2+E31)*10 -> 0
C36: Solid Float DZ | D36: SqFt | E36: =E32*E33 -> 0 | F36: =(E36*'OWS Lookup Tables'!F50+G36*'OWS Lookup Tables'!F51)*2 -> 0 | G36: =(E32*2+E33)*10 -> 0 | H36: Floats in the DZ in herring spawning & holding areas may have herring factor applied.
A37: Sub-Total: Conservation Debits Owed for New Structure Elements | F37: =SUM(F7:F36)*(1+E76+E78) -> 0
A38: Reference: Delineation of Shore Zones
A39: Entry Block II: Overwater Entry Block for Repair and Replacement of Overwater Structure Elements
A40: Enter replacement and repair of overwater structure elements in this entry block. Enter areas that are considered expansions of the to be replaced structure in Entry Block I above.
A41: SAV | B41: Must enter vegetation scenario for LSZ | C41: Enter SAV scenario 0-3 | E41: 1 | F41: Reference: LSZ SAV Scenarios
B42: Description | C42: OWS Element | D42: Units | E42: Quantity | F42: Conservation Debits | G42: Notes and Examples
A43: Pier and ramp to be Installed | B43: Enter dimensions of elevated pier and ramp in respective shore zone. If a pier has partial grating, enter dimensions of grated and ungrated portions into respective fields. Enter central portions of piers wider than 40 feet as floats as there is little side lighting in such structures. | C43: Pier & Ramp USZ fully grated | D43: SqFt | E43: 0 | F43: =E43*'OWS Lookup Tables'!F14 -> 0 | G43: To account for the dark center on wide decks, enter the deck area within 20 feet from the edge as pier, and enter the deck area more than 20 feet from the edge as a float. See Figure below. FYI: Forage fish credit factors do not apply to piers and ramps. Figure by Lee
C44: Pier & Ramp USZ solid | D44: SqFt | E44: 0 | F44: =E44*'OWS Lookup Tables'!F15 -> 0
C45: Pier & Ramp LSZ fully grated | D45: SqFt | E45: 0 | F45: =E45*LOOKUP(E41,'OWS Lookup Tables'!M3:M6,'OWS Lookup Tables'!F3:F6) -> 0
C46: Pier & Ramp LSZ solid | D46: SqFt | E46: 0 | F46: =E46*LOOKUP(E41,'OWS Lookup Tables'!M7:M10,'OWS Lookup Tables'!F7:F10) -> 0
C47: Pier & Ramp DZ fully grated | D47: SqFt | E47: 0 | F47: =E47*'OWS Lookup Tables'!F16 -> 0
B48: Reference: Delineation of Shore Zones | C48: Pier & Ramp DZ solid | D48: SqFt | E48: 0 | F48: =E48*'OWS Lookup Tables'!F17 -> 0
A49: Piles | B49: Piles can be steel, concrete, plastic, untreated wood or, outside of DNR land, ACZA-treated and urea coated piles. Installation of creosote wood is not included. Use pile calculator below to determine average pile diameter. | C49: Enter number of piles in USZ | E49: 0 | F49: =((POWER(((E50/2)/12),2)*PI())*E49*'OWS Lookup Tables'!F62)*(1+E80) -> 0
C50: Enter average diameter of piles in USZ. | D50: [inches] | E50: 0
C51: Enter number of piles in LSZ | E51: 0 | F51: =((POWER(((E52/2)/12),2)*PI())*E51*LOOKUP(E5,'OWS Lookup Tables'!M62:M66,'OWS Lookup Tables'!F62:F66))*(1+E82) -> 0
C52: Enter average diameter of piles in LSZ. | D52: [inches] | E52: 0
C53: Enter number of piles in DZ | E53: 0 | F53: =((POWER(((E54/2)/12),2)*PI())*E53*'OWS Lookup Tables'!F66) -> 0
C54: Enter average diameter of piles in DZ. | D54: [inches] | E54: 0
A55: Grated Float to be Installed | B55: Enter the outside dimensions of replacement floats with at least 50% grating and 60% or more open space as grated floats (Compliant with WAC 220-660-280). For simplicity and as we expect floats to meet state regulations, grated floats are not split between grated and ungrated portions. For complex floats, enter the longest outside dimensions of the float. See Example Complex Float 1. | C55: USZ Outside dimensions of replacement float. | D55: Length [feet] | E55: 0 | F55: Enter length and width of floats for buffer determination. For complex floats, enter the sum of the length of each float and the average width of the floats. Set length and width to 0 for zones where no structure present.
D56: Width [feet] | E56: 0
C57: LSZ Outside dimensions of replacement float. | D57: Length [feet] | E57: 0
D58: Width [feet] | E58: 0
C59: DZ Outside dimensions of replacement float. | D59: Length [feet] | E59: 0
D60: Width [feet] | E60: 0 | F60: Reference: Complex Floats | G60: Buffer Area
B61: The area of the float in each respective shore zone is calculated from length and width entered above. For irregularly shaped floats, user should directly enter the square footage of the float in the appropriate zone (see Notes for more information on irregularly shaped floats). BMP: Floats should not be located in the USZ and cannot ground out. | C61: Grated Float USZ | D61: SqFt | E61: =(E55*E56) -> 0 | F61: =(E61*'OWS Lookup Tables'!F22+G61*'OWS Lookup Tables'!F23)*(1+E80) -> 0 | G61: =(E55*2+E56)*10 -> 0 | H61: For complex floats the calculated SqFt will not match the actual SqFt. Enter SqFt manually in column E.
C62: Grated Float LSZ | D62: SqFt | E62: =E57*E58 -> 0 | F62: =(E62*LOOKUP(E41,'OWS Lookup Tables'!M25:M28,'OWS Lookup Tables'!F25:F28)+G62*LOOKUP(E41,'OWS Lookup Tables'!M29:M32,'OWS Lookup Tables'!F29:F32))*(1+E82) -> 0 | G62: =(E57*2+E58)*10 -> 0
C63: Grated Float DZ | D63: SqFt | E63: =(E59*E60) -> 0 | F63: =E63*'OWS Lookup Tables'!F34+G63*'OWS Lookup Tables'!F35 -> 0 | G63: =(E59*2+E60)*10 -> 0 | H63: Floats in the DZ in herring spawning & holding areas may have herring factor applied.
A64: Solid Float to be Installed | B64: Solid float have higher adverse effects on the nearshore environment compared to grated floats. We highly encourage applicants to grate overwater structures as much as possible. Because of the higher impacts from solid floats compared to grated floats, resulting conservation debits are higher. Enter the length and width of the float in the appropriate shore zone (see Table 2). For complex floats, enter longest outside dimensions of float. See Example Complex Float 1 | C64: USZ Outside dimensions of new float or expanded portion of float. | D64: Length [feet] | E64: 0 | F64: Enter length and width of floats for buffer determination. For complex floats, enter the sum of the length of each float and average width of floats. Set length and width to 0 for zones where no structure present.
D65: Width [feet] | E65: 0
C66: LSZ Outside dimensions of new float or expanded portion of float. | D66: Length [feet] | E66: 0
D67: Width [feet] | E67: 0
C68: DZ Outside dimensions of new float or expanded portion of float. | D68: Length [feet] | E68: 0
D69: Width [feet] | E69: 0 | F69: Reference: Complex Floats | G69: Buffer Area
B70: The area of a float is calculated by shore zone from the length and width entered above. For irregularly shaped floats, enter the square footage of the float in the appropriate zone (see Notes for more information on irregularly shaped floats). BMP: Floats should not be located in the USZ and cannot ground out. | C70: Solid Float USZ | D70: SqFt | E70: =(E64*E65) -> 0 | F70: =(E70*'OWS Lookup Tables'!F38+G70*'OWS Lookup Tables'!F39)*(1+E80) -> 0 | G70: =(E64*2+E65)*10 -> 0 | H70: For complex floats the calculated SqFt will not match the actual SqFt. Enter SqFt manually in column E.
C71: Solid Float LSZ | D71: SqFt | E71: =E66*E67 -> 0 | F71: =(E71*LOOKUP(E5,'OWS Lookup Tables'!M41:M44,'OWS Lookup Tables'!F41:F44)+G71*LOOKUP(E5,'OWS Lookup Tables'!M45:M48,'OWS Lookup Tables'!F45:F48))*(1+E82) -> 0 | G71: =(E66*2+E67)*10 -> 0
C72: Solid Float DZ | D72: SqFt | E72: =(E68*E69) -> 0 | F72: =E72*'OWS Lookup Tables'!F50+G72*'OWS Lookup Tables'!F51 -> 0 | G72: =(E68*2+E69)*10 -> 0 | H72: Floats in the DZ in herring spawning & holding areas may have herring factor applied.
A73: Sub-Total: Conservation Debits Owed for Replacement Structure Elements | F73: =SUM(F43:F72)*(1+E76+E78) -> 0
A74: Debit Factors associated with Installation of OWS
B75: Site Specific Debit Factors for OWS Installation | D75: Percent more credit | F75: Notes and Examples
A76: For new, expansion, or replacement projects | B76: Is the project located within 5 miles of a Puget Sound Chinook natal estuary zone or within 1 mile of a Hood Canal summer-chum estuary zone? | D76: No | E76: =IF(AND(D76="Yes",D78="yes"),0.9,IF(AND(D76="yes",D78="no"),0.5,0)) -> 0 | F76: Reference: Application of Credit Factors
B77: Puget Sound Natal & Pocket Estuaries | F77: Projects located within a natal Chinook or HC summer chum estuary zone will owe 50% more debits. If a project is in a pocket estuary and within a natal Chinook or HC summer chum estuary zone, a combined 90% more debits apply.
B78: Is the project is located within a pocket estuary/embayment? | D78: No | E78: =IF(AND(D78="yes",D76="no"),0.3,0) -> 0 | F78: Projects located within a pocket estuary/embayment owe 30% more conservation debits. If the pocket estuary is within 5 miles of a natal Chinook estuary, 40% more debits apply.
B79: Puget Sound Natal & Pocket Estuaries
B80: Is there observed (as mapped or determined by WDFW) sand lance or surf smelt spawning on the project site? | D80: No | E80: =IF(D80="Yes",0.5,0) -> 0 | F80: In areas with forage fish spawning, 50% more conservation debits apply to forage fish affecting action elements.
B81: WDFW Forage Fish Spawning Map
B82: Is there herring spawning on the project site? | D82: No | E82: =IF(D82="Yes",0.5,0) -> 0 | F82: In areas with forage fish spawning, 50% more conservation debits apply to forage fish affecting action elements.
B83: WDFW Forage Fish Spawning Map
A84: Entry Block III: Overwater Entry Block for Removal, Removal as Part of Replacements, and Repair of Overwater Structure Elements
A85: Determine benefits from both structures to be removed as part of replacements or from structures in close proximity to be removed as mitigation for new structures.
A86: SAV | B86: Must enter vegetation scenario for LSZ | C86: Enter SAV scenario 0-3 | E86: 0 | F86: Reference: LSZ SAV Scenarios
B87: Description | C87: OWS Element | D87: Units | E87: Quantity | F87: Conservation Credits for removal of Existing Structures | G87: Notes and Examples
A88: Pier and Ramp to be Removed | B88: Enter dimensions of elevated pier and ramp in respective shore zone. If a pier has partial grating, enter dimensions of grated and ungrated portions into respective fields. Enter central portions of piers wider than 40 feet as floats as there is little side lighting in such structures. | C88: Pier & Ramp USZ fully grated | D88: SqFt | E88: 0 | F88: =-E88*'OWS Lookup Tables'!I14 -> 0 | G88: To account for the dark center on wide decks, enter the deck area within 20 feet from the edge as pier, and enter the deck area more than 20 feet from the edge as a float. See Figure below. FYI: Forage fish credit factors do not apply to piers and ramps.
C89: Pier & Ramp USZ solid | D89: SqFt | E89: 0 | F89: =-E89*'OWS Lookup Tables'!I15 -> 0
C90: Pier & Ramp LSZ fully grated | D90: SqFt | E90: 0 | F90: =-E90*LOOKUP(E86,'OWS Lookup Tables'!M3:M6,'OWS Lookup Tables'!I3:I6) -> 0
C91: Pier & Ramp LSZ solid | D91: SqFt | E91: 0 | F91: =-E91*LOOKUP(E86,'OWS Lookup Tables'!M7:M10,'OWS Lookup Tables'!I7:I10) -> 0
C92: Pier & Ramp DZ fully grated | D92: SqFt | E92: 0 | F92: =-E92*'OWS Lookup Tables'!I16 -> 0
B93: Reference: Delineation of Shore Zones | C93: Pier & Ramp DZ solid | D93: SqFt | E93: 0 | F93: =-E93*'OWS Lookup Tables'!I17 -> 0
A94: Piles to be removed | B94: Include all piles to be removed including creosote. The amount of creosote is credited separately below. Use pile calculator below to determine average pile diameter. | C94: Enter number of piles in USZ | E94: 0 | F94: =-(POWER(((E95/2)/12),2)*PI())*E94*'OWS Lookup Tables'!I62*(1+E127) -> 0
C95: Enter average diameter of piles in USZ. | D95: [inches] | E95: 0
C96: Enter number of piles in LSZ | E96: 0 | F96: =-((POWER(((E97/2)/12),2)*PI())*E96*LOOKUP(E86,'OWS Lookup Tables'!M62:M65,'OWS Lookup Tables'!I62:I65))*(1+E129) -> 0
C97: Enter average diameter of piles in LSZ. | D97: [inches] | E97: 0
C98: Enter number of piles in DZ | E98: 0 | F98: =-((POWER(((E99/2)/12),2)*PI())*E98*'OWS Lookup Tables'!I66) -> 0
C99: Enter average diameter of piles in DZ. | D99: [inches] | E99: 0
A100: Creosote Removal | B100: Creosote removal: Enter tons of creosote to be removed including all in- and over water creosote between HAT and -30 meters. Usually a 70-ft long 12-inch average diameter pile weighs about 1 ton. A volume calculator is provided below. | C100: Tons of Creosote to be removed in USZ | D100: Total in tons | E100: 0 | F100: =E100*1.8*(IF(E123=0,1,(1+E123*0.4)))*(IF(E125=0,1,(1+E125*0.4)))*(IF(E127=0,1,(1+E127*0.4))) -> 0 | G100: Benefit duration for creosote removal is 100 years. Absent removal of piles, we assume that derelict piles on average break off after 40 years. Thus site specific credit factors apply for 40 years, only.
C101: Tons of Creosote to be removed in LSZ & DZ | D101: Total in tons | E101: 0 | F101: =E101*1.8*(IF(E123=0,1,(1+E123*0.4)))*(IF(E125=0,1,(1+E125*0.4)))*(IF(E129=0,1,(1+E129*0.4))) -> 0
A102: Grated Float to be Removed | B102: Enter the outside dimensions of to be removed or replaced floats with at least 50% grating and 60% or more open space as grated floats (Compliant with WAC 220-660-280). Grated floats are not split between grated and ungrated portions. For complex floats, enter the longest outside dimensions of the float. See Example Complex Float 1. | C102: USZ Outside dimensions of float area | D102: Length [feet] | E102: 0 | F102: Set length and width to 0 for zones where no structure present.
D103: Width [feet] | E103: 0
C104: LSZ Outside dimensions of float area. | D104: Length [feet] | E104: 0
D105: Width [feet] | E105: 0
C106: DZ Outside dimensions of float area. | D106: Length [feet] | E106: 0
D107: Width [feet] | E107: 0 | G107: Buffer Area
B108: The area of a float in each shore zone is calculated from the length and width entered above. For irregularly shaped floats, enter the square footage of the float directly in the appropriate zone. BMP: Floats should not be located in the USZ and cannot ground out. | C108: Grated Float USZ | D108: SqFt | E108: =(E102*E103) -> 0 | F108: =-(E108*'OWS Lookup Tables'!I22+G108*'OWS Lookup Tables'!I23)*(1+E127) -> 0 | G108: =(E102*2+E103)*10 -> 0 | H108: For complex floats the calculated SqFt will not match the actual SqFt. Enter SqFt manually in column E.
C109: Grated Float LSZ | D109: SqFt | E109: =(E104*E105) -> 0 | F109: =-(E109*LOOKUP(E86,'OWS Lookup Tables'!M25:M28,'OWS Lookup Tables'!I25:I28)+G109*LOOKUP(E86,'OWS Lookup Tables'!M29:M32,'OWS Lookup Tables'!I29:I32))*(1+E129) -> 0 | G109: =(E104*2+E105)*10 -> 0
C110: Grated Float DZ | D110: SqFt | E110: =(E106*E107) -> 0 | F110: =-(E110*'OWS Lookup Tables'!I34+G110*'OWS Lookup Tables'!I35) -> 0 | G110: =(E106*2+E107)*10 -> 0 | H110: Floats in herring spawning and holding areas may have herring spawning factor applied.
A111: Solid Float to be Removed | B111: Enter the length and width of the to be removed or replaced float in the appropriate zone. For complex floats, enter the longest outside dimensions of the float. See Example Complex Float 1 | C111: USZ Outside dimensions of solid float. | D111: Length [feet] | E111: 0 | F111: Set length and width to 0 for zones where no structure present. | G111: Enter length and width of floats for buffer determination. For complex floats, used sum of length of each float and average width of floats .
D112: Width [feet] | E112: 0
C113: LSZ Outside dimensions of solid float | D113: Length [feet] | E113: 0
D114: Width [feet] | E114: 0
C115: DZ Outside dimensions of solid float | D115: Length [feet] | E115: 0
D116: Width [feet] | E116: 0 | G116: Buffer Area
B117: The area of a float is calculated by shore zone from the length and width entered above. For irregularly shaped floats, enter the square footage of the float in the appropriate zone (see Notes for more information on irregularly shaped floats). BMP: Floats should not be located in the USZ and cannot ground out. | C117: Solid Float USZ | D117: SqFt | E117: 0 | F117: =-(E117*'OWS Lookup Tables'!I38+G117*'OWS Lookup Tables'!I39)*(1+E127) -> 0 | G117: =(E111*2+E112)*10 -> 0 | H117: For complex floats the calculated SqFt will not match the actual SqFt. Enter SqFt manually in column E.
C118: Solid Float LSZ | D118: SqFt | E118: =(E113*E114) -> 0 | F118: =-(E118*LOOKUP(E86,'OWS Lookup Tables'!M25:M28,'OWS Lookup Tables'!I25:I28)+G118*LOOKUP(E86,'OWS Lookup Tables'!M29:M32,'OWS Lookup Tables'!I29:I32))*(1+E129) -> 0 | G118: =(E113*2+E114)*10 -> 0
C119: Solid Float DZ | D119: SqFt | E119: =(E115*E116) -> 0 | F119: =-(E119*'OWS Lookup Tables'!I50+G119*'OWS Lookup Tables'!I51) -> 0 | G119: =(E115*2+E116)*10 -> 0 | H119: Floats in herring spawning and holding areas may have herring spawning factor applied.
A120: Sub-Total: Conservation Credits for Removal of Existing Structures | F120: =(SUM(F88:F99)+SUM(F108:F119))*(1+E123+E125)+F100+F101 -> 0
A121: Credit Factors associated with Removal of OWS - modified application for creosote removal
B122: Site Specific Credit Factors for OWS Removals | D122: Percent more credit | F122: Notes and Examples
A123: Credit Factors for Removals | B123: Is the project located within 5 miles of a Puget Sound Chinook natal estuary zone or within 1 mile of a Hood Canal summer-chum estuary zone? | D123: No | E123: =IF(AND(D123="Yes",D125="yes"),0.9,IF(AND(D123="yes",D125="no"),0.5,0)) -> 0 | F123: Reference: Application of Credit Factors
B124: Puget Sound Natal & Pocket Estuaries | F124: Projects located within a natal Chinook or HC summer chum estuary zone will receive 50% more credits. If a project is in a pocket estuary and within a natal Chinook or HC summer chum estuary zone, a combined 90% more credits apply.
B125: Is the project is located within a pocket estuary/embayment? | D125: No | E125: =IF(AND(D125="yes",D123="no"),0.3,0) -> 0 | F125: Reference: Explanation of Pocket Estuaries and Embayments
B126: Puget Sound Natal & Pocket Estuaries | F126: Projects located within a pocket estuary or embayment owe/receive 30% more conservation debits/credits. If the pocket estuary is within a natal Chinook or Hood Canal summer chum estuary zone, 40% more debits/credits apply.
B127: Is there observed (as mapped or determined by WDFW) sand lance or surf smelt spawning on the project site? | D127: No | E127: =IF(D127="Yes",0.5,0) -> 0 | F127: In areas with forage fish spawning, 50% more removal credits will be awarded to forage fish affecting action elements.
B128: WDFW Forage Fish Spawning Map
B129: Is there herring spawning on the project site? | D129: No | E129: =IF(D129="Yes",0.5,0) -> 0 | F129: In areas with herring spawning, 50% more removal credits will be awarded to forage fish affecting action elements.
B130: WDFW Forage Fish Spawning Map
A132: Average Diameter Pile Calculator
A133: For projects with multiple piles and pile diameters use the entry area below to determine the average pile diameter. The average pile diameter will then be used above with the total number of piles proposed.
A134: Piles to be removed | B134: Description | C134: Quantity | D134: Pile Size: Diameter in inches
B135: Number of piles with one diameter size | C135: 1 | D135: 8
B136: Number of piles with one diameter size | C136: 0 | D136: 10
B137: Number of piles with one diameter size | C137: 0 | D137: 12
B138: Number of piles with one diameter size | C138: 0 | D138: 14
B139: Number of piles with one diameter size | C139: 0 | D139: 16
B140: Number of piles with one diameter size | C140: 0 | D140: 18
B141: Number of piles with one diameter size (fill in diameter as needed)
B142: Number of piles with one diameter size (fill in diameter as needed)
B143: Total number of piles and average pile size | C143: =SUM(C135:C142) -> 1 | D143: =(D135*C135+D136*C136+D137*C137+D138*C138+D139*C139+D140*C140+D141*C141+D142*C142)/C143 -> 8
A145: For projects with multiple piles and pile diameters use the entry area below to determine the average pile diameter. The average pile diameter will then be used above with the total number of piles proposed.
A146: Piles to be installed | B146: Description | C146: Quantity | D146: Pile Size: Diameter in inches
B147: Number of piles with one diameter size | C147: 1 | D147: 12
B148: Number of piles with one diameter size | C148: 0 | D148: 13
B149: Number of piles with one diameter size | C149: 0 | D149: 14
B150: Number of piles with one diameter size | C150: 0 | D150: 15
B151: Number of piles with one diameter size | C151: 0 | D151: 16
B152: Number of piles with one diameter size | C152: 0 | D152: 18
B153: Number of piles with one diameter size (fill in diameter as needed)
B154: Number of piles with one diameter size (fill in diameter as needed)
B155: Total number of piles and average pile size | C155: =SUM(C147:C154) -> 1 | D155: =(D147*C147+D148*C148+D149*C149+D150*C150+D151*C151+D152*C152+D153*C153+D154*C154)/C155 -> 12
A157: Pile Volume Calculator for Creosote Tonnage Estimation
A158: Creosote Piles to be removed | B158: Description | C158: Quantity | D158: Pile Diameter | E158: Length of Pile | F158: Volume (Cubic Feet)
B159: Number of piles with same dimensions | C159: 1 | D159: 12 | E159: 70 | F159: =(C159*(PI()*(0.5*(D159/12))^2)*(E159)) -> 54.97787144
B160: Number of piles with same dimensions | F160: =(C160*(PI()*(0.5*(D160/12))^2)*(E160)) -> 0
B161: Number of piles with same dimensions | F161: 0
B162: Number of piles with same dimensions | F162: 0
B163: Number of piles with same dimensions | F163: 0
B164: Number of piles with same dimensions | F164: 0
B165: Optional: Enter total volume of creosote material (non-pile) (cubic feet) | F165: 0
B166: Total Volume of piles (cubic feet) | F166: =SUM(F159:F165) -> 54.97787144
B167: Creosote tonnage (1 ton per 55 cubic feet) | C167: To be entered in Cell E100 and or E101 | F167: =F166/54.98 -> 0.9999612848

Sheet ShorelStab
A1: Impact and Benefit Determination for Shoreline Armoring
A2: No mitigation is required for soft or hybrid stabilization, including pocket beaches. These features are not entered in this tab. Credits are generated by the removal of existing armoring. Enter vegetation changes associated with soft/hybrid armoring in the Riparian Zone tab. | C2: Version: | D2: =Summary!E12 -> 2021-03-10 | F2: Developer Notes
A3: Replacements and New Installations | B3: Site Conditions Landward of Hard Armoring up to HAT | F3: average HV
B4: Description | C4: Quantity in sqft | D4: Notes | F4: =IF(AND(C5=0,C6=0,C7=0),0,(F5*(C5)+F6*C6+F7*C7)/((C5)+C6+C7)) -> 0 | G4: This area weighted average HV for the USZ behind the BH is used to determine the delta in habitat loss for areas cut off from access to fish.
B5: Enter SF of impervious, gravel, and sand area behind hard armoring and below HAT. If HAT is unknown, use area within 30 ft of bulkhead. | C5: 0 | D5: The conditions described here need to match the before conditions in the RZ tab if any changes in the RZ are proposed to be evaluated. Evaluate habitat improvements through tree or shrub planting in the riparian tab separately. This section assesses the value of the habitat rendered inaccessible to fish via armoring. The inputs here are used to determine percentage of each habitat type behind armoring and below HAT. Thus, if just one habitat type is present it is sufficient to enter a 1 into the respective row. If there is a 50% split of the area between two habitat types, enter a 1 into each row for respective habitat types. For more complicates scenarios enter respective SqFt. | F5: 0
B6: Enter area with herbaceous vegetation like lawn behind hard armoring and below HAT. If HAT is unknown use area within 30 ft of bulkhead. | C6: 0 | F6: 0.05
B7: Area with shrubs and trees behind hard armoring and below HAT. If HAT is unknown use area within 30 ft of bulkhead. | C7: 0 | F7: =0.55/2 -> 0.275
B8: Entry Block I: Armoring to be installed.
B9: Is this a replacement or repair? Enter "No" if a new structure is being installed | C9: Yes
B10: Description | C10: Quantity | D10: Notes
B11: Pick type of Shoreline Armoring to be installed | C11: linear feet
B12: How many linear feet of proposed armoring will be sloped and/or rock? | C12: 0 | D12: Consider using soft and hybrid armoring to avoid habitat impacts. For definitions of soft and hybrid armoring see the User Guide.
B13: How many linear feet of proposed armoring will be vertical armoring including concrete, sheet pile, or wood? | C13: 0
B14: Location: Slope Distance of Toe of Armoring Relative to MHHW | C14: linear feet | D14: See user guide for methods of determining slope distance and default slope distances per foot elevation.
B15: Is the toe of the to be installed armoring at or below MHHW? Enter No if it is above. | C15: No
B16: How many linear feet slope distance is the 'to be installed' armoring below or above MHHW. Enter 0 if toe of armoring is at MHHW.
B17: Distance between HAT and MHHW [ft slope distance] | C17: 25 | D17: Use 25 ft as default distance between HAT and MHHW if unknown. Source: NMFS determined average of 4 beach profiles, see calculator user guide for more information.
B18: Pick cover type of upper intertidal vegetation waterward of existing or new armoring.
B19: Must enter USZ vegetation scenario | C19: 0 | D19: Reference: USZ vegetation scenarios
B20: Conservation points owed for replacement shoreline armoring | C20: ='shorel Stabiliz USZ install'!C70*100*((1+D41+D43)*(1+D45+D47+D51)+D49) -> 0
B21: Additional points owed for new shoreline armoring | C21: =IF(C9="no",'shorel Stabiliz USZ install'!C70*100*((1+D41+D43)*(1+D45+D47+D51)+D49),0) -> 0
A22: Removal of Existing Armoring | B22: Entry Block II: Removal of Existing Armoring as Standalone Project or as Part of a Replacement or Repair
B23: Description | C23: Quantity | D23: Notes
B24: Enter duration of site protection | C24: Years | D24: Due to expected sea level rise we cannot provide credit for durations longer than 50 years. Due to the way the model (Habitat Equivalcency Analysis) uses time, entry values for time need to be > 0. 0 is an invalid entry.
B25: Replacements: Default for replacement of exiting armoring is 10 years, If armor is non-functioning at time of permit application no removal credit is given for armor removal. Enter 0 below in C 27 and 28. Removals: Enter duration of easement or deed restriction. Enter 10 for none, 50 for in perpetuity. | C25: 10
B26: Pick type of Shoreline Armoring to be removed | C26: linear feet
B27: How many linear feet of proposed armoring will be sloped and/or rock? | C27: 0
B28: How many linear feet of proposed armoring will be vertical armoring including concrete, sheet pile, creosote pile or wall? For creosote removal also enter quantity of creosote proposed to be removed below. | C28: 0
B29: Location: Slope Distance of Toe of Armoring Relative to MHHW | C29: linear feet
B30: Is the toe of the to be removed armoring at or below MHHW? Enter No if it is above. | C30: Yes
B31: How many linear feet slope distance is the 'to be removed' armoring below or above MHHW. Enter 0 if toe of armoring is at MHHW. | C31: 0 | D31: See user guide for methods of determining slope distance.
B32: Distance between HAT and MHHW [ft slope distance] | C32: 0 | D32: Use 25 ft as default distance between HAT and MHHW if unknown. Source: NMFS determined average of 4 beach profiles.
B33: Pick cover type of upper intertidal vegetation waterward of existing armoring.
B34: Must enter USZ vegetation scenario (See Table 2) | C34: 0
B35: Conservation points gained from old armor removal. | C35: ='shorel Stabiliz USZ remove'!C70*100*((1+D41+D43)*(1+D45+D47+D51)+D49) -> 0
B36: Water Quality Benefits for Creosote removal. | C36: tons of creosote | D36: Conservation points for creosote removal
B37: Enter tons of creosote associated with shoreline armoring to be removed. Usually a 70-ft long 12-inch average diameter pile weighs about 1 ton. | C37: 0 | D37: Reference: Pile Volume Calculator
B38: Conservation points gained from creosote removal. | C38: =C37*1.8*(IF(D41=0,1,(1+D41*0.4)))*(IF(D43=0,1,(1+D43*0.4)))*(IF(D45=0,1,(1+D45*0.4))) -> 0
A40: Crediting and Debiting Factors for Shoreline Armoring | B40: Site Specific Credit and Debit Factors for Shoreline Armoring | D40: Percent more credit/debit | E40: Notes
B41: Is the project located within 5 miles of a Puget Sound Chinook natal estuary zone or within 1 mile of a Hood Canal summer-chum estuary zone? | C41: No | D41: =IF(AND(C41="Yes",C43="yes"),0.9,IF(AND(C41="yes",C43="no"),0.5,0)) -> 0 | E41: Reference: Application of Credit Factors
B42: Puget Sound Natal & Pocket Estuaries | E42: Projects located within a natal Chinook or HC summer chum estuary zone will receive 50% more credits. If a project is in a pocket estuary and within a natal Chinook or HC summer chum estuary zone, a combined 90% more credits apply.
B43: Is the project is located within a pocket estuary/embayment? | C43: No | D43: =IF(AND(C43="yes",C41="no"),0.3,0) -> 0 | E43: Reference: Explanation of Pocket Estuaries and Embayments
B44: Puget Sound Natal & Pocket Estuaries | E44: Projects located within a pocket estuary or embayment owe/receive 30% more conservation debits/credits. If the pocket estuary is within a natal Chinook or Hood Canal summer chum estuary zone, 40% more debits/credits apply.
B45: Is there observed (as mapped or determined by WDFW) sand lance or surf smelt spawning on the project site? | C45: No | D45: =IF(C45="Yes",0.5,0) -> 0 | E45: In areas with forage fish spawning, 50% more conservation debits/credits apply.
B46: WDFW Forage Fish Spawning Map
B47: Is the armoring within the same drift cell and updrift of sand lance or surf smelt spawning on the project site? | C47: No | D47: =IF(C45="yes",0,IF(C47="Yes",0.2,0)) -> 0 | E47: In areas updrift of forage fish spawning, 20% more conservation debits/credits apply if there is no forage fish spawning on site.
B48: Coastal Atlas Map
B49: Is the project located at a feeder bluff? | C49: No | D49: =IF(C49="Yes",0.5,0) -> 0 | E49: For armoring at feeder bluffs, 50% more conservation credits/debits apply.
B50: Coastal Atlas Map
B51: Herring Spawning - Evaluate effects case by case. | C51: No | D51: =IF(C51="Yes",0.5,0) -> 0 | E51: Is there herring spawning on the project site AND does the project affect herring spawning? Depending on the elevation of the shoreline armoring and other projects specific aspects, armoring may or may not affect herring spawning. If there is herring spawning on site, this determination will be made by a NMFS, USFWS, WDFWS, or COE biologist.
B52: WDFW Forage Fish Spawning Map
B53: Summary Credit/Debit Factor | C53: =((1+D41+D43)*(1+D45+D47+D51)+D49) -> 1 | D53: =((1+D41+D43)*(1+D45+D47+D51)+D49) -> 1 | E53: Increases in debits/credits based on special habitat and site conditions. Some credits are multiplied others added depending on underlying biological relationships.

Sheet MDredging
A1: Impact Determination from Maintenance Dredging
D2: Version: | E2: =Summary!E12 -> 2021-03-10
A3: Dredging in USZ | E3: Conservation Points | F3: Notes
A4: Dredged Area | B4: Enter SqFt proposed to be dredged | D4: 0 | E4: =-(D4*('OWS Lookup Tables'!C83)/1000)*(1+F13+F15)*(1+F17) -> 0 | F4: 50% more debits apply in areas with sand lance spawning
A5: Dredging in LSZ | E5: Conservation Points
A6: Must enter vegetation scenario for LSZ (See Table 1) | B6: Enter SAV scenario 0-3 | D6: 0 | F6: Reference: LSZ SAV Scenarios
A7: Dredged Area | B7: Enter SqFt proposed to be dredged | E7: =-(D7*LOOKUP(D6,'OWS Lookup Tables'!B83:B86,'OWS Lookup Tables'!C83:C86)/1000)*(1+F13+F15)*(1+F19) -> 0 | F7: 50% more debits apply in areas with herring spawning
A8: Dredging in DZ | E8: Conservation Points
A9: Dredged Area | B9: Enter SqFt proposed to be dredged | D9: 0 | E9: =-D9*'OWS Lookup Tables'!C87/1000*(1+F13+F15) -> 0
A10: Summary | E10: =(E4+E9+E7) -> 0
A12: Site Specific Debit Factors for Dredging | F12: Percent more Debit | G12: Notes
A13: Is the project located within 5 miles of a Puget Sound Chinook natal estuary zone or within 1 mile of a Hood Canal summer-chum estuary zone? | E13: No | F13: =IF(AND(E13="Yes",E15="yes"),0.9,IF(AND(E13="yes",E15="no"),0.5,0)) -> 0 | G13: Reference: Application of Credit Factors
A14: Puget Sound Natal & Pocket Estuaries | G14: Projects located within a natal Chinook or HC summer chum estuary zone will receive 50% more credits. If a project is in a pocket estuary and within a natal Chinook or HC summer chum estuary zone, a combined 90% more credits apply.
A15: Is the project is located within a pocket estuary/embayment? | E15: No | F15: =IF(AND(E15="yes",E13="no"),0.3,0) -> 0 | G15: Reference: Explanation of Pocket Estuaries and Embayments
A16: Puget Sound Natal & Pocket Estuaries | G16: Projects located within a pocket estuary or embayment owe/receive 30% more conservation debits/credits. If the pocket estuary is within a natal Chinook or Hood Canal summer chum estuary zone, 40% more debits/credits apply.
A17: Is there observed (as mapped or determined by WDFW) sand lance or surf smelt spawning on the project site? | E17: No | F17: =IF(E17="Yes",0.5,0) -> 0 | G17: In areas with forage fish spawning, 50% more conservation debits apply.
A18: WDFW Forage Fish Spawning Map
A19: Is there herring spawning on the project site? | E19: No | F19: =IF(E19="Yes",0.5,0) -> 0 | G19: In areas with forage fish spawning, 50% more conservation debits apply.
A20: WDFW Forage Fish Spawning Map
A21: Summary Debit Factor | E21: =(1+F13+F15)*(1+IF(AND(F17>0,F19>0),F17,MAX(F17,F19))) -> 1 | F21: =(1+F13+F15)*(1+IF(AND(F17>0,F19>0),F17,MAX(F17,F19))) -> 1 | G21: Increases in debits/credits are based on special habitat and site conditions. Some credits are multiplied others added depending on underlying biological relationships.

Sheet BoatR, Jetty
A1: Impact and Benefit Determination for Concrete Boat Ramps, Jetties, Concrete Rubble
A2: To expand an entry block for data entry click on the + sign on the left. Clicking the 2 will expand all entry blocks. | E2: Version: | F2: =Summary!E12 -> 2021-03-10
A3: Entry Block I: Entry for New and Expanded Elements of Existing Structures
A4: Enter new boat ramps, jetties, and breakwaters in this entry block and all areas that are considered expansions of existing or proposed to be replaced structures. Enter replacement structure elements in Entry block II below.
A5: Boat ramp Installation
C6: Description | D6: Units | E6: Quantity | G6: Developer Notes | I6: Developer Notes
A7: Vegetation Conditions | B7: USZ | C7: Must enter USZ vegetation scenario before installation (See summary tab table 2). SAV after is 0. | D7: Enter vegetation scenario 0-3 | E7: 0 | F7: Reference: Delineation of Shore Zones | G7: This section works as an entry mask to the BR Install USZ 2 tab.
B8: LSZ | C8: Must enter LSZ vegetation scenario before installation (See summary tab table 1). SAV after is 0. | D8: Enter LSZ SAV scenario 0-3 | E8: 0 | H8: Reference: LSZ SAV Scenarios
C9: Description | D9: Units | E9: Quantity | F9: Conservation Points | H9: Notes
A10: Boat ramp Installation | B10: Is this a Boat ramp installation? "No" indicates installation of concrete footings, or similar with no impact on water quality or shore drift (USZ). | D10: yes/no | E10: No
B11: USZ | C11: Pick type of upper intertidal vegetation before installation. Select 0 for replacements. Select “Yes” if saltmarsh vegetation cover is:
C12: length of boat ramp to be installed | D12: Ft | E12: 0 | H12: Length is used to estimate area where interruption of longshore drift occurs. | I12: =E12*2*4 -> 0
C13: width of boat ramp to be installed | D13: Ft | E13: 0 | I13: area around boat ramp where usually drift is visually interrupted, valley and hill. Would be great to monitor actual extent.
C14: Area of boat ramp, concrete footing, or similar to be installed | D14: SqFt | E14: =E12*E13 -> 0 | F14: ='BR Install USZ 2'!D51*100*2*(1+E77+E79)*(1+E81+E83) -> 0 | H14: Includes impact to longshore drift from boat ramps and jetties for E10 = yes. If e10 = "no", area of to be installed concrete or similar substrate covering structure can be entered directly in E14.
B15: LSZ | C15: Area of boat ramp, concrete footings, or similar to be installed | D15: SqFt | E15: 0 | F15: ='BR Jetty Inst LSZ '!D42*100*2*(1+E77+E79)*(1+E85) -> 0 | H15: No shored drift interruption considered for LSZ.
B16: DZ | C16: DZ: Area of boat ramp to be installed | D16: SqFt | E16: 0 | F16: ='BR Jetty Inst DZ '!D36*100*2*(1+E77+E79) -> 0 | H16: No shored drift interruption considered for DZ.
A17: Jetty Installation
C18: Description | D18: Units | E18: Quantity | H18: Notes
A19: Vegetation Conditions | B19: USZ | C19: Must enter USZ vegetation scenario before installation (See Ref. tab). SAV after is 0. | D19: Enter vegetation scenario 0-3 | E19: 0
B20: LSZ | C20: Must enter LSZ vegetation scenario before installation (See Ref. Tab). SAV after is 0. | D20: Enter LSZ SAV scenario 0-3 | E20: 0 | H20: Reference: LSZ SAV Scenarios
C21: Description | D21: Units | E21: Quantity | F21: Conservation Points | H21: Notes
A22: Jetty Installation | B22: USZ | C22: length of jetty to be installed | D22: Ft | E22: 0 | H22: Length is used to estimate area where interruption of longshore drift occurs. | I22: =E22*2*5 -> 0
C23: width of jetty to be installed | D23: Ft | E23: 0 | I23: area around jetty where usually drift is visually interrupted, valley and hill. Would be great to monitor actual extent.
C24: USZ: Area of jetty to be installed | D24: SqFt | E24: =E22*E23 -> 0 | F24: ='Jetty Install USZ 2'!D52*100*2*(1+E77+E79)*(1+E81+E83) -> 0
B25: LSZ | C25: LSZ: Area of jetty to be installed | D25: SqFt | E25: 0 | F25: ='BR Jetty Inst LSZ '!D41*100*2*(1+E77+E79)*(1+E85) -> 0 | H25: No shored drift interruption considered for LSZ.
B26: DZ | C26: DZ: Area of jetty to be installed | D26: SqFt | E26: 0 | F26: ='BR Jetty Inst DZ '!D35*100*2*(1+E77+E79) -> 0 | H26: No shored drift interruption considered for DZ.
A27: Conservation points owed by installation. | D27: Total | F27: =SUM(F14:F26) -> 0
A28: Entry Block II: Entry for Replacement Structures
A29: Enter replacement boat ramps, jetties, and breakwaters in this entry block. Enter to be removed structure elements in Entry block III below.
A30: Boat ramp Replacement
C31: Description | D31: Units | E31: Quantity | F31: Conservation Points | G31: Developer Notes | H31: Notes
A32: Vegetation Conditions | B32: USZ | C32: Must enter USZ vegetation scenario before installation (See summary tab table 2). SAV after is 0. | D32: Enter vegetation scenario 0-3 | E32: 0 | F32: Reference: Delineation of Shore Zones | G32: I used lookup tables here to check model against entry mask from entry block 1 above. Designing entry mask for this portion too would have required too many background tabs.
B33: LSZ | C33: Must enter LSZ vegetation scenario before installation (See summary tab table 1). SAV after is 0. | D33: Enter LSZ SAV scenario 0-3 | E33: 0
C34: Description | D34: Units | E34: Quantity | F34: Conservation Points | H34: Notes
A35: Boat ramp and Concrete/Footings Replacement | B35: Is this a Boat ramp installation? "No" indicates installation of concrete footings, or similar with no impact on water quality or shore drift. | D35: yes/no | E35: No
B36: USZ | C36: Pick type of upper intertidal vegetation before installation. Select 0 for replacements. Select “Yes” if saltmarsh vegetation cover is:
C37: length of boat ramp to be installed | D37: Ft | E37: 0 | G37: =E37*2*4 -> 0 | H37: Length is used to estimate area where interruption of longshore drift occurs.
C38: width of boat ramp to be installed | D38: Ft | E38: 0 | G38: Area around boat ramp where usually drift is visually interrupted, valley and hill. Would be great to monitor actual extent.
C39: Area of boat ramp, concrete footing, or similar to be installed | D39: SqFt | E39: =E38*E37 -> 0 | F39: =IF(E35="no",E39*LOOKUP(E32,'LookupT BR J'!M7:M10,'LookupT BR J'!F7:F10),(E39*LOOKUP(E32,'LookupT BR J'!M3:M6,'LookupT BR J'!F3:F6)+G37*LOOKUP(E32,'LookupT BR J'!M11:M14,'LookupT BR J'!F11:F14)))*(1+E77+E79)*(1+E81+E83) -> 0 | H39: Includes average impact to longshore drift - 4 ft on either side of boat ramp.
B40: LSZ | C40: Area of boat ramp, concrete footings, or similar to be installed | D40: SqFt | E40: 0 | F40: =IF(E35="yes",E40*LOOKUP(E33,'LookupT BR J'!M17:M20,'LookupT BR J'!F17:F20),E40*LOOKUP(E33,'LookupT BR J'!M21:M24,'LookupT BR J'!F21:F24))*(1+E77+E79)*(1+E85) -> 0 | H40: No shored drift interruption considered for LSZ.
B41: DZ | C41: DZ: Area of boat ramp to be installed | D41: SqFt | E41: 0 | F41: =IF(E35="yes",E41*'LookupT BR J'!F28,E41*'LookupT BR J'!F29)*(1+E77+E79) -> 0 | H41: No shored drift interruption considered for DZ.
A42: Jetty Replacement
C43: Description | D43: Units | E43: Quantity | G43: Developer Notes
A44: Vegetation Conditions | B44: USZ | C44: Must enter USZ vegetation scenario before installation (See summary tab table 2). SAV after is 0. | D44: Enter vegetation scenario 0-3 | E44: 0 | F44: Reference: Delineation of Shore Zones
B45: LSZ | C45: Must enter LSZ vegetation scenario before installation (See summary tab table 1). SAV after is 0. | D45: Enter LSZ SAV scenario 0-3 | E45: 0
C46: Description | D46: Units | E46: Quantity | F46: Conservation Points | H46: Notes
A47: Jetty Replacement | B47: USZ | C47: length of jetty to be installed | D47: Ft | E47: 0 | G47: =E47*2*5 -> 0 | H47: Length is used to estimate area where interruption of longshore drift occurs. Interruption of longshore drift debit is recorded in G47.
C48: width of jetty to be installed | D48: Ft | E48: 0 | G48: area around jetty where usually drift is visually interrupted, valley and hill. Would be great to monitor actual extent.
C49: USZ: Area of jetty to be installed | D49: SqFt | E49: =E47*E48 -> 0 | F49: =(E49*LOOKUP(E44,'LookupT BR J'!M34:M37,'LookupT BR J'!F34:F37)+G47*LOOKUP(E44,'LookupT BR J'!M38:M41,'LookupT BR J'!F38:F41))*(1+E77+E79)*(1+E81+E83) -> 0
B50: LSZ | C50: LSZ: Area of jetty to be installed | D50: SqFt | E50: 0 | F50: =(E50*LOOKUP(E45,'LookupT BR J'!M43:M46,'LookupT BR J'!F43:F46))*(1+E77+E79)*(1+E85) -> 0 | H50: No shored drift interruption considered for LSZ.
B51: DZ | C51: DZ: Area of jetty to be installed | D51: SqFt | E51: 0 | F51: =E51*'LookupT BR J'!F50*(1+E77+E79) -> 0 | H51: No shored drift interruption considered for DZ.
A52: Conservation points owed by replacement | D52: Total | F52: =SUM(F35:F51) -> 0
A53: Entry Block III: Entry for Removal of old Structures
A54: Enter square footage of old boat ramps, jetties, and breakwaters proposed to be removed, repaired, or replaced in this entry block.
A55: Boat ramp and Concrete Rubble Removal
A56: Vegetation Conditions | B56: USZ | C56: Must enter USZ vegetation scenario before installation (See table 1). SAV after is 0. | D56: Enter vegetation scenario 0-3 | E56: 0 | F56: Reference: Delineation of Shore Zones
B57: LSZ | C57: Must enter LSZ vegetation scenario before installation (See table 1). SAV after is 0. | D57: Enter LSZ SAV scenario 0-3 | E57: 0
C58: Description | D58: Units | E58: Quantity | F58: Conservation Points for Removal of Old Structures | G58: Developer Notes | H58: Notes
A59: Boat ramp and Concrete rubble Removal | B59: Is this a Boat ramp removal? "No" indicates removal of rubble or concrete pieces. | D59: yes/no | E59: Yes | G59: area around boat ramp where usually drift is visually interrupted, valley and hill. Would be great to monitor actual extent. | H59: Boat ramp has to be in functioning conditions for boat ramp removal credit. Otherwise enter as rubble.
B60: USZ | C60: length of boat ramp to be removed | D60: Ft | E60: 0 | G60: =E60*2*4 -> 0
C61: width of boat ramp to be removed | D61: Ft | E61: 0
C62: Area of boat ramp, concrete, or rubble to be removed; incl. shoreline drift restored by boat ramp removal | D62: SqFt | E62: =E61*E60 -> 0 | F62: =-IF(E59="no",E62*LOOKUP(E56,'LookupT BR J'!M7:M10,'LookupT BR J'!I7:I10),(E62*LOOKUP(E56,'LookupT BR J'!M3:M6,'LookupT BR J'!I3:I6)+G60*LOOKUP(E56,'LookupT BR J'!M11:M14,'LookupT BR J'!I11:I14)))*(1+E77+E79)*(1+E81+E83) -> 0 | G62: area around boat ramp where usually drift is visually interrupted, valley and hill. Would be great to monitor actual extent. | H62: For the removal of several piece of concrete or rubble you may enter the combined square footage in E62 rather than enter in length and width.
B63: LSZ | C63: Area of boat ramp, concrete, or rubble to be removed | D63: SqFt | E63: 0 | F63: =-IF(E59="no",E63*LOOKUP(E57,'LookupT BR J'!M21:M24,'LookupT BR J'!I21:I24),E63*LOOKUP(E57,'LookupT BR J'!M17:M20,'LookupT BR J'!I17:I20))*(1+E77+E79)*(1+E85) -> 0 | H63: No shored drift interruption considered for LSZ.
B64: DZ | C64: Area of boat ramp, concrete, or rubble to be removed | D64: Ft | E64: 0 | F64: =-IF(E59="no",E64*'LookupT BR J'!I29,E64*'LookupT BR J'!I28)*(1+E77+E79) -> 0 | H64: No shored drift interruption considered for DZ.
A65: Jetty Removal
A66: Vegetation Conditions | B66: USZ | C66: Must enter USZ vegetation scenario before installation (See table 1). SAV after is 0. | D66: Enter vegetation scenario 0-3 | E66: 0 | F66: Reference: Delineation of Shore Zones
B67: LSZ | C67: Must enter LSZ vegetation scenario before installation (See table 1). SAV after is 0. | D67: Enter LSZ SAV scenario 0-3 | E67: 0
C68: Description | D68: Units | E68: Quantity | F68: Conservation Points for removal of Old Structures | G68: Developer Notes | H68: Notes
A69: Jetty Removal | B69: USZ | C69: length of jetty to be removed | D69: Ft | E69: 0 | G69: =E69*2*5 -> 0 | H69: Length is used to estimate impact from interruption of longshore drift.
C70: width of jetty to be removed | D70: Ft | E70: 0 | G70: area along jetty where usually drift is visually interrupted, valley and hill. Would be great to monitor actual extent.
C71: USZ: Area of jetty to be removed | D71: SqFt | E71: =E69*E70 -> 0 | F71: =-(E71*LOOKUP(E66,'LookupT BR J'!M34:M37,'LookupT BR J'!I34:I37)+G69*LOOKUP(E66,'LookupT BR J'!M38:M41,'LookupT BR J'!I38:I41))*(1+E77+E79)*(1+E81+E83) -> 0
B72: LSZ | C72: LSZ: Area of jetty to be removed | D72: SqFt | E72: 0 | F72: =-(E72*LOOKUP(E67,'LookupT BR J'!M43:M46,'LookupT BR J'!I43:I46))*(1+E77+E79)*(1+E85) -> 0 | H72: No shored drift interruption considered for LSZ.
B73: DZ | C73: DZ: Area of jetty to be removed | D73: SqFt | E73: 0 | F73: =-E73*'LookupT BR J'!I50*(1+E77+E79) -> 0 | H73: No shored drift interruption considered for DZ.
B74: Conservation points gained from removal | D74: Total | F74: =SUM(F62:F73) -> 0
A76: Site Specific Credit and Debit Factors for Boat ramps, Jetties, and Rubble. | E76: Percent more Credit/Debit | F76: Notes
A77: Crediting/Debiting Factors | B77: Is the project located within 5 miles of a Puget Sound Chinook natal estuary zone or within 1 mile of a Hood Canal summer-chum estuary zone? | D77: No | E77: =IF(AND(D77="Yes",D79="yes"),0.9,IF(AND(D77="yes",D79="no"),0.5,0)) -> 0 | F77: Reference: Application of Credit Factors
B78: Puget Sound Natal & Pocket Estuaries | F78: Projects located within a natal Chinook or HC summer chum estuary zone will receive 50% more credits. If a project is in a pocket estuary and within a natal Chinook or HC summer chum estuary zone, a combined 90% more credits apply.
B79: Is the project is located within a pocket estuary/embayment? | D79: No | E79: =IF(AND(D79="yes",D77="no"),0.3,0) -> 0 | F79: Reference: Explanation of Pocket Estuaries and Embayments
B80: Puget Sound Natal & Pocket Estuaries | F80: Projects located within a pocket estuary or embayment owe/receive 30% more conservation debits/credits. If the pocket estuary is within a natal Chinook or Hood Canal summer chum estuary zone, 40% more debits/credits apply.
B81: Is there observed (as mapped or determined by WDFW) sand lance or surf smelt spawning on the project site? | D81: No | E81: =IF(D81="Yes",0.5,0) -> 0 | F81: In areas with forage fish spawning, 50% more conservation debits apply to forage fish affecting action elements.
B82: WDFW Forage Fish Spawning Map
B83: Is the structure within the same drift cell and updrift of sand lance, or surf smelt spawning on the project site? | D83: No | E83: =IF(D81="yes",0,IF(D83="Yes",0.2,0)) -> 0 | F83: In areas updrift of forage fish spawning, 20% more conservation debits/credits apply if there is no forage fish spawning on site.
B84: Coastal Atlas Map
B85: Is there herring spawning on the project site? | D85: No | E85: =IF(D85="Yes",0.5,0) -> 0 | F85: In areas with forage fish spawning, 50% more conservation debits apply to forage fish affecting action elements.
B86: WDFW Forage Fish Spawning Map
A87: *Site Specific Credit and Debit Factors totals noted as "Conservation points gained from removal" at the end of each section (cells 27F, 52F, and 74F)

Sheet Beach N
A1: Benefit Determination for Placement of Beach Nourishment
A2: NMFS and COE only consider beach nourishment as conservation measure where WDFW or NMFS recommend it. | C2: Version: | D2: 2021-03-10
A3: Beach Nourishment "Fix Mix" to be placed based on WDFW, USFWS, or NMFS recommendation
A4: WDFW recommends 1 cubic yard of "fish mix" beach nourishment spread 6 inches deep for every 2 linear feet of armored beach within 9 feet waterward of armoring. Usually we do not credit placement of beach nourishment in "Shoretype 0" (see Erosion Ponetial table below).
A5: Description | B5: Units | C5: Quantity | D5: Conservation Points including credit factors
A6: Amount of material proposed | B6: Cubic Yards | C6: 0 | D6: =(C6*LOOKUP(C7,'OWS Lookup Tables'!C71:C77,'OWS Lookup Tables'!D71:D77)/4.5)*C33*27 -> 0
A7: Select applicable erosion potential. | C7: 1 | D7: Contact NMFS for individual assessment for EP 8
A8: Depending on site conditions and WDFW, NMFS, or USFWS recommendations, placement and anchoring of large woody material may be required to lengthen retention of beach nourishment to meet the benefit period used in the calculator.
A22: Site Specific Credit and Debit Factors for Beach Nourishment | D22: Notes and Examples
A23: Is the project located within 5 miles of a Puget Sound Chinook natal estuary zone or within 1 mile of a Hood Canal summer-chum estuary zone? | B23: No | C23: =IF(AND(B23="Yes",B25="yes"),0.9,IF(AND(B23="yes",B25="no"),0.5,0)) -> 0 | D23: Reference: Application of Credit Factors
A24: Puget Sound Natal & Pocket Estuaries | D24: Beach nourishment located within a natal Chinook or HC summer chum estuary zone will receive 50% more credits. If beach nourishment is in a pocket estuary and within a natal Chinook or HC summer chum estuary zone, a combined 90% more credits apply.
A25: Is the project is located within a pocket estuary/embayment? | B25: No | C25: =IF(AND(B25="yes",B23="no"),0.3,0) -> 0 | D25: Reference: Explanation of Pocket Estuaries and Embayments
A26: Puget Sound Natal & Pocket Estuaries | D26: Beach nourishment located within a pocket estuary or embayment receives 30% more conservation credits. If the pocket estuary is within a natal Chinook or Hood Canal summer chum estuary zone, 40% more credits apply.
A27: Is there observed (as mapped or determined by WDFW) sand lance or surf smelt spawning on the project site? | B27: No | C27: =IF(B27="Yes",0.5,0) -> 0 | D27: In areas with forage fish spawning, 50% more conservation credits apply.
A28: WDFW Forage Fish Spawning Map
A29: Is the armoring within the same drift cell and updrift of sand lance or surf smelt spawning on the project site? | B29: No | C29: =IF(B27="yes",0,IF(B29="Yes",0.2,0)) -> 0 | D29: In areas updrift of forage fish spawning, 20% more conservation credits apply if there is no forage fish spawning on site.
A30: Coastal Atlas Map
A31: Is there herring spawning on the project site AND does the project affect herring spawning? Default is NO. | B31: No | C31: =IF(C27>1,1,IF(B31="Yes",0.5,0)) -> 0 | D31: Depending on the elevation of the shoreline armoring and other projects specific aspects, armoring may or may not affect herring spawning. If there is herring spawning on site, the effect determination will be made by a NMFS, USFWS, WDFWS, or COE biologist. The default is NO
A32: WDFW Forage Fish Spawning Map
A33: Summary Credit/Debit Factor | C33: =(1+C23+C25)*(1+C27+C29+C31) -> 1 | D33: Increases in credits are based on special habitat and site conditions. Some credits are multiplied others added depending on underlying biological relationships.

Sheet Ref.
A1: To return to the previous worksheet and location press F5 + Enter keys simultaneously.
A2: Nearshore2020
A3: Table 1: Delineation of LSZ Submerged Aquatic Vegetation Scenarios | G3: Figure 1: Example Complex Float
A4: VEGETATION SCENARIO | B4: Native Eelgrass and/or Kelp occurs within 25 feet of project area | D4: Other SAV occurs within 25 feet of project area (no native eelgrass or kelp present)
A5: Scenario 0 | B5: N/A | D5: ≤ 10%
A6: Scenario 1 | B6: 1-25% Combined SAV | D6: 11-25%
A7: Scenario 2 | B7: 26-69% Combined SAV | D7: 26-75%
A8: Scenario 3 | B8: ≥ 70% Combined SAV | D8: > 75%
A10: *SAV defined as rooted vascular plants and attached macroalgae. Drift algae and Ulva spp. Are not included when determining cover percentage except where Ulva spp. occurs in documented herring spawning areas.
A13: EXAMPLE: Site has 25% Native eelgrass and 45% other SAV (total 70 % cover) within 25 feet of project area. Select Scenario 3 from Column 1 because native eelgrass is present.
A16: Table 2: Delineation of Upper Shore Zone Vegetation Scenarios
A17: VEGETATION SCENARIO | B17: macro algae and saltmarsh vegetation like Salicornia sp. and Distichlis sp.
A18: Scenario 0 | B18: Less than 5% of cover
A19: Scenario 1 | B19: Between >5% and < 30% of cover
A20: Scenario 2 | B20: Between >30% and <60% of cover
A21: Scenario 3 | B21: Between >30% and <60% of cover
A24: Table 3: Delineation of Shore Zones
A25: SHORE ZONES | B25: Description
A26: Riparian Zone | B26: HAT to 130 feet landward of HAT
A27: Upper Shore Zone (USZ) | B27: HAT to +5 feet MLLW
A28: Lower Shore Zone (LSZ) | B28: +5 feet MLLW to -10 feet MLLW and limits of SAV
A29: Deeper Shore Zone (DSZ) | B29: Deeper than -10 feet MLLW or outer limits of SAV
A51: Figure 2: Application of Credit Factors
A52: Credit factors apply to the entire elevation polygon, they do not reflect a before after change. They are a function of site inherent conditions.
A72: Credit factors for water quality benefits related to creosote removal are 40% of full credit factors because we expect creosote piles to be on site for approximately 40 years of the 100 year assumed benefit period.
A75: Explanation of Pocket Estuaries and Embayments
A76: Many classification systems have been created and refined to describe Puget Sound shoreline habitats (Shipman 2008, McBride 2009). Many of these systems are based on a combination of geomorphic, oceanographic, chemical, and biological characteristics (McBride 2009). When using the term ‘pocket estuary’ we include embayments, estuaries, and lagoons. The Geographic Information System (GIS) layer we use to designate Puget Sound Natal and Pocket Estuaries also encompasses these geomorphic types. | E76: The Geographic Information System (GIS) layer for determining Puget Sound Natal and Pocket Estuaries
A77: Cereghino et al. (2012) proposed two classes of embayment site: coastal inlets, which are formed such that their protected shallow structures are not dependent on beach dynamics for their existence, and barrier-type, which are embedded in a beach system and are somewhat dependent on a barrier beach for wave protection and wetland development. We also drew upon Shipman (2008) who uses the term embayment to include protected estuaries and lagoons where there is little wave action to form beaches. Estuaries are those with a significant input of freshwater from a surface stream, whereas lagoons have limited freshwater input. Both are tidally influenced. Natal estuaries are often recognized as important habitats for juvenile salmonids in Puget Sound for passage to and from freshwater and/or for extended rearing (Greene et al. 2017). However, in addition, the use of nonnatal estuaries and intertidal areas along the shoreline have been shown to be important habitats for juvenile Chinook salmon during migration in the Puget Sound (Hayes et al. 2019, Beamer et al. 2013).

Sheet shorel Stabiliz USZ install (hidden)
A1: Cells in this tab have been modified to work together with the simplified entry mask in "ReplShorelineStab". For complex projects that don't fit the entry mask, use the stand alone Nearshore Habitat Values Model.
A2: Enter new or to be newly installed (for replacements or setbacks) armoring here.
A3: Nearshore Habitat Value Determination Model: Upper Shore Zone Habitat Value Determination
A4: The Upper Shore Zone encompassess the area between HAT and +5 MLLW. This model determines the habitat values for before and after a change occurs, restoration or degradation, for the entire upper shore zone. Depending on the project, only part of this area is the affected area for which habitats values should be determined. The NHVM and HEA are based on evaluating differenced between before and after conditions. If areas don't experiance a change in conditions, they can be excluded. For example, if a new overwater structure is installed waterward of an existing bulkhead, the area between HAT the bulkhead does not need to be included.
A5: If several actions occur at one site, evaluate shoreline armoring effects here and OWS and boat ramp effects in the Shade and Structure Im USZ tab.
A6: Yellow cells are to fill in.
A7: Grey cells contain essential questions
A8: Gree cells contain additional explanations
A9: Orange cells contain informational summary values
A10: Light blue cells contain factors from Shade Imp tab
A11: Purple Cells indicate BPJ reduction/credit factors
A12: A 1. General Project Factors
B13: Question | C13: Input Format | D13: User Entry | E13: Notes
A14: Duration | B14: Are the project impacts permanent? | C14: Yes/No | D14: No | E14: If project impacts or benefits are not permanent make sure to select NO.
B15: If temporary enter years of project impact. | C15: Temp Impact Years | D15: 50 | E15: Enter number of years project will exist (design life) if other than permanent. Leave blank if permanent. Use 50 years for all hard shoreline armoring
A16: Time Lag | B16: Years Until Full Functioning Habitat | C16: Years | D16: 1 | E16: If purchasing credits through a mitigation bank, enter 1. If calculating for permittee responsible mitigation, enter how many years after the impact full function of mitigation would be achieved. For restoration, the default for achieving full function after restoration in the nearshore marine environment is 3 years. The lowest possible value is 1. Do not enter values less than 1.
B17: Maximum Habitat Value for USZ 1 | D17: 0.6 | E17: USZ 1 is MHHW to HAT
B18: Maximum Habitat Value for USZ 2 | D18: 0.9 | E18: USZ 2 is +5 MLLW to MHHW
A19: A 2. General Project Factors for Shoreline stabilization and restoration projects
B20: Automatic Area Calculations for Upper Shore Zone 1 & 2, FYI only, no user input!
C21: Linear feet Before/ Natural, Soft, or Hybrid | D21: Linear feet After | E21: SQFT Before | F21: Acres Before | G21: SQFT after | H21: Acres After | I21: Total affected area | J21: Check from NoEntryDSAY
B22: Length (along shoreline) of area affected in the long term by project. For installation of shoreline armoring that is the length of the armoring. | C22: =C30 -> 0 | D22: =C22 -> 0
A23: USZ1 | B23: Width of Upper Shore Zone 1 landward of hard armoring [ft slope distance] | C23: 0 | D23: =IF(D34="yes",C31,D32) -> 25 | E23: =C23*C22 -> 0 | F23: =E23*0.000022956841139 -> 0 | G23: =D22*D23 -> 0 | H23: 0
A24: USZ1 | B24: Effective width of Upper Shore Zone 1 [ft slope distance] total for before/no armoring, and waterward of hard shoreline armoring for after/ column D. | C24: =IF(C34="NA",C31, "check entry condition") -> 25 | D24: =IF(D34="yes",0,D35) -> 0 | E24: =C24*C22 -> 0 | F24: 0 | G24: =D24*D22 -> 0 | H24: 0 | I24: =H23+H24 -> 0 | J24: =NoEntryDSAYCalcualtion!O3+NoEntryDSAYCalcualtion!O320 -> 0
A25: USZ2 | B25: Width of Upper Shore Zone 2 landward of hard armoring [ft slope distance] | C25: 0 | D25: =IF(D34="yes",D35,0) -> 0 | E25: =C25*C22 -> 0 | F25: 0 | G25: =D25*D22 -> 0 | H25: 0 | I25: =H25+H26 -> 0 | J25: =NoEntryDSAYCalcualtion!Y3+NoEntryDSAYCalcualtion!Y320 -> 0
A26: USZ2 | B26: Effective width of Upper Shore Zone 2 [ft slope distance] adversely affected area waterward of hard shoreline armoring in USZ 2 for after/hard armoring/column D. | C26: 0 | D26: =D36 -> 20 | E26: =C26*C22 -> 0 | F26: 0 | G26: =D26*D22 -> 0 | H26: 0
B28: Site Conditions | E28: Notes
B29: For Shoreline Stabilization | C29: Before: Set to Natural for Calculator | D29: After
B30: Length of shoreline to be altered [ft] - same for before and after | C30: =I53+I54 -> 0 | N30: Intern Project: It would be helpful to design a graphic that represents the project elevations in relationship to armoring.
A31: A | B31: For natural shoreline and soft shore treatments: Distance of HAT to MHHW [ft slope distance]. For hard armoring leave empty and fill out B. | C31: ='ShorelStab '!C17 -> 25 | E31: Depending on soft shore or hard shore fill in A or B, HAT in PS varies between approx. 9 ft MLLW in Dungeness and 17 ft MLLW in Olympia. Used 25 ft as average for scenarios where existing BH prevents determination of slope distance MHHW to HAT; based on average accross 4 example profiles in PS.
A32: B | B32: For hard shoreline armoring: Distance between HAT and shoreline treatment [ft slope distance] | D32: ='ShorelStab '!C17-IF('ShorelStab '!C15="yes",-'ShorelStab '!C16,'ShorelStab '!C16) -> 25
A33: C | B33: Extend of armoring effects waterward of hard armoring. [ft slope distance] - set value via expert opinion. | D33: 20 | E33: The areal extent of effects is different for wrack, sediment corsening, beach lowering, and sediment supply/ beach shortening. While effects on wrack usually are limited to within 15 feet (pers com Dethier), the areal extent of effects is likely larger for sediment corsening, beach lowering, and sediment supply/ beach shortening. Using 20 feet is our attempt to describe the area with the most noticable effects of armoring on wrack, beach width and sediment characteristics.
A34: D1 | B34: "YES" is selected if hard shoreline armoring is at or waterward of MHHW. "NA" stands for natural, soft, or hybrid condition. | C34: NA | D34: =IF('ShorelStab '!C15="yes","yes","NO") -> NO | E34: No for shoreline armoring above MHHW.
A35: D2 | B35: Distance between MHHW and shoreline treatment [ft slope distance] | D35: ='ShorelStab '!C16 -> 0 | E35: This is similar to relative encroachment approache in Dethier et al. 2016
A36: D3 | B36: Extent of adverse effects waterward of hard armoring in USZ 2. | D36: =IF(D34="no",D33-D35,D33) -> 20 | E36: The areal extent of effects is different for wrack, sediment corsening, beach lowering, and sediment supply/ beach shortening. While effects on wrack usually are limited to within 15 feet (pers com Dethier), the areal extent of effects is likely larger for sediment corsening, beach lowering, and sediment supply/ beach shortening. Using 20 feet is our attempt to describe the area with the most noticable effects of armoring on wrack, beach width and sediment characteristics.
B37: Check | C37: need to design check cell | E37: These cell display a waring if the before and after distances don't add up to the same distance between HAT and + 5 MLLW
B38: The habitat value for areas landward of hard armoring is automatically set to 0 to reflect a complete loss of access and sediment supply. If such areas are planted with riparian vegetation the value as riparian habitat can reflected in the riparian tab. For such situations impervious surface should be selected as the before habitat condition in the riparian tab.
A39: B. Habitat Evaluation USZ 1&2
F41: Before | I41: After
F42: Only areas waterward of hard armoring that are accessilbe to fish are evaluated. Areas landward of hard armoring automatically receive a habitat value of 0.
A43: # | B43: Indicator of Physical Habitat/ Physical and Biological Features | C43: Rating Questions | D43: Percent Influence of Indicator on Habitat Value | E43: Scores 0 to 1 | F43: Site Condition | G43: Category specific Score | H43: Indicator Specific Summary Score | I43: Site Condition | J43: Category specific Score | K43: Indicator Specific Summary Score | L43: Elements of Nearshore Marine PCEs addressed | M43: Notes
A44: Shoreline Complexity: Food and Cover (Beach Logs and Wrack)
A45: 1a | B45: Habitat Function from large wood and/or beach wrack. Evaluate how much beach wrack and wood are present and what function they provides to site. (Sobocinski et al 2010; Heerhartz et al. 2014, 2016; Strain et al. 2018) | C45: Beach logs and wrack line provide full function. Chose this option for hybrid and soft armoring and natural shoreline. | D45: 0.1 | E45: 1 | F45: Yes | G45: =IF(F45="Yes",E45,0) -> 1 | I45: No | J45: =IF(I45="Yes",E45,0) -> 0 | L45: F,C | M45: Shoreline complexity including shallow-sloped banks with rack and beach logs as well as undercut banks provide food and cover to juvenile salmonids.
A46: 1b | C46: Beach logs and wrack line provide medium function. Choose this option for hard armoring above MHHW. | E46: 0.5 | F46: No | G46: =IF(F46="Yes",E46,0) -> 0 | I46: =IF('ShorelStab '!C15="no","YES","NO") -> YES | J46: =IF(I46="Yes",E46,0) -> 0.5
A47: 1c | C47: Beach logs provide little to no function. Choose this option for shoreline armoring at or below MHHW. | E47: 0 | F47: No | G47: =IF(F47="Yes",E47,0) -> 0 | H47: =SUM(G45:G47) -> 1 | I47: =IF('ShorelStab '!C15="no","NO","YES") -> NO | J47: =IF(I47="Yes",E47,0) -> 0 | K47: =SUM(J45:J47) -> 0.5
A48: Shallow Water Habitat/ Unobstructed migratory Corridor
A49: For the nearshore structures this model evaluates, the juvenile migratory corridor can be either not availiable, unobstructed, or partially impacted. For situations where the habitat is not availiable (behind hard armoring or taken up by 3D structures including piles and jetties) the after HV is set to 0. For OWS the migratorry corridor is still availiable, but obstructed and impacted based on factors including grating and elevation.
A50: 2 | B50: The model only evaluates areas accessible to fish. Areas landward of hard armoring automatically receive ovarall habitat value of 0 and are not evaluated here. | C50: This is a yes no scenario for hard armoring and is considered automatically in the HEA. The habitat value for all areas rendered inaccessible by hard armoring is set to 0. | D50: 0.45 | E50: 1 | F50: =E50 -> 1 | I50: =E50 -> 1 | M50: Shading from OWS is evaluated in the USZ 2 tab in the NHVM. Currently site-specific shading from armoring in the area waterward of armoring has not been included in model considerations.
A51: Substrate/Sediment Quality (physical) and Quantity: Active Erosion | F51: shoreline length in feet | I51: shoreline length in feet | L51: Prosser et al., 2018 | P51: For hybrid and soft: Develop assessment of potential small impact in terms of reducing lanward migration of shoreline.
A52: 3a | B52: Evaluation of active erosion depending on the typ of armoring. While the process of active erosion in response to shoreline armoring is well established (Prosser et al.,2018), specific effects may vary with key physical parameters including beach slope and location of armoring (Detheir et al, 2016). The type of shoreline armoring can affect the reflective wave rgime and resulting local coarsening of substrate and lowering of beach grade. (Nordstrom, 20014, Detheir et al., 2016) | C52: How many linear feet of the existing or proposed shoreline is natural, soft, or hybrid? | D52: 0.1 | E52: 1 | F52: 100 | G52: =E52*F52/(SUM($F$52:$F$54)+0.000000001) -> 1 | I52: 0 | J52: =E52*I52/SUM(($I$52:$I$54)+0.000000001) -> 0 | L52: F, C, M
A53: 3b | C53: How many linear feet of the existing or proposed armoring that is "Rock"? | E53: 0.2 | F53: 0 | G53: =E53*F53/(SUM($F$52:$F$54)+0.000000001) -> 0 | I53: ='ShorelStab '!C12 -> 0 | J53: =E53*I53/(SUM($I$52:$I$54)+0.000000001) -> 0 | L53: F, C, M
A54: 3c | C54: How many linear feet of the existing or proposed armoring that is "Concrete or Sheetpile"? | E54: 0 | F54: 0 | G54: =E54*F54/(SUM($F$52:$F$54)+0.000000001) -> 0 | H54: =SUM(G52:G54) -> 1 | I54: ='ShorelStab '!C13 -> 0 | J54: =E54*I54/(SUM($I$52:$I$54)+0.000000001) -> 0 | K54: =SUM(J52:J54) -> 0 | L54: F, C, M
A55: Substrate/Sediment Quality (physical) and Quantity
A56: 4a | B56: We are evlauating wether to include different value associated with different substrate types. Read lit from Janson Toft, request input from Tribes, WDFW, DNR.
A57: 4b | B57: Evaluation of effect of hard armoring on local sediment supply. At any beach, there is input of some amount of sediment and landward migration of shorline (passive erosion caused by sealevel rise (Dethier et al., 2016)). Hard armoring prevents both, the iput of sediment from upland sources to the bach and any lanward migration of the beach. Different from hard armoring, natural, soft, and hybrid shoreline allows for or includes uslope supply of sediment as well as some landward shorline migration. In front of hard armoring, we assume beach narrowing and reduction in quality. That this effect of armoring on sediment quality and quantity is especially severe at bluff backed beaches is captured in the credit factors. | D57: 0.15 | E57: 1 | G57: =IF(C34="NA",E57,0.5) -> 1 | H57: =G57 -> 1 | J57: =IF(D34="NA",E57,0.5) -> 0.5 | K57: =J57 -> 0.5 | M57: Full value of 1 assigned for natural, soft, and hybrid. Vallue assigned for hard armoring 0.5. Effect of armoring seems to be most detrimental in supply reaches and in areas with high existing armoring. Consider for next version changing impact to sediment determination from armoring to 1) apply to supply reaches, only, 2) apply to areas with existing armoring above X percent (Detheir). Use DOE publication "Mapping Bluffs and Beaches of PS to Quantify Sediment Supply" 18-06-008
A58: Vegetation
A59: 5a | B59: Vegetation Condition, select one | C59: Select “Yes” if area with elevation that would support saltmarsh vegetation is covered with >60% of upper intertidal vegetation including macro algae and saltmarsh vegetation like Salicornia sp. and Distichlis sp. | D59: 0.1 | E59: 1 | F59: =I59 -> No | G59: =IF(F59="Yes",E59,0) -> 0 | I59: =IF('ShorelStab '!C19=3,"Yes","No") -> No | J59: =IF(I59="Yes",E59,0) -> 0 | L59: M, F, C | M59: Intertidal vegetation can be expected intermittently at low wave energy beaches. Consider refining model to assess impacts/benefits separately for different wave regiemes and/or geomorphologies.
A60: 5b | C60: Select “Yes” if area with elevation that would support salmarsh vegetation is covered with >30% and <60% of upper intertidal vegetation including macro algae and saltmarsh vegetation like Salicornia sp. and Disticilis sp. | E60: 0.75 | F60: =I60 -> No | G60: =IF(F60="Yes",E60,0) -> 0 | I60: =IF('ShorelStab '!C19=2,"Yes","No") -> No | J60: =IF(I60="Yes",E60,0) -> 0 | L60: M, F, C
A61: 5c | C61: Select “Yes” if area with elevation that would support salmarsh vegetation is covered with >5% and < 30% of upper intertidal vegetation including macro algae and saltmarsh vegetation like Salicornia sp. and Disticilis sp.. | E61: 0.5 | F61: =I61 -> No | G61: =IF(F61="Yes",E61,0) -> 0 | I61: =IF('ShorelStab '!C19=1,"Yes","No") -> No | J61: =IF(I61="Yes",E61,0) -> 0
A62: 5d | C62: Select “Yes” if area with elevation that would support salmarsh vegetation is covered with <5% of upper intertidal vegetation including macro algae and saltmarsh vegetation like Salicornia sp. and Disticilis sp.. | E62: 0.25 | F62: =I62 -> Yes | G62: =IF(F62="Yes",E62,0) -> 0.25 | H62: =SUM(G59:G62) -> 0.25 | I62: =IF('ShorelStab '!C19=0,"Yes","No") -> Yes | J62: =IF(I62="Yes",E62,0) -> 0.25 | K62: =SUM(J59:J62) -> 0.25
A63: Chemical Water and Sediment Quality
A64: 6a | B64: Evaluate change in contaminants in water quality and sediment quality condition. Select one condition for before and after. Use medium for default. | C64: Good | D64: 0.1 | E64: 1 | F64: No | G64: =IF(F64="Yes",E64,0) -> 0 | I64: No | J64: =IF(I64="Yes",E64,0) -> 0 | L64: Water Quality | M64: For the removal of any structure containing AZCA-treated wood use the Conservation Calculator to enter tons of creosote to be removed. The Conservation Calculator includes standard assumptions for creosote and allows for consistent assessment.
A65: 6b | C65: Medium | E65: 0.5 | F65: Yes | G65: =IF(F65="Yes",E65,0) -> 0.5 | I65: Yes | J65: =IF(I65="Yes",E65,0) -> 0.5 | L65: Water Quality
A66: 6c | C66: Poor | E66: 0 | F66: No | G66: =IF(F66="Yes",E66,0) -> 0 | H66: =SUM(G64:G66) -> 0.5 | I66: No | J66: =IF(I66="Yes",E66,0) -> 0 | K66: =SUM(J64:J66) -> 0.5 | L66: Water Quality
A67: Habitat Value without discounting to max per zone | D67: =SUM(D45:D66) -> 1 | G67: NHV | H67: =H66*D64+H62*D59+H57*D57*H57+D50*F50+H47*D45+H54*D52 -> 0.875 | J67: NHV | K67: =K66*D64+K62*D59+K57*D57+D50*I50+K47*D45+K54*D52 -> 0.65
A68: DSAYs for USZ 1 | C68: =(NoEntryDSAYCalcualtion!M10+NoEntryDSAYCalcualtion!M327) -> 0
A69: DSAYs for USZ 2 | C69: =(NoEntryDSAYCalcualtion!W10+NoEntryDSAYCalcualtion!W327) -> 0
A70: Sum DSAYs Shoreline Stab USZ | C70: =SUM(C68:C69) -> 0

Sheet OWS Lookup Tables (hidden)
A1: Pier Lookup Tables | D1: 40 years | G1: 10 years for removal
A2: Actions | D2: DSAY | E2: MPs | F2: MPs per sqft | G2: DSAY | H2: MPs | I2: MPs per sqft | J2: NHV before | K2: NHV after | L2: Conditions | M2: LSZ: SAV cond. | N2: Notes
A3: Pier & Ramp LSZ | B3: 200 sqft pier grated | D3: -0.0305 | E3: =D3*100 -> -3.05 | F3: =E3/200 -> -0.01525 | G3: -0.011258 | H3: =G3*100 -> -1.1258 | I3: =H3/200 -> -0.005629 | J3: 0.725 | K3: 0.438 | L3: No WQ red | M3: 0
B4: 200 sqft pier grated | D4: -0.0349 | E4: -3.49 | F4: -0.01745 | G4: -0.012866 | H4: -1.2866 | I4: -0.006433 | J4: 0.8 | K4: 0.472 | L4: No WQ red | M4: 1
B5: 200 sqft pier grated | D5: -0.0392 | E5: -3.92 | F5: -0.0196 | G5: -0.014474 | H5: -1.4474 | I5: -0.007237 | J5: 0.875 | K5: 0.505 | L5: No WQ red | M5: 2
B6: 200 sqft pier grated | D6: -0.0436 | E6: -4.36 | F6: -0.0218 | G6: -0.016082 | H6: -1.6082 | I6: -0.008041 | J6: 0.95 | K6: 0.539 | L6: No WQ red | M6: 3
B7: 200 sqft pier solid | D7: -0.0418 | E7: -4.18 | F7: -0.0209 | G7: -0.01542 | H7: -1.542 | I7: -0.00771 | J7: 0.725 | K7: 0.331 | L7: No WQ red | M7: 0
B8: 200 sqft pier solid | D8: -0.0478 | E8: -4.78 | F8: -0.0239 | G8: -0.017624 | H8: -1.7624 | I8: -0.008812 | J8: 0.8 | K8: 0.35 | L8: No WQ red | M8: 1
B9: 200 sqft pier solid | D9: -0.0537 | E9: -5.37 | F9: -0.02685 | G9: -0.019827 | H9: -1.9827 | I9: -0.0099135 | J9: 0.875 | K9: 0.369 | L9: No WQ red | M9: 2
B10: 200 sqft pier solid | D10: -0.0597 | E10: -5.97 | F10: -0.02985 | G10: -0.02203 | H10: -2.203 | I10: -0.011015 | J10: 0.95 | K10: 0.388 | L10: No WQ red | M10: 3
A11: Grated pier has 90% pier grating and 60% open space.
A13: Actions | D13: DSAY | E13: MPs | F13: MPs per sqft | G13: DSAY | H13: MPs | I13: MPs per sqft | J13: NHV before | K13: NHV after | L13: Conditions | M13: Notes
A14: Pier USZ | B14: 200 sqft pier grated | D14: -0.02484 | E14: =D14*100 -> -2.484 | F14: =E14/200 -> -0.01242 | G14: -0.00917 | H14: =G14*100 -> -0.917 | I14: =H14/200 -> -0.004585 | J14: 0.653 | K14: 0.418 | L14: No WQ red
B15: 200 sqft pier solid | D15: -0.03403 | E15: =D15*100 -> -3.403 | F15: =E15/200 -> -0.017015 | G15: -0.01256 | H15: =G15*100 -> -1.256 | I15: =H15/200 -> -0.00628 | J15: 0.653 | K15: 0.332 | L15: No WQ red
A16: Pier DZ | B16: 200 sqft pier grated | D16: -0.01104 | E16: =D16*100 -> -1.104 | F16: =E16/200 -> -0.00552 | G16: -0.00407 | H16: =G16*100 -> -0.407 | I16: =H16/200 -> -0.002035 | J16: 0.37 | K16: 0.27 | L16: No WQ red
B17: 200 sqft pier solid | D17: -0.018307 | E17: =D17*100 -> -1.8307 | F17: -0.0091535 | G17: -0.006756 | H17: =G17*100 -> -0.6756 | I17: -0.003378 | J17: 0.37 | K17: 0.2 | L17: WQ red 1 cat med to poor | M17: WQ reduction for solid pier as solid piers in DZ are usually associated with industiral use including crake or vehicle use and some WQ impacts are likely from solid pier surface.
A19: Float Lookup Tables
D20: 40 years | G20: 10 years
A21: Actions | D21: DSAY | E21: MPs | F21: MPs per sqft | G21: DSAY | H21: MPs | J21: NHV before | K21: NHV after | L21: Conditions | N21: Notes
A22: USZ | B22: 240 sqft float 50% grated, 60% open space | D22: -0.05201 | E22: =D22*100 -> -5.201 | F22: =E22/240 -> -0.02167083333 | G22: -0.01919 | H22: =G22*100 -> -1.919 | I22: =H22/240 -> -0.007995833333 | J22: 0.653 | K22: 0.0244 | L22: WQ red 1 cat med to poor
B23: buffer 680 sqft = 10*(30*2+8) | D23: -0.0818 | E23: =D23*100 -> -8.18 | F23: =E23/680 -> -0.01202941176 | G23: -0.03019 | H23: =G23*100 -> -3.019 | I23: =H23/680 -> -0.004439705882 | J23: 0.653 | K23: 0.608 | L23: WQ red 1 cat med to poor
A24: Actions | D24: DSAY | E24: MPs | F24: MPs per sqft | G24: DSAY | H24: MPs | I24: MPs per sqft | J24: NHV before | K24: NHV after | L24: Conditions | M24: LSZ: SAV cond. | N24: Notes
A25: LSZ | B25: 240 sqft float 50% grated, 60% open space | D25: -0.0632 | E25: =D25*100 -> -6.32 | F25: =E25/240 -> -0.02633333333 | G25: -0.02332 | H25: =G25*100 -> -2.332 | I25: =H25/240 -> -0.009716666667 | J25: 0.725 | K25: 0.229 | L25: WQ red 1 cat med to poor | M25: 0
D26: -0.0713 | E26: -7.13 | F26: =E26/240 -> -0.02970833333 | G26: -0.02632 | H26: -2.632 | I26: =H26/240 -> -0.01096666667 | J26: 0.8 | K26: 0.24 | L26: WQ red 1 cat med to poor | M26: 1
D27: -0.0794 | E27: -7.94 | F27: =E27/240 -> -0.03308333333 | G27: -0.029315 | H27: -2.9315 | I27: =H27/240 -> -0.01221458333 | J27: 0.875 | K27: 0.251 | L27: WQ red 1 cat med to poor | M27: 2
D28: -0.0876 | E28: -8.76 | F28: =E28/240 -> -0.0365 | G28: -0.032311 | H28: -3.2311 | I28: =H28/240 -> -0.01346291667 | J28: 0.95 | K28: 0.263 | L28: WQ red 1 cat med to poor | M28: 3
B29: buffer 680 sqft = 10*(30*2+8) | D29: -0.0986 | E29: -9.86 | F29: =E29/680 -> -0.0145 | G29: -0.0363699 | H29: -3.63699 | I29: =H29/680 -> -0.005348514706 | J29: 0.725 | K29: 0.452 | L29: WQ red 1 cat med to poor | M29: 0
B30: buffer 680 sqft = 10*(30*2+8) | D30: -0.1101 | E30: -11.01 | F30: =E30/680 -> -0.01619117647 | G30: -0.040614 | H30: -4.0614 | I30: =H30/680 -> -0.005972647059 | J30: 0.8 | K30: 0.495 | L30: WQ red 1 cat med to poor | M30: 1
B31: buffer 680 sqft = 10*(30*2+8) | D31: -0.1216 | E31: -12.16 | F31: =E31/680 -> -0.01788235294 | G31: -0.044859 | H31: -4.4859 | I31: =H31/680 -> -0.006596911765 | J31: 0.875 | K31: 0.538 | L31: WQ red 1 cat med to poor | M31: 2
B32: buffer 680 sqft = 10*(30*2+8) | D32: -0.1331 | E32: -13.31 | F32: =E32/680 -> -0.01957352941 | G32: -0.049103 | H32: -4.9103 | I32: =H32/680 -> -0.007221029412 | J32: 0.95 | K32: 0.581 | L32: WQ red 1 cat med to poor | M32: 3
A33: Actions | D33: DSAY | E33: MPs | F33: MPs per sqft | G33: DSAY | H33: MPs | I33: MPs per sqft | J33: NHV before | K33: NHV after | L33: Conditions | N33: Notes
A34: DSZ | B34: 240 sqft float 50% grated, 60% open space | D34: -0.024388 | E34: =D34*100 -> -2.4388 | F34: =E34/240 -> -0.01016166667 | G34: -0.009 | H34: =G34*100 -> -0.9 | I34: =H34/240 -> -0.00375 | J34: 0.37 | K34: 0.18 | L34: WQ red 1 cat med to poor
B35: buffer 680 sqft = 10*(30*2+8) | D35: -0.039963 | E35: -3.9963 | F35: =E35/680 -> -0.005876911765 | G35: -0.014748 | H35: -1.4748 | I35: =H35/680 -> -0.002168823529 | J35: 0.37 | K35: 0.26 | L35: WQ red 1 cat med to poor
D36: 40 years | G36: 10 years
A37: Actions | D37: DSAY | E37: MPs | F37: MPs per sqft | G37: DSAY | H37: MPs | I37: MPs per sqft | J37: NHV before | K37: NHV after | L37: Conditions | M37: Veg Condition
A38: USZ | B38: 240 sqft solid float | D38: -0.060175 | E38: =D38*100 -> -6.0175 | F38: =E38/240 -> -0.02507291667 | G38: -0.02221 | H38: =G38*100 -> -2.221 | I38: =H38/240 -> -0.009254166667 | J38: 0.653 | K38: 0.18 | L38: WQ red 1 cat med to poor | M38: 0 | N38: Updated 11-1-2020, wrong NHV after value, had typo somewhere.
B39: buffer 680 sqft = 10*(30*2+8) | D39: -0.093366 | E39: =D39*100 -> -9.3366 | F39: =E39/680 -> -0.01373029412 | G39: -0.034456 | H39: =G39*100 -> -3.4456 | I39: =H39/680 -> -0.005067058824 | J39: 0.653 | K39: 0.394 | L39: WQ red 1 cat med to poor | M39: 0
A40: Actions | D40: DSAY | E40: MPs | F40: MPs per sqft | G40: DSAY | H40: MPs | I40: MPs per sqft | L40: Conditions | M40: LSZ: SAV cond.
A41: LSZ | B41: 240 sqft float solid | D41: -0.0732286 | E41: =D41*100 -> -7.32286 | F41: =E41/240 -> -0.03051191667 | G41: -0.0270241 | H41: =G41*100 -> -2.70241 | I41: =H41/240 -> -0.01126004167 | J41: 0.725 | K41: 0.15 | L41: WQ red 1 cat med to poor | M41: 0
D42: -0.0827802 | E42: -8.27802 | F42: -0.03449175 | G42: -0.030549 | H42: -3.0549 | I42: =H42/240 -> -0.01272875 | J42: 0.8 | K42: 0.15 | L42: WQ red 1 cat med to poor | M42: 1
D43: -0.0923317 | E43: -9.23317 | F43: -0.03847154167 | G43: -0.034074 | H43: -3.4074 | I43: =H43/240 -> -0.0141975 | J43: 0.875 | K43: 0.15 | L43: WQ red 1 cat med to poor | M43: 2
D44: -0.101883 | E44: =D44*100 -> -10.1883 | F44: =E44/240 -> -0.04245125 | G44: -0.037599 | H44: -3.7599 | I44: =H44/240 -> -0.01566625 | J44: 0.95 | K44: 0.15 | L44: WQ red 1 cat med to poor | M44: 3
B45: buffer 680 sqft = 10*(30*2+8) | D45: -0.1127615 | E45: =D45*100 -> -11.27615 | F45: =E45/680 -> -0.01658257353 | G45: -0.041613 | H45: -4.1613 | I45: =H45/680 -> -0.006119558824 | J45: 0.725 | K45: 0.413 | L45: WQ red 1 cat med to poor | M45: 0
B46: buffer 680 sqft = 10*(30*2+8) | D46: -0.1262928 | E46: =D46*100 -> -12.62928 | F46: =E46/680 -> -0.01857247059 | G46: -0.0466607 | H46: -4.66607 | I46: =H46/680 -> -0.006861867647 | J46: 0.8 | K46: 0.45 | L46: WQ red 1 cat med to poor | M46: 1
B47: buffer 680 sqft = 10*(30*2+8) | D47: -0.1398242 | E47: =D47*100 -> -13.98242 | F47: =E47/680 -> -0.02056238235 | G47: -0.0516 | H47: -5.16 | I47: =H47/680 -> -0.007588235294 | J47: 0.875 | K47: 0.488 | L47: WQ red 1 cat med to poor | M47: 2
B48: buffer 680 sqft = 10*(30*2+8) | D48: -0.1533556 | E48: -15.33556 | F48: -0.02255229412 | G48: -0.056594 | H48: -5.6594 | I48: =H48/680 -> -0.008322647059 | J48: 0.95 | K48: 0.525 | L48: WQ red 1 cat med to poor | M48: 3
A49: Actions | D49: DSAY | E49: MPs | F49: MPs per sqft | G49: DSAY | H49: MPs | I49: MPs per sqft | J49: NHV before | K49: NHV after | L49: Conditions | N49: Notes
A50: DSZ | B50: 240 sqft float solid | D50: -0.028018 | E50: =D50*100 -> -2.8018 | F50: =E50/240 -> -0.01167416667 | G50: -0.01034 | H50: =G50*100 -> -1.034 | I50: =H50/240 -> -0.004308333333 | J50: 0.37 | K50: 0.15 | L50: WQ red 1 cat med to poor
B51: buffer 680 sqft = 10*(30*2+8) | D51: -0.045105 | E51: =D51*100 -> -4.5105 | F51: =E51/680 -> -0.006633088235 | G51: -0.016645 | H51: -1.6645 | I51: =H51/680 -> -0.002447794118 | J51: 0.37 | K51: 0.2 | L51: WQ red 1 cat med to poor
A55: Pile Impact
A56: Assumptions for USZ and LSZ: Average pile casts 20 ft*1 ft shadow. While this might be an overestimate for some residential projects it may be an underestimate for industrial projects. Model Entry: 20 SF entered as pier area without grating and with no buffer (B19: 20). WQ = med to poor as there are still many ACZA piles installed and some steel piles have coating.
A57: Assumptions for DZ: Average pile above water casts 25 ft*1 ft shadow. While this is likely an underestimate for the often 70 ft long piles used for industrial OWS, I chose this number to account for the fact that some of the shade of piles in industrial settings overlapps with other structural elements. However, even with overlapping shading, the effect of piles under piers is a further reduction of side lighting. Thus, using the 30 ft pile shade to estimate impacts seems appropriate. Model Entry: 30 SF entered as float area without grating and with no buffer (B19: 20). WQ = med to poor as there are still many ACZA piles installed.
A58: Impact is a combination of the area that is taken up by the pile and the shaded area.
A59: Pile Lookup Tables | D59: 40 years | G59: 10 years for removal
A60: Actions | D60: DSAY | E60: MPs | F60: MPs per sqft | G60: DSAY | H60: MPs | I60: MPs per sqft | J60: NHV before | K60: NHV after | L60: Conditions | M60: LSZ: SAV cond. | N60: Notes
A61: USZ | B61: 12 inch diameter pile | D61: use LSZ no SAV values till you have tim to run through USZ with SAV | L61: WQ medium to poor
A62: LSZ | B62: 12 inch diameter pile | D62: -0.0050116 | E62: =D62*100 -> -0.50116 | F62: =E62/$D$67 -> -0.6380967302 | G62: -0.0018495 | H62: =G62*100 -> -0.18495 | I62: =H62/$D$67 -> -0.2354856538 | J62: 0.725 | K62: 0.281 | L62: WQ medium to poor | M62: 0
B63: 12 inch diameter pile | D63: -0.0056398 | E63: =D63*100 -> -0.56398 | F63: =E63/$D$67 -> -0.7180816384 | G63: -0.00220813 | H63: =G63*100 -> -0.220813 | I63: -0.2811478436 | J63: 0.8 | K63: 0.3 | L63: WQ medium to poor | M63: 1
B64: 12 inch diameter pile | D64: -0.0062681 | E64: -0.62681 | F64: -0.798079279 | G64: -0.00223131 | H64: -0.223131 | I64: -0.2840992129 | J64: 0.875 | K64: 0.319 | L64: WQ medium to poor | M64: 2
B65: 12 inch diameter pile | D65: -0.0068963 | E65: -0.68963 | F65: -0.8780641872 | G65: -0.002545 | H65: -0.2545 | I65: -0.3240394641 | J65: 0.95 | K65: 0.338 | L65: WQ medium to poor | M65: 3
A66: DZ | B66: 12 inch diameter pile | D66: -0.002443 | E66: -0.2443 | F66: -0.3110524208 | G66: -0.000901 | H66: -0.0901 | I66: -0.114718883 | J66: 0.37 | K66: 0.2 | L66: WQ medium to poor
A67: area for 1 ft diameter pile | D67: =(POWER((1/2),2)*PI()) -> 0.7853981634
A69: Forage Fish Spawning Gravel Supplementation
A70: Benefit period for HEA [years] | C70: Erosion Potential | D70: CP per 4.5 qubic feet | E70: 27 cf in 1 cubic yard
B71: 10 | C71: 1 | D71: 0.012
B72: 9 | C72: 2 | D72: 0.011
B73: 8 | C73: 3 | D73: 0.01
B74: 7 | C74: 4 | D74: 0.009
B75: 6 | C75: 5 | D75: 0.008
B76: 5 | C76: 6 | D76: 0.006
B77: 3 | C77: 7 | D77: 0.004
C78: 8
A81: Dredging
A82: Zone | B82: SAV before | C82: MP for 1,000 sqft
A83: LSZ | B83: 0 | C83: 1.05
B84: 1 | C84: 1.38
B85: 2 | C85: 1.71
B86: 3 | C86: 2.04
A87: DZ | B87: NA | C87: 0.34

Sheet shorel Stabiliz USZ remove (hidden)
A1: Cells in this tab have been modified to work together with the simplified entry mask in "ReplShorelineStab". For complex projects that don't fit the entry mask, use the stand alone Nearshore Habitat Values Model.
A2: Enter to be removed or replaced armoring here.
A3: Nearshore Habitat Value Determination Model: Upper Shore Zone Habitat Value Determination
A4: The Upper Shore Zone encompassess the area between HAT and +5 MLLW. This model determines the habitat values for before and after a change occurs, restoration or degradation, for the entire upper shore zone. Depending on the project, only part of this area is the affected area for which habitats values should be determined. The NHVM and HEA are based on evaluating differenced between before and after conditions. If areas don't experiance a change in conditions, they can be excluded. For example, if a new overwater structure is installed waterward of an existing bulkhead, the area between HAT the bulkhead does not need to be included.
A5: If several actions occur at one site, evaluate shoreline armoring effects here and OWS and boat ramp effects in the Shade and Structure Im USZ tab.
A6: Yellow cells are to fill in.
A7: Grey cells contain essential questions
A8: Gree cells contain additional explanations
A9: Orange cells contain informational summary values
A10: Light blue cells contain factors from Shade Imp tab
A11: Purple Cells indicate BPJ reduction/credit factors
A12: A 1. General Project Factors
B13: Question | C13: Input Format | D13: User Entry | E13: Notes
A14: Duration | B14: Are the project impacts/benefits permanent? | C14: Yes/No | D14: No | E14: If project impacts or benefits are not permanent make sure to select NO.
B15: For armoring installed more than 20 years ago the default entry value is 10; for armoring installed less than 20 years ago change input to 30. | C15: Years | D15: ='ShorelStab '!C25 -> 10 | E15: For simplification, we averaged the remaining existance of shoreline armoring with a 50 year design life in two categories. Armoring built 25 years or more ago has an average of 10 years design life left. Armoring built within the last 20 years has an average of 30 years of design life left.
A16: Time Lag | B16: Years Until Full Functioning Habitat | C16: Years | D16: 1 | E16: If purchasing credits through a mitigation bank, enter 1. If calculating for permittee responsible mitigation, enter how many years after the impact full function of mitigation would be achieved. For restoration, the default for achieving full function after restoration in the nearshore marine environment is 3 years. The lowest possible value is 1. Do not enter values less than 1.
B17: Maximum Habitat Value for USZ 1 | D17: 0.6 | E17: USZ 1 is MHHW to HAT
B18: Maximum Habitat Value for USZ 2 | D18: 0.9 | E18: USZ 2 is +5 MLLW to MHHW
A19: A 2. General Project Factors for Shoreline stabilization and restoration projects
B20: Automatic Area Calculations for Upper Shore Zone 1 & 2, FYI only, no user input!
C21: Linear feet Before | D21: Linear feet After | E21: SQFT waterward in respective USZ Before | F21: Acres Before | G21: SQFT waterward in respective USZ after | H21: Acres After
B22: Length (along shoreline) of area affected in the long term by project. For installation of shoreline armoring that is the length of the armoring. | C22: =C30 -> 0 | D22: =C22 -> 0
A23: USZ1 | B23: Width of Upper Shore Zone 1 landward of hard armoring [ft slope distance] | C23: =IF(C34="yes",D31,C32) -> 0 | D23: 0 | E23: =C23*C22 -> 0 | F23: =E23*0.000022956841139 -> 0 | G23: =D22*D23 -> 0 | H23: 0
A24: USZ1 | B24: Effective width of Upper Shore Zone 1 waterward of hard shoreline armoring for after/ column D. | C24: =IF(C34="yes",0,C35) -> 0 | D24: =IF(D34="NA",D31, "check entry condition") -> 0 | E24: =C24*C22 -> 0 | F24: 0 | G24: =D24*D22 -> 0 | H24: 0
A25: USZ2 | B25: Width of Upper Shore Zone 2 landward of hard armoring [ft slope distance] | C25: =IF(C34="yes",C35,0) -> 0 | D25: 0 | E25: =C25*C22 -> 0 | F25: 0 | G25: =D22*D25 -> 0 | H25: 0
A26: USZ2 | B26: Effective width of Upper Shore Zone 2 [ft slope distance], adversely affected area waterward of hard shoreline armoring in USZ 2 for after/hard armoring/column C. | C26: =C36 -> 20 | D26: 0 | E26: =C26*C22 -> 0 | F26: 0 | G26: =D26*D22 -> 0 | H26: 0
B28: Site Conditions | E28: Notes
B29: For Shoreline Stabilization | C29: Before | D29: After
B30: Length of shoreline to be altered [ft] - same for before and after | C30: =F53+F54 -> 0 | E30: =IF(C30<>SUM(I52:I54),"check length","") -> 
A31: A | B31: For natural shoreline and soft shore treatments: Distance of HAT to MHHW [ft slope distance]. For hard armoring leave empty and fill out B. | D31: ='ShorelStab '!C32 -> 0 | E31: Depending on soft shore or hard shore fill in A or B, HAT in PS varies between approx. 9 ft MLLW in Dungeness and 17 ft MLLW in Olympia. Used 25 ft as average for scenarios where existing BH prevents determination of slope distance MHHW to HAT; based on average accross 4 example profiles in PS.
A32: B | B32: For hard shoreline armoring: Distance between HAT and shoreline treatment [ft slope distance]. Leave empty for natural shoreline, soft, and hybrid. | C32: ='ShorelStab '!C32-IF('ShorelStab '!C30="yes",-'ShorelStab '!C31,'ShorelStab '!C31) -> 0 | D32: 0
A33: C | B33: Extend of armoring effects waterward of hard armoring. [ft slope distance] | D33: 20 | E33: The areal extent of effects is different for wrack, sediment corsening, beach lowering, and sediment supply/ beach shortening. While effects on wrack usually are limited to within 15 feet (pers com Dethier), the areal extent of effects is likely larger for sediment corsening, beach lowering, and sediment supply/ beach shortening. Using 20 feet is our attempt to describe the area with the most noticable effects of armoring on wrack, beach width and sediment characteristics.
A34: D1 | B34: "YES" is selected if hard shoreline armoring is at or waterward of MHHW. "NA" stands for natural, soft, or hybrid condition. | C34: =IF('ShorelStab '!C30="yes","yes","NO") -> yes | D34: NA | E34: No for shoreline armoring above MHHW.
A35: D2 | B35: Distance between MHHW and shoreline treatment [ft slope distance] | C35: ='ShorelStab '!C31 -> 0 | D35: na | E35: This is similar to relative encroachment approache in Dethier et al. 2016
A36: D3 | B36: Extent of adverse effects on CH waterward of hard armoring in USZ 2. | C36: =IF(C34="no",D33-C35,D33) -> 20 | E36: The areal extent of effects is different for wrack, sediment corsening, beach lowering, and sediment supply/ beach shortening. While effects on wrack usually are limited to within 15 feet (pers com Dethier), the areal extent of effects is likely larger for sediment corsening, beach lowering, and sediment supply/ beach shortening. Using 20 feet is our attempt to describe the area with the most noticable effects of armoring on wrack, beach width and sediment characteristics.
B37: Check | E37: These cell display a waring if the before and after distances don't add up to the same distance between HAT and + 5 MLLW
B38: The habitat value for areas landward of hard armoring is automatically set to 0 to reflect a complete loss of access and sediment supply. If such areas are planted with riparian vegetation the value as riparian habitat can reflected in the riparian tab. For such situations impervious surface should be selected as the before habitat condition in the riparian tab.
A39: B. Habitat Evaluation USZ 1&2
F41: Before | I41: After
F42: Only areas waterward of hard armoring that are accessilbe to fish are evaluated. Areas landward of hard armoring automatically receive a habitat value of 0.
A43: # | B43: Indicator of Physical Habitat/ Physical and Biological Features | C43: Rating Questions | D43: Percent Influence of Indicator on Habitat Value | E43: Scores 0 to 1 | F43: Site Condition | G43: Category specific Score | H43: Indicator Specific Summary Score | I43: Site Condition | J43: Category specific Score | K43: Indicator Specific Summary Score | L43: Elements of Nearshore Marine PCEs addressed | M43: Notes
A44: Shoreline Complexity: Beach Logs and Wrack
A45: 1a | B45: Habitat Function from large wood and/or beach wrack. Evaluate how much beach wrack and wood are present and what function they provides to site. (Sobocinski et al 2010; Heerhartz et al. 2014, 2016; Strain et al. 2018) | C45: Beach logs and wrack line provide full function. Chose this option for hybrid and soft armoring and natural shoreline. | D45: 0.1 | E45: 1 | F45: No | G45: =IF(F45="Yes",E45,0) -> 0 | I45: Yes | J45: =IF(I45="Yes",E45,0) -> 1 | L45: F,C | M45: Shoreline complexity including shallow-sloped banks with rack and beach logs as well as undercut banks provide food and cover to juvenile salmonids.
A46: 1b | C46: Beach logs and wrack line provide medium function. Choose this option for hard armoring above MHHW. | E46: 0.5 | F46: =IF('ShorelStab '!C30="no","YES","NO") -> NO | G46: =IF(F46="Yes",E46,0) -> 0 | I46: No | J46: =IF(I46="Yes",E46,0) -> 0
A47: 1c | C47: Beach logs provide little to no function. Choose this option for shoreline armoring at or below MHHW. | E47: 0 | F47: =IF('ShorelStab '!C30="no","NO","YES") -> YES | G47: =IF(F47="Yes",E47,0) -> 0 | H47: =SUM(G45:G47) -> 0 | I47: No | J47: =IF(I47="Yes",E47,0) -> 0 | K47: =SUM(J45:J47) -> 1
A48: Shallow Water Habitat/ Unobstructed migratory Corridor
A49: For the nearshore structures this model evaluates, the juvenile migratory corridor can be either not availiable, unobstructed, or partially impacted. For situations where the habitat is not availiable (behind hard armoring or taken up by 3D structures including piles and jetties) the after HV is set to 0. For OWS the migratorry corridor is still availiable, but obstructed and impacted based on factors including grating and elevation.
A50: 2 | B50: The model only evaluates areas accessible to fish. Areas landward of hard armoring automatically receive ovarall habitat value of 0 and are not evaluated here. | C50: This is a yes no scenario for hard armoring and is considered automatically in the HEA. The habitat value for all areas rendered inaccessible by hard armoring is set to 0. | D50: 0.45 | E50: 1 | F50: =E50 -> 1 | I50: =E50 -> 1
A51: Substrate/Sediment Quality (physical) and Quantity: Active Erosion | F51: shoreline length in feet | I51: shoreline length in feet | L51: Prosser et al., 2018
A52: 3a | B52: Evaluation of active erosion depending on the typ of armoring. While the process of active erosion in response to shoreline armoring is well established (Prosser et al.,2018), specific effects may vary with key physical parameters including beach slope and location of armoring (Detheir et al, 2016). The type of shoreline armoring can affect the reflective wave rgime and resulting local coarsening of substrate and lowering of beach grade. steeper and coarser-grained beaches (Nordstrom, 20014, Detheir et al., 2016) | C52: How many linear feet of the existing or proposed shoreline is natural, soft, or hybrid? | D52: 0.1 | E52: 1 | F52: 0 | G52: =E52*F52/(SUM($F$52:$F$54)+0.000000001) -> 0 | I52: =F53+F54 -> 0 | J52: =E52*I52/SUM(($I$52:$I$54)+0.000000001) -> 0 | L52: F, C, M | N52: For hybrid and soft: Develop assessment of potential small impact in terms of reducing lanward migration of shoreline.
A53: 3b | C53: How many linear feet of the existing or proposed armoring that is "Rock"? | E53: 0.2 | F53: ='ShorelStab '!C27 -> 0 | G53: =E53*F53/(SUM($F$52:$F$54)+0.000000001) -> 0 | I53: 0 | J53: =E53*I53/(SUM($I$52:$I$54)+0.000000001) -> 0 | L53: F, C, M
A54: 3c | C54: How many linear feet of the existing or proposed armoring that is "Concrete or Sheetpile"? | E54: 0 | F54: ='ShorelStab '!C28 -> 0 | G54: =E54*F54/(SUM($F$52:$F$54)+0.000000001) -> 0 | H54: =SUM(G52:G54) -> 0 | I54: 0 | J54: =E54*I54/(SUM($I$52:$I$54)+0.000000001) -> 0 | K54: =SUM(J52:J54) -> 0 | L54: F, C, M
A55: Substrate/Sediment Quality (physical) and Quantity
A56: 4a | B56: We are evlauating wether to include different value associated with different substrate types. Read lit from Janson Toft, request input from Tribes, WDFW, DNR.
A57: 4b | B57: Evaluation of effect of hard armoring on local sediment supply. At any beach, there is input of some amount of sediment and landward migration of shorline (passive erosion caused by sealevel rise (Dethier et al., 2016)). Hard armoring prevents both, the iput of sediment from upland sources to the bach and any lanward migration of the beach. Different from hard armoring, natural, soft, and hybrid shoreline allows for or includes uslope supply of sediment as well as some landward shorline migration. In front of hard armoring, we assume beach narrowing and reduction in quality. That this effect of armoring on sediment quality and quantity is especially severe at bluff backed beaches is captured in the credit factors. | D57: 0.15 | E57: 1 | G57: =IF(C34="NA",E57,0.5) -> 0.5 | H57: =G57 -> 0.5 | J57: =IF(D34="NA",E57,0.5) -> 1 | K57: =J57 -> 1 | M57: Full value of 1 assigned for natural, soft, and hybrid. Vallue assigned for hard armoring 0.5. Effect of armoring seems to be most detrimental in supply reaches and in areas with high existing armoring. Consider for next version changing impact to sediment determination from armoring to 1) apply to supply reaches, only, 2) apply to areas with existing armoring above X percent (Detheir). Use DOE publication "Mapping Bluffs and Beaches of PS to Quantify Sediment Supply" 18-06-008
A58: Vegetation
A59: 5a | B59: Vegetation Condition, select one: 1) Bulkhead Removal At locations with existing shorline armoring it is often difficult to determine whether any salmarsh vegetation will re-establish after removal of hard armoring. Thus, unless the surrounding location gives strong indication for vegetation establishment, select 5d as the default after condition when evaluating bulkhead removal. 2) Bulkhead replacement select 5d (no vegetation) for before and after. | C59: Select “Yes” if area with elevation that would support saltmarsh vegetation is covered with >60% of upper intertidal vegetation including macro algae and saltmarsh vegetation like Salicornia sp. and Distichlis sp. | D59: 0.1 | E59: 1 | F59: =IF('ShorelStab '!C34=3,"yes","No") -> No | G59: =IF(F59="Yes",E59,0) -> 0 | I59: =F59 -> No | J59: =IF(I59="Yes",E59,0) -> 0 | L59: M, F, C
A60: 5b | C60: Select “Yes” if area with elevation that would support salmarsh vegetation is covered with >30% and <60% of upper intertidal vegetation including macro algae and saltmarsh vegetation like Salicornia sp. and Disticilis sp. | E60: 0.75 | F60: =IF('ShorelStab '!C34=2,"yes","No") -> No | G60: =IF(F60="Yes",E60,0) -> 0 | I60: =F60 -> No | J60: =IF(I60="Yes",E60,0) -> 0 | L60: M, F, C
A61: 5c | C61: Select “Yes” if area with elevation that would support salmarsh vegetation is covered with >5% and < 30% of upper intertidal vegetation including macro algae and saltmarsh vegetation like Salicornia sp. and Disticilis sp.. | E61: 0.5 | F61: =IF('ShorelStab '!C34=1,"yes","No") -> No | G61: =IF(F61="Yes",E61,0) -> 0 | I61: =F61 -> No | J61: =IF(I61="Yes",E61,0) -> 0
A62: 5d | C62: Select “Yes” if area with elevation that would support salmarsh vegetation is covered with <5% of upper intertidal vegetation including macro algae and saltmarsh vegetation like Salicornia sp. and Disticilis sp.. | E62: 0.25 | F62: =IF('ShorelStab '!C34=0,"yes","No") -> yes | G62: =IF(F62="Yes",E62,0) -> 0.25 | H62: =SUM(G59:G62) -> 0.25 | I62: =F62 -> yes | J62: =IF(I62="Yes",E62,0) -> 0.25 | K62: =SUM(J59:J62) -> 0.25
A63: Chemical Water and Sediment Quality
A64: 6a | B64: Evaluate change in contaminants in water quality and sediment quality condition. Select one condition for before and after. Use medium for default. | C64: Good | D64: 0.1 | E64: 1 | F64: No | G64: =IF(F64="Yes",E64,0) -> 0 | I64: No | J64: =IF(I64="Yes",E64,0) -> 0 | L64: Water Quality | M64: For the removal of any structure containing AZCA-treated wood use the Conservation Calculator to enter tons of creosote to be removed. The Conservation Calculator includes standard assumptions for creosote and allows for consistent assessment.
A65: 6b | C65: Medium | E65: 0.5 | F65: Yes | G65: =IF(F65="Yes",E65,0) -> 0.5 | I65: Yes | J65: =IF(I65="Yes",E65,0) -> 0.5 | L65: Water Quality
A66: 6c | C66: Poor | E66: 0 | F66: No | G66: =IF(F66="Yes",E66,0) -> 0 | H66: =SUM(G64:G66) -> 0.5 | I66: Yes | J66: =IF(I66="Yes",E66,0) -> 0 | K66: =SUM(J64:J66) -> 0.5 | L66: Water Quality
A67: Habitat Value without discounting to max per zone | D67: =SUM(D44:D66) -> 1 | G67: NHV | H67: =H66*D64+H62*D59+H57*D57+H54*D52+D50*F50+H47*D45 -> 0.6 | J67: NHV | K67: =K66*D64+K62*D59+K57*D57+K54*D52+D50*I50+K47*D45 -> 0.775
A68: DSAYs for USZ 1 | C68: =(NoEntryDSAYCalcualtion!AH10+NoEntryDSAYCalcualtion!AH327) -> 0 | J68: NHV USZ 1 | K68: =K67*D17 -> 0.465 | L68: NHV times max CF
A69: DSAYs for USZ 2 | C69: =(NoEntryDSAYCalcualtion!AR10+NoEntryDSAYCalcualtion!AR327) -> 0
A70: Sum DSAYs Shoreline Stab USZ | C70: =SUM(C68:C69) -> 0

Sheet RZ HEA (hidden)
A1: Restoration Calculator | E1: This sheet calculates the habitat service value of a single restoration treatment over a single habitat, with a single lift in habitat function.
A3: Model Assumptions | D3: Summary
A4: Project Name | B4: Riparian | D4: DSAYs | E4: =LOOKUP(B15+B20,A1:A325,I1:I325) -> 0
A5: Base year | B5: 2020 | D5: DSAYs/Acre | E5: =E4/B7 -> 0
A6: Discount Rate | B6: 0.03
A7: Site Area (acres) | B7: =RZ!E23 -> 2.295684114e-14
A9: Before Restoration Treatment
A10: Habitat Value Before | B10: =RZ!F22 -> 0
A11: Habitat Degradation Before | B11: 0
A12: Baseline Service Value (0-1) | B12: =B10-(B10*B11) -> 0
A14: After Restoration Treatment
A15: Treatment Year | B15: =B5+RZ!D9 -> 2021
A16: Habitat Value After | B16: =RZ!H22 -> 0
A17: Habitat Degradation After | B17: 0
A18: Restored Service Value (0-1) | B18: =B16-(B16*B17) -> 0
A19: Years to Full Function | B19: =RZ!I22 -> 0
A20: Service Life (years) | B20: =IF(RZ!D7="no",RZ!D8,300) -> 40
A21: Annual Increment | B21: =IF(B19>0,(B18-B12)/B19,B18-B12) -> 0
A22: Full Function Year | B22: 2030
A24: Year | B24: Habitat Value Before | C24: Habitat Value After | D24: Habitat Lift | E24: Service Acre Year Increment Gain | F24: Service Acre Year Cumulative Gain | G24: Discount Adjustment | H24: DSAY Increment | I24: DSAYs Cumulative
A25: =B15-1 -> 2020 | B25: =$B$12 -> 0 | C25: =IF(A25<$B$15,$B$12,IF(AND(A25>=$B$15,A25<$B$22),$B$12+($B$21*(A25-$B$15+1)),IF(A25<$B$15+$B$20,$B$18,$B$12))) -> 0 | D25: =IF(A25<$B$15+$B$20,(C25-B25),0) -> 0 | E25: =IF(A25<$B$15+$B$20,$B$7*D25,0) -> 0 | F25: =E25 -> 0 | G25: =IF(A25=$B$5,1,IF(A25<$B$5,(1+$B$6)^($B$5-A25),(1-$B$6)^(-1*($B$5-A25)))) -> 1 | H25: =E25*G25 -> 0 | I25: =H25 -> 0
A26: =A25+1 -> 2021 | B26: 0 | C26: 0 | D26: 0 | E26: 0 | F26: =F25+E26 -> 0 | G26: =IF(A26=$B$5,1,IF(A26<$B$5,(1+$B$6)^($B$5-A26),(1-$B$6)^(-1*($B$5-A26)))) -> 0.97 | H26: 0 | I26: =I25+H26 -> 0
A27: 2022 | B27: 0 | C27: 0 | D27: 0 | E27: 0 | F27: 0 | G27: 0.9409 | H27: 0 | I27: 0
A28: 2023 | B28: 0 | C28: 0 | D28: 0 | E28: 0 | F28: 0 | G28: 0.912673 | H28: 0 | I28: 0
A29: 2024 | B29: 0 | C29: 0 | D29: 0 | E29: 0 | F29: 0 | G29: 0.88529281 | H29: 0 | I29: 0
A30: 2025 | B30: 0 | C30: 0 | D30: 0 | E30: 0 | F30: 0 | G30: 0.8587340257 | H30: 0 | I30: 0
A31: 2026 | B31: 0 | C31: 0 | D31: 0 | E31: 0 | F31: 0 | G31: 0.8329720049 | H31: 0 | I31: 0
A32: 2027 | B32: 0 | C32: 0 | D32: 0 | E32: 0 | F32: 0 | G32: 0.8079828448 | H32: 0 | I32: 0
A33: 2028 | B33: 0 | C33: 0 | D33: 0 | E33: 0 | F33: 0 | G33: 0.7837433594 | H33: 0 | I33: 0
A34: 2029 | B34: 0 | C34: 0 | D34: 0 | E34: 0 | F34: 0 | G34: 0.7602310587 | H34: 0 | I34: 0
A35: 2030 | B35: 0 | C35: 0 | D35: 0 | E35: 0 | F35: 0 | G35: 0.7374241269 | H35: 0 | I35: 0
A36: 2031 | B36: 0 | C36: 0 | D36: 0 | E36: 0 | F36: 0 | G36: 0.7153014031 | H36: 0 | I36: 0
A37: 2032 | B37: 0 | C37: 0 | D37: 0 | E37: 0 | F37: 0 | G37: 0.693842361 | H37: 0 | I37: 0
A38: 2033 | B38: 0 | C38: 0 | D38: 0 | E38: 0 | F38: 0 | G38: 0.6730270902 | H38: 0 | I38: 0
A39: 2034 | B39: 0 | C39: 0 | D39: 0 | E39: 0 | F39: 0 | G39: 0.6528362775 | H39: 0 | I39: 0
A40: 2035 | B40: 0 | C40: 0 | D40: 0 | E40: 0 | F40: 0 | G40: 0.6332511891 | H40: 0 | I40: 0
A41: 2036 | B41: 0 | C41: 0 | D41: 0 | E41: 0 | F41: 0 | G41: 0.6142536535 | H41: 0 | I41: 0
A42: 2037 | B42: 0 | C42: 0 | D42: 0 | E42: 0 | F42: 0 | G42: 0.5958260439 | H42: 0 | I42: 0
A43: 2038 | B43: 0 | C43: 0 | D43: 0 | E43: 0 | F43: 0 | G43: 0.5779512625 | H43: 0 | I43: 0
A44: 2039 | B44: 0 | C44: 0 | D44: 0 | E44: 0 | F44: 0 | G44: 0.5606127247 | H44: 0 | I44: 0
A45: 2040 | B45: 0 | C45: 0 | D45: 0 | E45: 0 | F45: 0 | G45: 0.5437943429 | H45: 0 | I45: 0
A46: 2041 | B46: 0 | C46: 0 | D46: 0 | E46: 0 | F46: 0 | G46: 0.5274805126 | H46: 0 | I46: 0
A47: 2042 | B47: 0 | C47: 0 | D47: 0 | E47: 0 | F47: 0 | G47: 0.5116560973 | H47: 0 | I47: 0
A48: 2043 | B48: 0 | C48: 0 | D48: 0 | E48: 0 | F48: 0 | G48: 0.4963064143 | H48: 0 | I48: 0
A49: 2044 | B49: 0 | C49: 0 | D49: 0 | E49: 0 | F49: 0 | G49: 0.4814172219 | H49: 0 | I49: 0
A50: 2045 | B50: 0 | C50: 0 | D50: 0 | E50: 0 | F50: 0 | G50: 0.4669747053 | H50: 0 | I50: 0
A51: 2046 | B51: 0 | C51: 0 | D51: 0 | E51: 0 | F51: 0 | G51: 0.4529654641 | H51: 0 | I51: 0
A52: 2047 | B52: 0 | C52: 0 | D52: 0 | E52: 0 | F52: 0 | G52: 0.4393765002 | H52: 0 | I52: 0
A53: 2048 | B53: 0 | C53: 0 | D53: 0 | E53: 0 | F53: 0 | G53: 0.4261952052 | H53: 0 | I53: 0
A54: 2049 | B54: 0 | C54: 0 | D54: 0 | E54: 0 | F54: 0 | G54: 0.413409349 | H54: 0 | I54: 0
A55: 2050 | B55: 0 | C55: 0 | D55: 0 | E55: 0 | F55: 0 | G55: 0.4010070685 | H55: 0 | I55: 0
A56: 2051 | B56: 0 | C56: 0 | D56: 0 | E56: 0 | F56: 0 | G56: 0.3889768565 | H56: 0 | I56: 0
A57: 2052 | B57: 0 | C57: 0 | D57: 0 | E57: 0 | F57: 0 | G57: 0.3773075508 | H57: 0 | I57: 0
A58: 2053 | B58: 0 | C58: 0 | D58: 0 | E58: 0 | F58: 0 | G58: 0.3659883243 | H58: 0 | I58: 0
A59: 2054 | B59: 0 | C59: 0 | D59: 0 | E59: 0 | F59: 0 | G59: 0.3550086745 | H59: 0 | I59: 0
A60: 2055 | B60: 0 | C60: 0 | D60: 0 | E60: 0 | F60: 0 | G60: 0.3443584143 | H60: 0 | I60: 0
A61: 2056 | B61: 0 | C61: 0 | D61: 0 | E61: 0 | F61: 0 | G61: 0.3340276619 | H61: 0 | I61: 0
A62: 2057 | B62: 0 | C62: 0 | D62: 0 | E62: 0 | F62: 0 | G62: 0.324006832 | H62: 0 | I62: 0
A63: 2058 | B63: 0 | C63: 0 | D63: 0 | E63: 0 | F63: 0 | G63: 0.3142866271 | H63: 0 | I63: 0
A64: 2059 | B64: 0 | C64: 0 | D64: 0 | E64: 0 | F64: 0 | G64: 0.3048580282 | H64: 0 | I64: 0
A65: 2060 | B65: 0 | C65: 0 | D65: 0 | E65: 0 | F65: 0 | G65: 0.2957122874 | H65: 0 | I65: 0
A66: 2061 | B66: 0 | C66: 0 | D66: 0 | E66: 0 | F66: 0 | G66: 0.2868409188 | H66: 0 | I66: 0
A67: 2062 | B67: 0 | C67: 0 | D67: 0 | E67: 0 | F67: 0 | G67: 0.2782356912 | H67: 0 | I67: 0
A68: 2063 | B68: 0 | C68: 0 | D68: 0 | E68: 0 | F68: 0 | G68: 0.2698886205 | H68: 0 | I68: 0
A69: 2064 | B69: 0 | C69: 0 | D69: 0 | E69: 0 | F69: 0 | G69: 0.2617919619 | H69: 0 | I69: 0
A70: 2065 | B70: 0 | C70: 0 | D70: 0 | E70: 0 | F70: 0 | G70: 0.253938203 | H70: 0 | I70: 0
A71: 2066 | B71: 0 | C71: 0 | D71: 0 | E71: 0 | F71: 0 | G71: 0.2463200569 | H71: 0 | I71: 0
A72: 2067 | B72: 0 | C72: 0 | D72: 0 | E72: 0 | F72: 0 | G72: 0.2389304552 | H72: 0 | I72: 0
A73: 2068 | B73: 0 | C73: 0 | D73: 0 | E73: 0 | F73: 0 | G73: 0.2317625416 | H73: 0 | I73: 0
A74: 2069 | B74: 0 | C74: 0 | D74: 0 | E74: 0 | F74: 0 | G74: 0.2248096653 | H74: 0 | I74: 0
A75: 2070 | B75: 0 | C75: 0 | D75: 0 | E75: 0 | F75: 0 | G75: 0.2180653753 | H75: 0 | I75: 0
A76: 2071 | B76: 0 | C76: 0 | D76: 0 | E76: 0 | F76: 0 | G76: 0.2115234141 | H76: 0 | I76: 0
A77: 2072 | B77: 0 | C77: 0 | D77: 0 | E77: 0 | F77: 0 | G77: 0.2051777117 | H77: 0 | I77: 0
A78: 2073 | B78: 0 | C78: 0 | D78: 0 | E78: 0 | F78: 0 | G78: 0.1990223803 | H78: 0 | I78: 0
A79: 2074 | B79: 0 | C79: 0 | D79: 0 | E79: 0 | F79: 0 | G79: 0.1930517089 | H79: 0 | I79: 0
A80: 2075 | B80: 0 | C80: 0 | D80: 0 | E80: 0 | F80: 0 | G80: 0.1872601576 | H80: 0 | I80: 0
A81: 2076 | B81: 0 | C81: 0 | D81: 0 | E81: 0 | F81: 0 | G81: 0.1816423529 | H81: 0 | I81: 0
A82: 2077 | B82: 0 | C82: 0 | D82: 0 | E82: 0 | F82: 0 | G82: 0.1761930823 | H82: 0 | I82: 0
A83: 2078 | B83: 0 | C83: 0 | D83: 0 | E83: 0 | F83: 0 | G83: 0.1709072899 | H83: 0 | I83: 0
A84: 2079 | B84: 0 | C84: 0 | D84: 0 | E84: 0 | F84: 0 | G84: 0.1657800712 | H84: 0 | I84: 0
A85: 2080 | B85: 0 | C85: 0 | D85: 0 | E85: 0 | F85: 0 | G85: 0.160806669 | H85: 0 | I85: 0
A86: 2081 | B86: 0 | C86: 0 | D86: 0 | E86: 0 | F86: 0 | G86: 0.155982469 | H86: 0 | I86: 0
A87: 2082 | B87: 0 | C87: 0 | D87: 0 | E87: 0 | F87: 0 | G87: 0.1513029949 | H87: 0 | I87: 0
A88: 2083 | B88: 0 | C88: 0 | D88: 0 | E88: 0 | F88: 0 | G88: 0.146763905 | H88: 0 | I88: 0
A89: 2084 | B89: 0 | C89: 0 | D89: 0 | E89: 0 | F89: 0 | G89: 0.1423609879 | H89: 0 | I89: 0
A90: =A89+1 -> 2085 | B90: 0 | C90: 0 | D90: 0 | E90: 0 | F90: =F89+E90 -> 0 | G90: 0.1380901582 | H90: 0 | I90: =I89+H90 -> 0
A91: 2086 | B91: 0 | C91: 0 | D91: 0 | E91: 0 | F91: 0 | G91: 0.1339474535 | H91: 0 | I91: 0
A92: 2087 | B92: 0 | C92: 0 | D92: 0 | E92: 0 | F92: 0 | G92: 0.1299290299 | H92: 0 | I92: 0
A93: 2088 | B93: 0 | C93: 0 | D93: 0 | E93: 0 | F93: 0 | G93: 0.126031159 | H93: 0 | I93: 0
A94: 2089 | B94: 0 | C94: 0 | D94: 0 | E94: 0 | F94: 0 | G94: 0.1222502242 | H94: 0 | I94: 0
A95: 2090 | B95: 0 | C95: 0 | D95: 0 | E95: 0 | F95: 0 | G95: 0.1185827175 | H95: 0 | I95: 0
A96: 2091 | B96: 0 | C96: 0 | D96: 0 | E96: 0 | F96: 0 | G96: 0.115025236 | H96: 0 | I96: 0
A97: 2092 | B97: 0 | C97: 0 | D97: 0 | E97: 0 | F97: 0 | G97: 0.1115744789 | H97: 0 | I97: 0
A98: 2093 | B98: 0 | C98: 0 | D98: 0 | E98: 0 | F98: 0 | G98: 0.1082272445 | H98: 0 | I98: 0
A99: 2094 | B99: 0 | C99: 0 | D99: 0 | E99: 0 | F99: 0 | G99: 0.1049804272 | H99: 0 | I99: 0
A100: 2095 | B100: 0 | C100: 0 | D100: 0 | E100: 0 | F100: 0 | G100: 0.1018310144 | H100: 0 | I100: 0
A101: 2096 | B101: 0 | C101: 0 | D101: 0 | E101: 0 | F101: 0 | G101: 0.09877608395 | H101: 0 | I101: 0
A102: 2097 | B102: 0 | C102: 0 | D102: 0 | E102: 0 | F102: 0 | G102: 0.09581280143 | H102: 0 | I102: 0
A103: 2098 | B103: 0 | C103: 0 | D103: 0 | E103: 0 | F103: 0 | G103: 0.09293841739 | H103: 0 | I103: 0
A104: 2099 | B104: 0 | C104: 0 | D104: 0 | E104: 0 | F104: 0 | G104: 0.09015026486 | H104: 0 | I104: 0
A105: 2100 | B105: 0 | C105: 0 | D105: 0 | E105: 0 | F105: 0 | G105: 0.08744575692 | H105: 0 | I105: 0
A106: 2101 | B106: 0 | C106: 0 | D106: 0 | E106: 0 | F106: 0 | G106: 0.08482238421 | H106: 0 | I106: 0
A107: 2102 | B107: 0 | C107: 0 | D107: 0 | E107: 0 | F107: 0 | G107: 0.08227771268 | H107: 0 | I107: 0
A108: 2103 | B108: 0 | C108: 0 | D108: 0 | E108: 0 | F108: 0 | G108: 0.0798093813 | H108: 0 | I108: 0
A109: 2104 | B109: 0 | C109: 0 | D109: 0 | E109: 0 | F109: 0 | G109: 0.07741509987 | H109: 0 | I109: 0
A110: 2105 | B110: 0 | C110: 0 | D110: 0 | E110: 0 | F110: 0 | G110: 0.07509264687 | H110: 0 | I110: 0
A111: 2106 | B111: 0 | C111: 0 | D111: 0 | E111: 0 | F111: 0 | G111: 0.07283986746 | H111: 0 | I111: 0
A112: 2107 | B112: 0 | C112: 0 | D112: 0 | E112: 0 | F112: 0 | G112: 0.07065467144 | H112: 0 | I112: 0
A113: 2108 | B113: 0 | C113: 0 | D113: 0 | E113: 0 | F113: 0 | G113: 0.0685350313 | H113: 0 | I113: 0
A114: 2109 | B114: 0 | C114: 0 | D114: 0 | E114: 0 | F114: 0 | G114: 0.06647898036 | H114: 0 | I114: 0
A115: 2110 | B115: 0 | C115: 0 | D115: 0 | E115: 0 | F115: 0 | G115: 0.06448461095 | H115: 0 | I115: 0
A116: 2111 | B116: 0 | C116: 0 | D116: 0 | E116: 0 | F116: 0 | G116: 0.06255007262 | H116: 0 | I116: 0
A117: 2112 | B117: 0 | C117: 0 | D117: 0 | E117: 0 | F117: 0 | G117: 0.06067357044 | H117: 0 | I117: 0
A118: 2113 | B118: 0 | C118: 0 | D118: 0 | E118: 0 | F118: 0 | G118: 0.05885336333 | H118: 0 | I118: 0
A119: 2114 | B119: 0 | C119: 0 | D119: 0 | E119: 0 | F119: 0 | G119: 0.05708776243 | H119: 0 | I119: 0
A120: 2115 | B120: 0 | C120: 0 | D120: 0 | E120: 0 | F120: 0 | G120: 0.05537512955 | H120: 0 | I120: 0
A121: 2116 | B121: 0 | C121: 0 | D121: 0 | E121: 0 | F121: 0 | G121: 0.05371387567 | H121: 0 | I121: 0
A122: 2117 | B122: 0 | C122: 0 | D122: 0 | E122: 0 | F122: 0 | G122: 0.0521024594 | H122: 0 | I122: 0
A123: 2118 | B123: 0 | C123: 0 | D123: 0 | E123: 0 | F123: 0 | G123: 0.05053938562 | H123: 0 | I123: 0
A124: 2119 | B124: 0 | C124: 0 | D124: 0 | E124: 0 | F124: 0 | G124: 0.04902320405 | H124: 0 | I124: 0
A125: 2120 | B125: 0 | C125: 0 | D125: 0 | E125: 0 | F125: 0 | G125: 0.04755250793 | H125: 0 | I125: 0
A126: 2121 | B126: 0 | C126: 0 | D126: 0 | E126: 0 | F126: 0 | G126: 0.04612593269 | H126: 0 | I126: 0
A127: 2122 | B127: 0 | C127: 0 | D127: 0 | E127: 0 | F127: 0 | G127: 0.04474215471 | H127: 0 | I127: 0
A128: 2123 | B128: 0 | C128: 0 | D128: 0 | E128: 0 | F128: 0 | G128: 0.04339989007 | H128: 0 | I128: 0
A129: 2124 | B129: 0 | C129: 0 | D129: 0 | E129: 0 | F129: 0 | G129: 0.04209789336 | H129: 0 | I129: 0
A130: 2125 | B130: 0 | C130: 0 | D130: 0 | E130: 0 | F130: 0 | G130: 0.04083495656 | H130: 0 | I130: 0
A131: 2126 | B131: 0 | C131: 0 | D131: 0 | E131: 0 | F131: 0 | G131: 0.03960990787 | H131: 0 | I131: 0
A132: 2127 | B132: 0 | C132: 0 | D132: 0 | E132: 0 | F132: 0 | G132: 0.03842161063 | H132: 0 | I132: 0
A133: 2128 | B133: 0 | C133: 0 | D133: 0 | E133: 0 | F133: 0 | G133: 0.03726896231 | H133: 0 | I133: 0
A134: 2129 | B134: 0 | C134: 0 | D134: 0 | E134: 0 | F134: 0 | G134: 0.03615089344 | H134: 0 | I134: 0
A135: 2130 | B135: 0 | C135: 0 | D135: 0 | E135: 0 | F135: 0 | G135: 0.03506636664 | H135: 0 | I135: 0
A136: 2131 | B136: 0 | C136: 0 | D136: 0 | E136: 0 | F136: 0 | G136: 0.03401437564 | H136: 0 | I136: 0
A137: 2132 | B137: 0 | C137: 0 | D137: 0 | E137: 0 | F137: 0 | G137: 0.03299394437 | H137: 0 | I137: 0
A138: 2133 | B138: 0 | C138: 0 | D138: 0 | E138: 0 | F138: 0 | G138: 0.03200412604 | H138: 0 | I138: 0
A139: 2134 | B139: 0 | C139: 0 | D139: 0 | E139: 0 | F139: 0 | G139: 0.03104400226 | H139: 0 | I139: 0
A140: 2135 | B140: 0 | C140: 0 | D140: 0 | E140: 0 | F140: 0 | G140: 0.03011268219 | H140: 0 | I140: 0
A141: 2136 | B141: 0 | C141: 0 | D141: 0 | E141: 0 | F141: 0 | G141: 0.02920930172 | H141: 0 | I141: 0
A142: 2137 | B142: 0 | C142: 0 | D142: 0 | E142: 0 | F142: 0 | G142: 0.02833302267 | H142: 0 | I142: 0
A143: 2138 | B143: 0 | C143: 0 | D143: 0 | E143: 0 | F143: 0 | G143: 0.02748303199 | H143: 0 | I143: 0
A144: 2139 | B144: 0 | C144: 0 | D144: 0 | E144: 0 | F144: 0 | G144: 0.02665854103 | H144: 0 | I144: 0
A145: 2140 | B145: 0 | C145: 0 | D145: 0 | E145: 0 | F145: 0 | G145: 0.0258587848 | H145: 0 | I145: 0
A146: 2141 | B146: 0 | C146: 0 | D146: 0 | E146: 0 | F146: 0 | G146: 0.02508302126 | H146: 0 | I146: 0
A147: 2142 | B147: 0 | C147: 0 | D147: 0 | E147: 0 | F147: 0 | G147: 0.02433053062 | H147: 0 | I147: 0
A148: 2143 | B148: 0 | C148: 0 | D148: 0 | E148: 0 | F148: 0 | G148: 0.0236006147 | H148: 0 | I148: 0
A149: 2144 | B149: 0 | C149: 0 | D149: 0 | E149: 0 | F149: 0 | G149: 0.02289259626 | H149: 0 | I149: 0
A150: 2145 | B150: 0 | C150: 0 | D150: 0 | E150: 0 | F150: 0 | G150: 0.02220581837 | H150: 0 | I150: 0
A151: 2146 | B151: 0 | C151: 0 | D151: 0 | E151: 0 | F151: 0 | G151: 0.02153964382 | H151: 0 | I151: 0
A152: 2147 | B152: 0 | C152: 0 | D152: 0 | E152: 0 | F152: 0 | G152: 0.02089345451 | H152: 0 | I152: 0
A153: 2148 | B153: 0 | C153: 0 | D153: 0 | E153: 0 | F153: 0 | G153: 0.02026665087 | H153: 0 | I153: 0
A154: =A153+1 -> 2149 | B154: 0 | C154: 0 | D154: 0 | E154: 0 | F154: =F153+E154 -> 0 | G154: 0.01965865135 | H154: 0 | I154: =I153+H154 -> 0
A155: 2150 | B155: 0 | C155: 0 | D155: 0 | E155: 0 | F155: 0 | G155: 0.01906889181 | H155: 0 | I155: 0
A156: 2151 | B156: 0 | C156: 0 | D156: 0 | E156: 0 | F156: 0 | G156: 0.01849682505 | H156: 0 | I156: 0
A157: 2152 | B157: 0 | C157: 0 | D157: 0 | E157: 0 | F157: 0 | G157: 0.0179419203 | H157: 0 | I157: 0
A158: 2153 | B158: 0 | C158: 0 | D158: 0 | E158: 0 | F158: 0 | G158: 0.01740366269 | H158: 0 | I158: 0
A159: 2154 | B159: 0 | C159: 0 | D159: 0 | E159: 0 | F159: 0 | G159: 0.01688155281 | H159: 0 | I159: 0
A160: 2155 | B160: 0 | C160: 0 | D160: 0 | E160: 0 | F160: 0 | G160: 0.01637510623 | H160: 0 | I160: 0
A161: 2156 | B161: 0 | C161: 0 | D161: 0 | E161: 0 | F161: 0 | G161: 0.01588385304 | H161: 0 | I161: 0
A162: 2157 | B162: 0 | C162: 0 | D162: 0 | E162: 0 | F162: 0 | G162: 0.01540733745 | H162: 0 | I162: 0
A163: 2158 | B163: 0 | C163: 0 | D163: 0 | E163: 0 | F163: 0 | G163: 0.01494511732 | H163: 0 | I163: 0
A164: 2159 | B164: 0 | C164: 0 | D164: 0 | E164: 0 | F164: 0 | G164: 0.0144967638 | H164: 0 | I164: 0
A165: 2160 | B165: 0 | C165: 0 | D165: 0 | E165: 0 | F165: 0 | G165: 0.01406186089 | H165: 0 | I165: 0
A166: 2161 | B166: 0 | C166: 0 | D166: 0 | E166: 0 | F166: 0 | G166: 0.01364000506 | H166: 0 | I166: 0
A167: 2162 | B167: 0 | C167: 0 | D167: 0 | E167: 0 | F167: 0 | G167: 0.01323080491 | H167: 0 | I167: 0
A168: 2163 | B168: 0 | C168: 0 | D168: 0 | E168: 0 | F168: 0 | G168: 0.01283388076 | H168: 0 | I168: 0
A169: 2164 | B169: 0 | C169: 0 | D169: 0 | E169: 0 | F169: 0 | G169: 0.01244886434 | H169: 0 | I169: 0
A170: 2165 | B170: 0 | C170: 0 | D170: 0 | E170: 0 | F170: 0 | G170: 0.01207539841 | H170: 0 | I170: 0
A171: 2166 | B171: 0 | C171: 0 | D171: 0 | E171: 0 | F171: 0 | G171: 0.01171313646 | H171: 0 | I171: 0
A172: 2167 | B172: 0 | C172: 0 | D172: 0 | E172: 0 | F172: 0 | G172: 0.01136174236 | H172: 0 | I172: 0
A173: 2168 | B173: 0 | C173: 0 | D173: 0 | E173: 0 | F173: 0 | G173: 0.01102089009 | H173: 0 | I173: 0
A174: 2169 | B174: 0 | C174: 0 | D174: 0 | E174: 0 | F174: 0 | G174: 0.01069026339 | H174: 0 | I174: 0
A175: 2170 | B175: 0 | C175: 0 | D175: 0 | E175: 0 | F175: 0 | G175: 0.01036955549 | H175: 0 | I175: 0
A176: 2171 | B176: 0 | C176: 0 | D176: 0 | E176: 0 | F176: 0 | G176: 0.01005846882 | H176: 0 | I176: 0
A177: 2172 | B177: 0 | C177: 0 | D177: 0 | E177: 0 | F177: 0 | G177: 0.00975671476 | H177: 0 | I177: 0
A178: 2173 | B178: 0 | C178: 0 | D178: 0 | E178: 0 | F178: 0 | G178: 0.009464013317 | H178: 0 | I178: 0
A179: 2174 | B179: 0 | C179: 0 | D179: 0 | E179: 0 | F179: 0 | G179: 0.009180092918 | H179: 0 | I179: 0
A180: 2175 | B180: 0 | C180: 0 | D180: 0 | E180: 0 | F180: 0 | G180: 0.00890469013 | H180: 0 | I180: 0
A181: 2176 | B181: 0 | C181: 0 | D181: 0 | E181: 0 | F181: 0 | G181: 0.008637549426 | H181: 0 | I181: 0
A182: 2177 | B182: 0 | C182: 0 | D182: 0 | E182: 0 | F182: 0 | G182: 0.008378422943 | H182: 0 | I182: 0
A183: 2178 | B183: 0 | C183: 0 | D183: 0 | E183: 0 | F183: 0 | G183: 0.008127070255 | H183: 0 | I183: 0
A184: 2179 | B184: 0 | C184: 0 | D184: 0 | E184: 0 | F184: 0 | G184: 0.007883258148 | H184: 0 | I184: 0
A185: 2180 | B185: 0 | C185: 0 | D185: 0 | E185: 0 | F185: 0 | G185: 0.007646760403 | H185: 0 | I185: 0
A186: 2181 | B186: 0 | C186: 0 | D186: 0 | E186: 0 | F186: 0 | G186: 0.007417357591 | H186: 0 | I186: 0
A187: 2182 | B187: 0 | C187: 0 | D187: 0 | E187: 0 | F187: 0 | G187: 0.007194836863 | H187: 0 | I187: 0
A188: 2183 | B188: 0 | C188: 0 | D188: 0 | E188: 0 | F188: 0 | G188: 0.006978991757 | H188: 0 | I188: 0
A189: 2184 | B189: 0 | C189: 0 | D189: 0 | E189: 0 | F189: 0 | G189: 0.006769622005 | H189: 0 | I189: 0
A190: 2185 | B190: 0 | C190: 0 | D190: 0 | E190: 0 | F190: 0 | G190: 0.006566533345 | H190: 0 | I190: 0
A191: 2186 | B191: 0 | C191: 0 | D191: 0 | E191: 0 | F191: 0 | G191: 0.006369537344 | H191: 0 | I191: 0
A192: 2187 | B192: 0 | C192: 0 | D192: 0 | E192: 0 | F192: 0 | G192: 0.006178451224 | H192: 0 | I192: 0
A193: 2188 | B193: 0 | C193: 0 | D193: 0 | E193: 0 | F193: 0 | G193: 0.005993097687 | H193: 0 | I193: 0
A194: 2189 | B194: 0 | C194: 0 | D194: 0 | E194: 0 | F194: 0 | G194: 0.005813304757 | H194: 0 | I194: 0
A195: 2190 | B195: 0 | C195: 0 | D195: 0 | E195: 0 | F195: 0 | G195: 0.005638905614 | H195: 0 | I195: 0
A196: 2191 | B196: 0 | C196: 0 | D196: 0 | E196: 0 | F196: 0 | G196: 0.005469738445 | H196: 0 | I196: 0
A197: 2192 | B197: 0 | C197: 0 | D197: 0 | E197: 0 | F197: 0 | G197: 0.005305646292 | H197: 0 | I197: 0
A198: 2193 | B198: 0 | C198: 0 | D198: 0 | E198: 0 | F198: 0 | G198: 0.005146476903 | H198: 0 | I198: 0
A199: 2194 | B199: 0 | C199: 0 | D199: 0 | E199: 0 | F199: 0 | G199: 0.004992082596 | H199: 0 | I199: 0
A200: 2195 | B200: 0 | C200: 0 | D200: 0 | E200: 0 | F200: 0 | G200: 0.004842320118 | H200: 0 | I200: 0
A201: 2196 | B201: 0 | C201: 0 | D201: 0 | E201: 0 | F201: 0 | G201: 0.004697050515 | H201: 0 | I201: 0
A202: 2197 | B202: 0 | C202: 0 | D202: 0 | E202: 0 | F202: 0 | G202: 0.004556138999 | H202: 0 | I202: 0
A203: 2198 | B203: 0 | C203: 0 | D203: 0 | E203: 0 | F203: 0 | G203: 0.004419454829 | H203: 0 | I203: 0
A204: 2199 | B204: 0 | C204: 0 | D204: 0 | E204: 0 | F204: 0 | G204: 0.004286871184 | H204: 0 | I204: 0
... 121 more rows

Sheet LookupT BR J (hidden)
A1: BoatRamp Lookup | D1: 40 years | G1: 10 years | M1: Date estabished: 6-2-2020
A2: Actions | D2: DSAY | E2: MPs | F2: MPs per sqft | G2: DSAY | H2: MPs | I2: MPs per sqft | J2: NHV before | K2: NHV after | L2: Conditions | M2: USZ: SAV cond. Before; after always 0 for BR & Jetty
A3: USZ boat ramp | B3: 200 sqft of boat ramp with no shore drift interruption | D3: -0.04059 | E3: =D3*100 -> -4.059 | F3: =E3/200 -> -0.020295 | G3: -0.01498 | H3: =G3*100 -> -1.498 | I3: =H3/200 -> -0.00749 | J3: 0.653 | K3: 0.27 | L3: WQ med to poor | M3: 0
B4: 200 sqft of boat ramp with no shore drift interruption | D4: -0.04298 | E4: =D4*100 -> -4.298 | F4: =E4/200 -> -0.02149 | G4: -0.01586 | H4: =G4*100 -> -1.586 | I4: =H4/200 -> -0.00793 | J4: 0.675 | K4: 0.27 | L4: WQ med to poor | M4: 1
B5: 200 sqft of boat ramp with no shore drift interruption | D5: -0.04537 | E5: -4.537 | F5: -0.022685 | G5: -0.01674 | H5: -1.674 | I5: -0.00837 | J5: 0.698 | K5: 0.27 | L5: WQ med to poor | M5: 2
B6: 200 sqft of boat ramp with no shore drift interruption | D6: -0.04776 | E6: -4.776 | F6: -0.02388 | G6: -0.01762 | H6: -1.762 | I6: -0.00881 | J6: 0.72 | K6: 0.27 | L6: WQ med to poor | M6: 3
B7: 200 sqft concrete rubble | D7: -0.03582 | E7: -3.582 | F7: -0.01791 | G7: -0.01322 | H7: -1.322 | I7: -0.00661 | J7: 0.653 | K7: 0.315 | L7: no WQ reduction | M7: 0
B8: 200 sqft concrete rubble | D8: -0.03821 | E8: -3.821 | F8: -0.019105 | G8: -0.0141 | H8: -1.41 | I8: -0.00705 | J8: 0.675 | K8: 0.315 | L8: no WQ reduction | M8: 1
B9: 200 sqft concrete rubble | D9: -0.04059 | E9: -4.059 | F9: -0.020295 | G9: -0.01498 | H9: -1.498 | I9: -0.00749 | J9: 0.698 | K9: 0.315 | L9: no WQ reduction | M9: 2
B10: 200 sqft concrete rubble | D10: -0.04298 | E10: -4.298 | F10: -0.02149 | G10: -0.01586 | H10: -1.586 | I10: -0.00793 | J10: 0.72 | K10: 0.315 | L10: no WQ reduction | M10: 3
B11: 200 sqft of shoreline drift interruption | D11: -0.01194 | E11: -1.194 | F11: -0.00597 | G11: -0.00441 | H11: -0.441 | I11: -0.002205 | J11: 0.653 | K11: 0.54 | L11: WQ med to poor | M11: 0
B12: 200 sqft of shoreline drift interruption | D12: -0.01433 | E12: -1.433 | F12: -0.007165 | G12: -0.00529 | H12: -0.529 | I12: -0.002645 | J12: 0.675 | K12: 0.54 | L12: WQ med to poor | M12: 1
B13: 200 sqft of shoreline drift interruption | D13: -0.01672 | E13: -1.672 | F13: -0.00836 | G13: -0.00617 | H13: -0.617 | I13: -0.003085 | J13: 0.698 | K13: 0.54 | L13: WQ med to poor | M13: 2
B14: 200 sqft of shoreline drift interruption | D14: -0.0191 | E14: -1.91 | F14: -0.00955 | G14: -0.00705 | H14: -0.705 | I14: -0.003525 | J14: 0.72 | K14: 0.54 | L14: WQ med to poor | M14: 3
D15: 40 years | G15: 10 years
A16: Actions | D16: DSAY | E16: MPs | F16: MPs per sqft | G16: DSAY | H16: MPs | I16: MPs per sqft | J16: NHV before | K16: NHV after | L16: Conditions | M16: LSZ: SAV cond. Before; after always 0 for BR & Jetty
A17: LSZ boat ramp | B17: 200 sqft of boat ramp, no shore drift interruption in LSZ | D17: -0.0451046 | E17: =D17*100 -> -4.51046 | F17: =E17/200 -> -0.0225523 | G17: -0.0166543 | H17: =G17*100 -> -1.66543 | I17: =H17/200 -> -0.00832715 | J17: 0.725 | K17: 0.3 | L17: WQ med to poor | M17: 0
B18: 200 sqft of boat ramp, no shore drift interruption in LSZ | D18: -0.0530642 | E18: =D18*100 -> -5.30642 | F18: =E18/200 -> -0.0265321 | G18: -0.0195827 | H18: =G18*100 -> -1.95827 | I18: =H18/200 -> -0.00979135 | J18: 0.8 | K18: 0.3 | L18: WQ med to poor | M18: 1
B19: 200 sqft of boat ramp, no shore drift interruption in LSZ | D19: -0.0610238 | E19: -6.10238 | F19: -0.0305119 | G19: -0.02252 | H19: -2.252 | I19: -0.01126 | J19: 0.875 | K19: 0.3 | L19: WQ med to poor | M19: 2
B20: 200 sqft of boat ramp, no shore drift interruption in LSZ | D20: -0.0689835 | E20: -6.89835 | F20: -0.03449175 | G20: -0.0254574 | H20: -2.54574 | I20: -0.0127287 | J20: 0.095 | K20: 0.3 | L20: WQ med to poor | M20: 3
B21: 200 sqft concrete rubble | D21: -0.039798 | E21: -3.9798 | F21: -0.019899 | G21: -0.014687 | H21: -1.4687 | I21: -0.0073435 | J21: 0.725 | K21: 0.035 | L21: no WQ reduction | M21: 0
B22: 200 sqft concrete rubble | D22: -0.0477578 | E22: -4.77578 | F22: -0.0238789 | G22: -0.0176244 | H22: -1.76244 | I22: -0.0088122 | J22: 0.8 | K22: 0.035 | L22: no WQ reduction | M22: 1
B23: 200 sqft concrete rubble | D23: -0.0557174 | E23: -5.57174 | F23: -0.0278587 | G23: -0.0205618 | H23: -2.05618 | I23: -0.0102809 | J23: 0.875 | K23: 0.035 | L23: no WQ reduction | M23: 2
B24: 200 sqft concrete rubble | D24: -0.0637 | E24: -6.37 | F24: -0.03185 | G24: -0.0234992 | H24: -2.34992 | I24: -0.0117496 | J24: 0.095 | K24: 0.035 | L24: no WQ reduction | M24: 3
D26: 40 years | G26: 10 years
A27: Actions | D27: DSAY | E27: MPs | F27: MPs per sqft | G27: DSAY | H27: MPs | I27: MPs per sqft | J27: NHV before | K27: NHV after | L27: Conditions
A28: DZ boat ramp | B28: 200 sqft of boat ramp, no shore drift interruption in DZ, no impact on migratory corridor. | D28: -0.009552 | E28: =D28*100 -> -0.9552 | F28: =E28/200 -> -0.004776 | G28: -0.003525 | H28: =G28*100 -> -0.3525 | I28: =H28/200 -> -0.0017625 | J28: 0.37 | K28: 0.28 | L28: WQ med to poor
B29: 200 sqft concrete rubble | D29: -0.006368 | E29: =D29*100 -> -0.6368 | F29: =E29/200 -> -0.003184 | G29: -0.00235 | H29: =G29*100 -> -0.235 | I29: =H29/200 -> -0.001175 | J29: 0.37 | K29: 0.31 | L29: no WQ reduction
A32: Jetty Lookup | D32: 40 years | G32: 10 years | M32: Date estabished: 6-2-2020
A33: Actions | D33: DSAY | E33: MPs | F33: MPs per sqft | G33: DSAY | H33: MPs | I33: MPs per sqft | J33: NHV before | K33: NHV after | L33: Conditions | M33: USZ: SAV cond. Before; after always 0 for BR & Jetty | N33: Developer Notes
A34: USZ jetty | B34: 200 sqft of jetty with no shore drift interruption | D34: -0.069249 | E34: =D34*100 -> -6.9249 | F34: =E34/200 -> -0.0346245 | G34: -0.025555 | H34: =G34*100 -> -2.5555 | I34: =H34/200 -> -0.0127775 | J34: 0.653 | K34: 0 | L34: WQ starting condition medium. Active erosion 0 (most of the time BH is present with jetties). After habitat value is 0. | M34: 0 | N34: Left shore drift interruption separately so area could be easily adjusted, depending on monitoring results.
B35: 200 sqft of jetty with no shore drift interruption | D35: -0.07163669 | E35: =D35*100 -> -7.163669 | F35: =E35/200 -> -0.035818345 | G35: -0.026437 | H35: =G35*100 -> -2.6437 | I35: =H35/200 -> -0.0132185 | J35: 0.675 | K35: 0 | M35: 1
B36: 200 sqft of jetty with no shore drift interruption | D36: -0.07402458 | E36: -7.402458 | F36: -0.03701229 | G36: -0.02731779 | H36: -2.731779 | I36: -0.013658895 | J36: 0.698 | K36: 0 | M36: 2
B37: 200 sqft of jetty with no shore drift interruption | D37: -0.076412 | E37: -7.6412 | F37: -0.038206 | G37: -0.028199 | H37: -2.8199 | I37: -0.0140995 | J37: 0.72 | K37: 0 | M37: 3
B38: 200 sqft of shoreline drift interruption | D38: -0.01194 | E38: -1.194 | F38: -0.00597 | G38: -0.00441 | H38: -0.441 | I38: -0.002205 | J38: 0.653 | K38: 0.54 | L38: WQ med to poor | M38: 0
B39: 200 sqft of shoreline drift interruption | D39: -0.01433 | E39: -1.433 | F39: -0.007165 | G39: -0.00529 | H39: -0.529 | I39: -0.002645 | J39: 0.675 | K39: 0.54 | L39: WQ med to poor | M39: 1
B40: 200 sqft of shoreline drift interruption | D40: -0.01672 | E40: -1.672 | F40: -0.00836 | G40: -0.00617 | H40: -0.617 | I40: -0.003085 | J40: 0.698 | K40: 0.54 | L40: WQ med to poor | M40: 2
B41: 200 sqft of shoreline drift interruption | D41: -0.0191 | E41: -1.91 | F41: -0.00955 | G41: -0.00705 | H41: -0.705 | I41: -0.003525 | J41: 0.72 | K41: 0.54 | L41: WQ med to poor | M41: 3
A42: Actions | D42: DSAY | E42: MPs | F42: MPs per sqft | G42: DSAY | H42: MPs | I42: MPs per sqft | J42: NHV before | K42: NHV after | L42: Conditions | M42: USZ: SAV cond. Before; after always 0 for BR & Jetty
A43: LSZ jetty | B43: 200 sqft of boat ramp with no shore drift interruption | D43: -0.07694 | E43: =D43*100 -> -7.694 | F43: =E43/200 -> -0.03847 | G43: -0.028395 | H43: =G43*100 -> -2.8395 | I43: =H43/200 -> -0.0141975 | J43: 0.725 | K43: 0 | L43: WQ starting condition medium. Active erosion 0 (most of the time BH is present with jetties). After habitat value is 0. | M43: 0
B44: 200 sqft of boat ramp with no shore drift interruption | D44: -0.084927 | E44: =D44*100 -> -8.4927 | F44: =E44/200 -> -0.0424635 | G44: -0.03133 | H44: =G44*100 -> -3.133 | I44: =H44/200 -> -0.015665 | K44: 0 | M44: 1
B45: 200 sqft of boat ramp with no shore drift interruption | D45: -0.0928624 | E45: -9.28624 | F45: -0.0464312 | G45: -0.0342696 | H45: -3.42696 | I45: -0.0171348 | K45: 0 | M45: 2
B46: 200 sqft of boat ramp with no shore drift interruption | D46: -0.100822 | E46: -10.0822 | F46: -0.050411 | G46: -0.037207 | H46: -3.7207 | I46: -0.0186035 | K46: 0 | M46: 3
D48: 40 years | G48: 10 years
A49: Actions | D49: DSAY | E49: MPs | F49: MPs per sqft | G49: DSAY | H49: MPs | I49: MPs per sqft | J49: NHV before | K49: NHV after | L49: Conditions
A50: DZ jetty | B50: 200 sqft of jetty, no shore drift interruption in DZ, no impact on migratory corridor. | D50: -0.03927 | E50: =D50*100 -> -3.927 | F50: =E50/200 -> -0.019635 | G50: -0.0144912 | H50: =G50*100 -> -1.44912 | I50: =H50/200 -> -0.0072456 | J50: 0.34 (max for DZ is .4) | K50: 0 | L50: WQ med to poor
F59: =IF(E35="no",E59*LOOKUP(E53,'LookupT BR J'!M17:M20,'LookupT BR J'!I17:I20),(E59*LOOKUP(E53,'LookupT BR J'!M17:M20,'LookupT BR J'!I17:I20)+H37*LOOKUP(E59,'LookupT BR J'!M11:M14,'LookupT BR J'!F11:F14)))*E74*E76*E78 -> 0

Sheet BR Structure Imp Inst USZ 2 (hidden)
A1: Inputs for Installation of Boatramps
A2: You do not need to fill out this tab if your USZ pre- AND post-project area are not impacted by OWS. Just make shure that blue cells in the USZ tab show a 1.
A3: Yellow cells are to fill in.
A4: Grey cells contain essential questions
A5: Gree cells contain additional explanations
A6: Orange cells contain informational summary values
A7: Purple Cells indicate BPJ reduction/credit factors
A8: A. General Overwater Project Inputs
D9: Enter percentages as number between 0 and 1 | E9: Before | F9: After
A10: Percent open space of Grating on Pier | E10: 0 | F10: 0 | G10: opens space is not 100% effective - see picture. We used standard 50% reduction factor when considering reduced shading impacts throug grating - G16 and G17.
A11: Percent Pier Grating | E11: 0 | F11: 0 | G11: Enter between 0 and 0.9. A value of 0.9 should be the highest entry as usually structural elements cover up at least 10 percent of area.
A12: Percent open space of Grating on Float | E12: 0 | F12: 0
A13: Percent Float Grating | E13: 0 | F13: 0 | G13: Usually the highes possible float grating is 50%
B14: Before | E14: After | H14: Notes
A15: Overwater Structure Elements | B15: sqft | C15: acres | D15: percent shading/impact | E15: sqft | F15: acres | G15: percent shading/impact | J15: Figure shows shade impact from fully grated pier.
A16: 4-ft Piers, fully grated, exempt for 2018 RGP-6 | B16: 0 | C16: =B16*0.000022956841139 -> 0 | D16: =1-E11+E11*(1-E10/2) -> 1 | E16: 0 | F16: =E16*0.000022956841139 -> 0 | G16: =1-F11+F11*(1-F10/2) -> 1 | H16: For RGP-6 we assumed that an elevated and fully grated pier with 90% effective grating has no impact. This was partially base on conversations with WDFW Dan Pentilla. Biologically this could be viewed as if 46% shading (0.1*1 (shaded area) +0.9*0.4 (grated area with 70% open space)=0.46) is the threshold value for any effects. However, since we do not know what the threshold value is, or whether there is a threshold value, this value is informed by best possible design standards. For the Nearshore PRGM we changed and simplified: Based on field observation of stark shadows from elevated fully grated 4-foot piers we, we decided to assume an impact from pier shading reduced in effect by elevation and grating.
A17: Elevated Piers for Salish Sea Nearshore Programmatic | B17: 0 | C17: 0 | D17: =(1-E11+E11*(1-E10/2))*0.75 -> 0.75 | E17: 0 | F17: 0 | G17: =(1-F11+F11*(1-F10/2))*0.75 -> 0.75 | H17: See pictures of 8 2019 RGP-6 compliance visit to right. A fully grated elevated pier has significant shading impact. In fact, at afternoon sun agle, shading impact seems very similar to a solid pier. To account for the significant shading from a fully grated structure, we assumed 50 percent effectiveness for garting. To account for side lighting in elevated structurs, we used an average reduction of the effect of shading related to the elevation of the pier. We did not have the data to model in detail the effecs of variables like hight, orientation, and thickness of grating. Thus, we assumed that side lighting from elevation reduces shading impact by 25% compared to shading effect from a float.
A18: Pier Buffer: 10 feet wide times three shaded sides of structure. For marina floats with finger piers you may simplify and use outside dimensions. | B18: 0 | C18: 0 | D18: =D17/2 -> 0.375 | E18: 0 | F18: 0 | G18: =G17/2 -> 0.375 | H18: No pier buffer applied for SSNP. Shading impact in buffer set to half of shading impact of pier. Enter piers that have less than 4 feet clearance above MHHW and are wider than 30 feet as floats as there is little side lighting in such structures.
A19: Float area | B19: 0 | C19: 0 | D19: =1-E13+E13*(1-E12/2) -> 1 | E19: 0 | F19: 0 | G19: =1-F13+F13*(1-F12/2) -> 1 | H19: Open area is divided by 2 to account for that it is not 100 % effective and substantial shading can occur based on thickness of material and angle of sun.
A20: Float Buffer: 10 feet wide times three shaded sides of structure. For marina floats with finger piers you may simplify and use outside dimensions. | C20: 0 | D20: =D19/2 -> 0.5 | E20: 0 | F20: 0 | G20: =G19/2 -> 0.5 | H20: Apply buffer to all foats. Shading impact in buffer set to half of shading impact of float.
A21: Boats | B21: 0 | C21: 0 | D21: 1 | E21: 0 | F21: 0 | G21: 1
A22: Prop Scour area | B22: 0 | C22: 0 | D22: 0.1 | E22: 0 | F22: 0 | G22: 0.1 | H22: Increase/change percent impact depending on project. For example, intense impacts occur around boat ramps.
A23: Area of Low Structures | B23: ='BR Install USZ 2'!F36+'BR Install USZ 2'!F37+0.0000000000001 -> 1e-13 | C23: =B23*0.000022956841139 -> 2.295684114e-18 | E23: ='BR Install USZ 2'!I36+'BR Install USZ 2'!I37+0.000000000000001 -> 1e-15 | F23: =E23*0.000022956841139 -> 2.295684114e-20 | H23: Check if this would make entry easier: Areas for low structures are copied from USZ spreadsheet.
A24: sum | B24: =SUM(B16:B23) -> 1e-13 | E24: =SUM(E16:E23) -> 1e-15
A25: sum | B25: =IF(B24<E24,E24,B24) -> 1e-13
A26: Calculations of area weighted averages. No entry fields for transperency, only.
D27: Before | E27: After | F27: Notes
A28: Average percent impact from shading on area covered by boats and floats including impacts from prop scour. | D28: =IF($D$16<=0.46,(B17*D17+B18*D18+B19*D19+B20*D20+B21*D21+B22*D22)/(B25+0.00000001),(B16*D16+B17*D17+B18*D18+B19*D19+B20*D20+B21*D21+B22*D22)/(B25+0.00000001)) -> 0 | E28: =IF($G$16<=0.46,(E17*G17+E18*G18+E19*G19+E20*G20+E21*G21+E22*G22)/(B25+0.00000001),(E16*G16+E17*G17+E18*G18+E19*G19+E20*G20+E21*G21+E22*G22)/(B25+0.00000001)) -> 0
A29: Remaining habitat value for combined shaded area including prop scour | D29: =(1-D28) -> 1 | E29: =(1-E28) -> 1 | F29: Values in blue cells are used in and automatically transferred into USZ sheet. This factor is used as a reduction factor for "Unobstructed Migratory Corridor" and "Vegetation".
A30: B Area Calculation for structures that eliminate access at most tides including piles and jetties:
A31: To evaluate the loss or gain in habitat quality related to three dimensional structures, fill out the habitat ranking for the before or after condition in the USZ tab. If piles are to be removed fill out the after condition, if they are to be installed, rank the before condition.
A32: Piles | C32: Before | D32: After | E32: Notes
A33: #piles | C33: 0 | D33: 0
A34: Diameter[ft] | C34: 0.8 | D34: 0.8
A35: Total SF | C35: =(POWER((C34/2),2)*PI())*C33 -> 0 | D35: =(POWER((D34/2),2)*PI())*D33 -> 0 | E35: Area taken up by pilings is inaccessible to fish
A36: SF of Jetties and other three dimensional structures | C36: 0 | D36: 0 | E36: Needed extra entry for entry sheet for Jetties because of drift interruption for boatramps and jetties. Otherwiese user could not enter jetty and boatramp.
A37: Sum of 3D structures in SQFT | C37: =SUM(C35:C36) -> 0 | D37: =SUM(D35:D36) -> 0
A38: Sum of 3D structures in acres | C38: =SUM(C36:C37)*0.000022956841139 -> 0 | D38: =SUM(D36:D37)*0.000022956841139 -> 0 | E38: Used for HEA calculations

Sheet BR Install USZ 2 (hidden)
A1: Inputs for Installation of Boatramps
A2: Nearshore Habitat Value Determination Model: Upper Shore Zone Habitat Value Determination
A3: The Upper Shore Zone 2 encompasses the area between MHHW and +5 MLLW. This model determines the habitat values for before and after a change from impacts including boat ramps and jetties. The NHVM and HEA are based on evaluating differenced between before and after conditions. If areas don't experiance a change in conditions, they can be excluded. For example, if a new overwater structure is installed waterward of an existing bulkhead, the area between HAT the bulkhead does not need to be included in the evaluation.
A4: If several actions occur at one site, evaluate OWS and shoreline armoring effects separately in the respective tabs.
A5: Yellow cells are to fill in.
A6: Grey cells contain essential questions
A7: Gree cells contain additional explanations
A8: Orange cells contain informational summary values | AI8: =IF('BR Install USZ 2'!D13="no",#REF!,300) -> 
A9: Light blue cells contain factors from Shade Imp tab
A10: Purple Cells contain BPJ reduction/credit factors
A11: A 1. General Project Factors for all structures
B12: Question | C12: Input Format | D12: User Entry | E12: Notes
A13: Duration | B13: Are the project impacts/benefits permanent? | C13: Yes/No | D13: No | E13: If project impacts or benefits are not permanent make sure to select NO.
B14: If temporary enter years of project impact | C14: Temp Impact Years | D14: 40 | E14: Enter number of years project will exist if other than permanent. Leave blank if permanent.
A15: Time Lag | B15: Years Until Full Functioning Habitat | C15: Years | D15: 1 | E15: If purchasing credits through a mitigation bank, enter 1. If calculating for permittee responsible mitigation, enter how many years after the impact full function of mitigation would be achieved. For restoration, the default for achieving full function after restoration in the nearshore marine environment is 3 years. The lowest possible value is 1. Do not enter values less than 1.
B16: Maximum Habitat Value for USZ 2 | C16: =IF(AND(D13="Yes",D14>1),"Check entry in D12","") ->  | D16: 0.9 | E16: Most structures in the USZ are in the USZ 2. To keep it simple, for the Nearshore PRGM we use as a conservative estimate the max habitat value for the USZ 2.
C17: Upper Shore Zone Affected Area
C18: Linear feet | D18: sqft | E18: acres | F18: Notes
A19: I | B19: Length (along shoreline) of area affected in the long term by project. C18 and C19 do not need to be filled in for OWS evaluation. For a boat ramp this is the area covered up plus visibly affected by interruption of sediment drift. | D19: =IF('BR Structure Imp Inst USZ 2'!B25>0.0000000000001,'BR Structure Imp Inst USZ 2'!B25,C19*C20) -> 0 | E19: =D19*0.000022956841139 -> 0 | F19: Areas needs to be same for before and after | H19: If not working with OWS but boat ramps for example, set all areas for OWS in "Shade Imp USZ" to 0.
A20: II | B20: Width of Upper Shore Zone [ft slope distance]: Area impacted in long-term by project. For overwater structures the action area in D18 is copied over from the Shade Imp USZ tab. | E20: For irregular OWS, the area can be entered directly in D17. In that case download new spreadsheet for next project as default formula that resides in D 17 will be deleted whe direct entry is made.
A21: B. Habitat Evaluation
F22: Before | I22: After
A23: # | B23: Indicator of Physical Habitat/ Physical and Biological Features | C23: Rating Questions | D23: Percent Influence of Indicator on Habitat Value | E23: Scores 0 to 1 | F23: Evaluation of Site Condition | G23: Indicator specific Score | H23: Indicator Specific Summary Score | I23: Evaluation of Site Condition | J23: Indicator specific Score | K23: Indicator Specific Summary Score | L23: Elements of Nearshore Marine PCEs addressed | M23: Notes
A24: Shoreline Complexity: Beach Logs and Wrack
A25: 1a | B25: Habitat Function from Large Wood and/or beach warack. Evaluate how much wood is present and what function it provides to site. Benefits from placement of large wood can be evaluated here. | C25: Beach logs and warack line provide full function - Chose this option for hybrid and soft armoring and natural shoreline. | D25: 0.1 | E25: 1 | F25: No | G25: =IF(F25="Yes",E25,0) -> 0 | I25: no | J25: =IF(I25="Yes",E25,0) -> 0 | L25: Food, Cover, | M25: Shoreline complexity including shallow-sloped banks with rack and beach logs as well as undercut banks provide food and cover to juvenile salmonids.
A26: 1b | C26: Beach logs and wrack line provide medium function. Choose this option for hard armoring above MHHW. | E26: 0.5 | F26: Yes | G26: =IF(F26="Yes",E26,0) -> 0.5 | I26: Yes | J26: =IF(I26="Yes",E26,0) -> 0.5
A27: 1c | C27: Beach logs provide little to no function. Choose this option for shoreline armoring at or below MHHW and when evaluating low profile man-made structures like boat ramps. | E27: 0 | F27: No | G27: =IF(F27="Yes",E27,0) -> 0 | H27: =SUM(G25:G27) -> 0.5 | I27: No | J27: =IF(I27="Yes",E27,0) -> 0 | K27: =SUM(J25:J27) -> 0.5
A28: Unobstructed Migratory Corridor
A29: What shallow water area [in sqft] juvenile rearing area is adversely impacted? A reduction in quality could be the result of shading from OWS, interruption of migratory corridor by boat ramps, rails, and low concrete rubble. The construction of three-dimensional structures is considered as a complete loss of habitat during most tides. Enter the footprint of three dimensional high structures like piles and jetties in the Shade and Structure Imp USZ tab.
A30: 2a | B30: The model only evaluates areas accessible to fish. Areas inaccessible to fish, for example areas covered up by piles and jetties, automatically receive an ovarall habitat value of 0 and are not considered in this ranking. | C30: The starting ranking for unobstructed migratory corridor of 1 is reduced below by effects from low structures and OWS. | D30: 0.45 | E30: 1 | F30: =E30 -> 1 | I30: =E30 -> 1 | L30: Migration
A31: 2b | B31: Impacts to Shallow Water Habitat, Accessibility, & Presence from low elevation structures including boat ramps. | C31: What shallow water area [in sqft] waterward of any BH and waterward of MHHW has reduced migratory corridor value for juvenile rearing? A reduction could be the result of man-made obstructions including concrete boat ramps, rip-rap shoulders, and marine rails. | F31: 0 | G31: =F30-(F31/(D19+0.00000000001))/2 -> 1 | I31: ='BoatR, Jetty'!E14 -> 0 | J31: =I30-(I31/(D19+0.00000000001))/2 -> 1 | M31: How much of an obstruction to migration are boat ramps? Boat ramps can have elevation and rip-rap shoulders. Assumption for nearshore is 50% based on discussion with Jeff Vanderpham. ToDo: Work with WDFW, tribes, and on BPJ survey. That includes higher and lower elevation boat ramps. For individual situations this can be changed as needed.
A32: 2c | B32: Shading from OWS | C32: Discounting factor, proportional to shading, determined in "Shade Imp LSZ" tab. For projects with no OWS impacts, check that Shade Imp USZ to make sure F31 and I31 remain at "1". | F32: ='BR Structure Imp Inst USZ 2'!D29 -> 1 | H32: =G31*F32 -> 1 | I32: ='BR Structure Imp Inst USZ 2'!E29 -> 1 | K32: =J31*I32 -> 1
A33: Substrate/Sediment Quality and Quantity: Active Erosion
A34: 3a | B34: Changes in Shoreline Armoring and their effects on sediment quality and quantity are evaluated in other shorel Stabiliz USZ tabs. We don't expect active erosion including beach lowering and substrate coarsening to result from the shoreline developments including piers and boat ramps evaluated in this tab. Thus, the entries in this category are set to a fixed value. Since there is no difference in the before and after it does not matter what the value is. | C34: How many linear feet of the existing or proposed shoreline is natural, soft, or hybrid? | D34: 0.1 | E34: 1 | F34: 0 | G34: 0 | I34: 0 | J34: 0 | L34: F, C, M | M34: Consider simplifying by adding these 10% from column D to category below. That would give greater impact/benefit to boat ramps. However, would be different PBF distribution compared to armoring. Run examples, discuss with Dave.
A35: Substrate/Sediment Quality and Quantity | E35: Enter sqft of area covered by low-elevation structures like concrete boat ramps. | I35: Enter sqft of area covered by low-elevation structures like concrete boat ramps.
A36: 3b | B36: This row evaluates the loss of substrate function resulting from development. It is based on sediment quality lost to low elevation structures like boat ramps. | C36: What area of sediment [in sqft] waterward of MHHW is lost for providing substate functions? Such loss includes sediment being covered up by low elevation structures like boat ramps and dislodged pieces of concrete rubble. High elevation structures that preclude access at most times, including piles and jetties, are evaluated separately; enter in Shade and Structure Imp USZ tab. | D36: 0.15 | F36: 0 | G36: =F36/'BR Structure Imp Inst USZ 2'!B23 -> 0 | I36: ='BoatR, Jetty'!E14 -> 0 | J36: =I36/'BR Structure Imp Inst USZ 2'!E23 -> 0 | M36: G41 calculates area averaged partial habitat value of sediment in the entire affected area. Calculations are based on assuming 0% function for area covered up by structures.
A37: 3c | B37: Reduction of substrate function due to interruption of longshore drift in the area not covered up by structures. | C37: What area of sediment [in sqft] provides reduced substrate function due to effects including visible interruption of longshore drift. This calculation reflects a reduction in values of the substrate in affected areas next to hard low and high structures including boat ramps and jetties. | F37: 0 | G37: =F37/'BR Structure Imp Inst USZ 2'!B23*0.5 -> 0 | H37: =1-(G37+G36) -> 1 | I37: =IF('BoatR, Jetty'!E10="no",0,'BoatR, Jetty'!I12) -> 0 | J37: =I37/'BR Structure Imp Inst USZ 2'!E23*0.5 -> 0 | K37: =1-(J37+J36) -> 1 | M37: Reduction of values set to 50% as default. For simplicity, erosion potential was not considered here.
A38: Vegetation | F38: pick applicable condition | I38: pick applicable condition
A39: 4a | B39: Vegetation Condition, select one | C39: Enter “Y” if area with elevation that would support salmarsh vegetation is covered with >60% of upper intertidal vegetation including macro algae and saltmarsh vegetation like Salicornia sp. and Disticilis sp.. | D39: 0.1 | E39: 1 | F39: =IF('BoatR, Jetty'!E7=3,"yes","no") -> no | G39: =IF(F39="Yes",E39,0) -> 0 | I39: No | J39: =IF(I39="Yes",E39,0) -> 0 | L39: Food, Cover, Migration | M39: The lowest vegetation values gets a score of 0.25 rather than 0 to reflect the importance of micophytoplancton (diatoms) in the USZ 2, that is especially relevant in situations with no/little upper intertidal vegetation. | N39: Include in calculator if needed. Currently set to 0 as I have seen only one project with upper intertidal veg
A40: 4b | C40: Enter “Y” if area with elevation that would support salmarsh vegetation is covered with >30% and <60% of upper intertidal vegetation including macro algae and saltmarsh vegetation like Salicornia sp. and Disticilis sp.. | E40: 0.75 | F40: =IF('BoatR, Jetty'!E7=2,"yes","no") -> no | G40: =IF(F40="Yes",E40,0) -> 0 | I40: No | J40: =IF(I40="Yes",E40,0) -> 0
A41: 4c | C41: Enter “Y” if area with elevation that would support salmarsh vegetation is covered with >5% and < 30% of upper intertidal vegetation including macro algae and saltmarsh vegetation like Salicornia sp. and Disticilis sp.. | E41: 0.5 | F41: =IF('BoatR, Jetty'!E7=1,"yes","no") -> no | G41: =IF(F41="Yes",E41,0) -> 0 | I41: No | J41: =IF(I41="Yes",E41,0) -> 0
A42: 4d | C42: Enter “Y” if area with elevation that would support salmarsh vegetation is covered with <5% of upper intertidal vegetation including macro algae and saltmarsh vegetation like Salicornia sp. and Disticilis sp.. | E42: 0.25 | F42: =IF('BoatR, Jetty'!E7=0,"yes","no") -> yes | G42: =IF(F42="Yes",E42,0) -> 0.25 | I42: Yes | J42: =IF(I42="Yes",E42,0) -> 0.25
B43: Shading from OWS | C43: Discounting factor proportional to shading from pier, see "Shade&Str Imp USZ (before)" worksheet. | F43: ='BR Structure Imp Inst USZ 2'!D29 -> 1 | H43: =SUM(G39:G42)*F43 -> 0.25 | I43: ='BR Structure Imp Inst USZ 2'!E29 -> 1 | K43: =SUM(J39:J42)*I43 -> 0.25
A44: Water Quality | F44: pick applicable condition | I44: pick applicable condition
A45: 5a | B45: Evaluation of change in Water Quality Condition. Select one condition for before and after. What matters for the model is the difference between before and after. | C45: Good | D45: 0.1 | E45: 1 | F45: No | G45: =IF(F45="Yes",E45,0) -> 0 | I45: No | J45: =IF(I45="Yes",E45,0) -> 0 | L45: Water Quality | M45: Construction of a PRF and associated boat usually reduces the WQ in the small action area by one WQ category. For floats and any structure containing AZCA-treated wood that is likely to leach and chip, apply a one category (e.g. from medium to ppor for installation of treated wood pier) reduction/improvement of WQ. WQ benefit from removal of creosote is evaluated separately by ton of creosote removed.
A46: 5b | C46: Medium | E46: 0.5 | F46: Yes | G46: =IF(F46="Yes",E46,0) -> 0.5 | I46: =IF('BoatR, Jetty'!E10="Yes","no","yes") -> yes | J46: =IF(I46="Yes",E46,0) -> 0.5 | L46: Water Quality
A47: 5c | C47: Poor | E47: 0 | F47: No | G47: =IF(F47="Yes",E47,0) -> 0 | I47: =IF('BoatR, Jetty'!E10="Yes","Yes","no") -> no | J47: =IF(I47="Yes",E47,0) -> 0 | L47: Water Quality
H48: =SUM(G45:G47) -> 0.5 | K48: =SUM(J45:J47) -> 0.5
A49: Habitat Value | D49: =SUM(D24:D47) -> 1 | G49: NHV | H49: =(D25*H27+D30*H32+D34*G34+D36*H37+D39*H43+D45*H48)*D16 -> 0.6525 | J49: NHV | K49: =(K48*D45+K43*D39+K37*D36+J34*D34+K32*D30+K27*D25)*D16 -> 0.6525 | L49: NHV is already multiplied by max habitat value for elevation zone.
A50: DSAYs for USZ 2 high-elevation Structure effects | D50: =NoEntryDSAYCalcualtion!BB327 -> 0
A51: DSAYs for USZ 2 low elevation and OWS effects | D51: =NoEntryDSAYCalcualtion!BB10 -> 0
A52: DSAYs for Structure and Shade imp in USZ 2 | D52: =(NoEntryDSAYCalcualtion!BB10+NoEntryDSAYCalcualtion!BB327) -> 0

Sheet Jetty Str Imp Inst USZ 2 (hidden)
A1: Inputs for Installation of Boatramps
A2: You do not need to fill out this tab if your USZ pre- AND post-project area are not impacted by OWS. Just make shure that blue cells in the USZ tab show a 1.
A3: Yellow cells are to fill in.
A4: Grey cells contain essential questions
A5: Gree cells contain additional explanations
A6: Orange cells contain informational summary values
A7: Purple Cells indicate BPJ reduction/credit factors
A8: A. General Overwater Project Inputs
D9: Enter percentages as number between 0 and 1 | E9: Before | F9: After
A10: Percent open space of Grating on Pier | E10: 0 | F10: 0 | G10: opens space is not 100% effective - see picture. We used standard 50% reduction factor when considering reduced shading impacts throug grating - G16 and G17.
A11: Percent Pier Grating | E11: 0 | F11: 0 | G11: Enter between 0 and 0.9. A value of 0.9 should be the highest entry as usually structural elements cover up at least 10 percent of area.
A12: Percent open space of Grating on Float | E12: 0 | F12: 0
A13: Percent Float Grating | E13: 0 | F13: 0 | G13: Usually the highes possible float grating is 50%
B14: Before | E14: After | H14: Notes
A15: Overwater Structure Elements | B15: sqft | C15: acres | D15: percent shading/impact | E15: sqft | F15: acres | G15: percent shading/impact | J15: Figure shows shade impact from fully grated pier.
A16: 4-ft Piers, fully grated, exempt for 2018 RGP-6 | B16: 0 | C16: =B16*0.000022956841139 -> 0 | D16: =1-E11+E11*(1-E10/2) -> 1 | E16: 0 | F16: =E16*0.000022956841139 -> 0 | G16: =1-F11+F11*(1-F10/2) -> 1 | H16: For RGP-6 we assumed that an elevated and fully grated pier with 90% effective grating has no impact. This was partially base on conversations with WDFW Dan Pentilla. Biologically this could be viewed as if 46% shading (0.1*1 (shaded area) +0.9*0.4 (grated area with 70% open space)=0.46) is the threshold value for any effects. However, since we do not know what the threshold value is, or whether there is a threshold value, this value is informed by best possible design standards. For the Nearshore PRGM we changed and simplified: Based on field observation of stark shadows from elevated fully grated 4-foot piers we, we decided to assume an impact from pier shading reduced in effect by elevation and grating.
A17: Elevated Piers for Salish Sea Nearshore Programmatic | B17: 0 | C17: 0 | D17: =(1-E11+E11*(1-E10/2))*0.75 -> 0.75 | E17: 0 | F17: 0 | G17: =(1-F11+F11*(1-F10/2))*0.75 -> 0.75 | H17: See pictures of 8 2019 RGP-6 compliance visit to right. A fully grated elevated pier has significant shading impact. In fact, at afternoon sun agle, shading impact seems very similar to a solid pier. To account for the significant shading from a fully grated structure, we assumed 50 percent effectiveness for garting. To account for side lighting in elevated structurs, we used an average reduction of the effect of shading related to the elevation of the pier. We did not have the data to model in detail the effecs of variables like hight, orientation, and thickness of grating. Thus, we assumed that side lighting from elevation reduces shading impact by 25% compared to shading effect from a float.
A18: Pier Buffer: 10 feet wide times three shaded sides of structure. For marina floats with finger piers you may simplify and use outside dimensions. | B18: 0 | C18: 0 | D18: =D17/2 -> 0.375 | E18: 0 | F18: 0 | G18: =G17/2 -> 0.375 | H18: No pier buffer applied for SSNP. Shading impact in buffer set to half of shading impact of pier. Enter piers that have less than 4 feet clearance above MHHW and are wider than 30 feet as floats as there is little side lighting in such structures.
A19: Float area | B19: 0 | C19: 0 | D19: =1-E13+E13*(1-E12/2) -> 1 | E19: 0 | F19: 0 | G19: =1-F13+F13*(1-F12/2) -> 1 | H19: Open area is divided by 2 to account for that it is not 100 % effective and substantial shading can occur based on thickness of material and angle of sun.
A20: Float Buffer: 10 feet wide times three shaded sides of structure. For marina floats with finger piers you may simplify and use outside dimensions. | C20: 0 | D20: =D19/2 -> 0.5 | E20: 0 | F20: 0 | G20: =G19/2 -> 0.5 | H20: Apply buffer to all foats. Shading impact in buffer set to half of shading impact of float.
A21: Boats | B21: 0 | C21: 0 | D21: 1 | E21: 0 | F21: 0 | G21: 1
A22: Prop Scour area | B22: 0 | C22: 0 | D22: 0.1 | E22: 0 | F22: 0 | G22: 0.1 | H22: Increase/change percent impact depending on project. For example, intense impacts occur around boat ramps.
A23: Area of Low Structures | B23: ='Jetty Install USZ 2'!F36+'Jetty Install USZ 2'!F37+0.0000000000001 -> 1e-13 | C23: =B23*0.000022956841139 -> 2.295684114e-18 | E23: ='Jetty Install USZ 2'!I36+'Jetty Install USZ 2'!I37+0.000000000000001 -> 1e-15 | F23: =E23*0.000022956841139 -> 2.295684114e-20 | H23: Check if this would make entry easier: Areas for low structures are copied from USZ spreadsheet.
A24: sum | B24: =SUM(B16:B23) -> 1e-13 | E24: =SUM(E16:E23) -> 1e-15
A25: sum | B25: =IF(B24<E24,E24,B24) -> 1e-13
A26: Calculations of area weighted averages. No entry fields for transperency, only.
D27: Before | E27: After | F27: Notes
A28: Average percent impact from shading on area covered by boats and floats including impacts from prop scour. | D28: =IF($D$16<=0.46,(B17*D17+B18*D18+B19*D19+B20*D20+B21*D21+B22*D22)/(B25+0.00000001),(B16*D16+B17*D17+B18*D18+B19*D19+B20*D20+B21*D21+B22*D22)/(B25+0.00000001)) -> 0 | E28: =IF($G$16<=0.46,(E17*G17+E18*G18+E19*G19+E20*G20+E21*G21+E22*G22)/(B25+0.00000001),(E16*G16+E17*G17+E18*G18+E19*G19+E20*G20+E21*G21+E22*G22)/(B25+0.00000001)) -> 0
A29: Remaining habitat value for combined shaded area including prop scour | D29: =(1-D28) -> 1 | E29: =(1-E28) -> 1 | F29: Values in blue cells are used in and automatically transferred into USZ sheet. This factor is used as a reduction factor for "Unobstructed Migratory Corridor" and "Vegetation".
A30: B Area Calculation for structures that eliminate access at most tides including piles and jetties:
A31: To evaluate the loss or gain in habitat quality related to three dimensional structures, fill out the habitat ranking for the before or after condition in the USZ tab. If piles are to be removed fill out the after condition, if they are to be installed, rank the before condition.
A32: Piles | C32: Before | D32: After | E32: Notes
A33: #piles | C33: 0 | D33: 0
A34: Diameter[ft] | C34: 0.8 | D34: 0.8
A35: Total SF | C35: =(POWER((C34/2),2)*PI())*C33 -> 0 | D35: =(POWER((D34/2),2)*PI())*D33 -> 0 | E35: Area taken up by pilings is inaccessible to fish
A36: SF of Jetties and other three dimensional structures | C36: 0 | D36: ='BoatR, Jetty'!E24 -> 0
A37: Sum of 3D structures in SQFT | C37: =SUM(C35:C36) -> 0 | D37: =SUM(D35:D36) -> 0
A38: Sum of 3D structures in acres | C38: =C37*0.000022956841139 -> 0 | D38: =D37*0.000022956841139 -> 0 | E38: Used for HEA calculations

Sheet Jetty Install USZ 2 (hidden)
A1: Inputs for Installation of Boatramps
A2: Nearshore Habitat Value Determination Model: Upper Shore Zone Habitat Value Determination
A3: The Upper Shore Zone 2 encompasses the area between MHHW and +5 MLLW. This model determines the habitat values for before and after a change from impacts including boat ramps and jetties. The NHVM and HEA are based on evaluating differenced between before and after conditions. If areas don't experiance a change in conditions, they can be excluded. For example, if a new overwater structure is installed waterward of an existing bulkhead, the area between HAT the bulkhead does not need to be included in the evaluation.
A4: If several actions occur at one site, evaluate OWS and shoreline armoring effects separately in the respective tabs.
A5: Yellow cells are to fill in.
A6: Grey cells contain essential questions
A7: Gree cells contain additional explanations
A8: Orange cells contain informational summary values | AI8: =IF('Jetty Install USZ 2'!D13="no",#REF!,300) -> 
A9: Light blue cells contain factors from Shade Imp tab
A10: Purple Cells contain BPJ reduction/credit factors
A11: A 1. General Project Factors for all structures
B12: Question | C12: Input Format | D12: User Entry | E12: Notes
A13: Duration | B13: Are the project impacts/benefits permanent? | C13: Yes/No | D13: No | E13: If project impacts or benefits are not permanent make sure to select NO.
B14: If temporary enter years of project impact | C14: Temp Impact Years | D14: 40 | E14: Enter number of years project will exist if other than permanent. Leave blank if permanent.
A15: Time Lag | B15: Years Until Full Functioning Habitat | C15: Years | D15: 1 | E15: If purchasing credits through a mitigation bank, enter 1. If calculating for permittee responsible mitigation, enter how many years after the impact full function of mitigation would be achieved. For restoration, the default for achieving full function after restoration in the nearshore marine environment is 3 years. The lowest possible value is 1. Do not enter values less than 1.
B16: Maximum Habitat Value for USZ 2 | C16: =IF(AND(D13="Yes",D14>1),"Check entry in D12","") ->  | D16: 0.9 | E16: Most structures in the USZ are in the USZ 2. To keep it simple, for the Nearshore PRGM we use as a conservative estimate the max habitat value for the USZ 2.
C17: Upper Shore Zone Affected Area
C18: Linear feet | D18: sqft | E18: acres | F18: Notes
A19: I | B19: Length (along shoreline) of area affected in the long term by project. C18 and C19 do not need to be filled in for OWS evaluation. For a boat ramp this is the area covered up plus visibly affected by interruption of sediment drift. | D19: =IF('Jetty Str Imp Inst USZ 2 '!B25>0.0000000000001,'Jetty Str Imp Inst USZ 2 '!B25,C19*C20) -> 0 | E19: =D19*0.000022956841139 -> 0 | F19: Areas needs to be same for before and after | H19: If not working with OWS but boat ramps for example, set all areas for OWS in "Shade Imp USZ" to 0.
A20: II | B20: Width of Upper Shore Zone [ft slope distance]: Area impacted in long-term by project. For overwater structures the action area in D18 is copied over from the Shade Imp USZ tab. | E20: For irregular OWS, the area can be entered directly in D17. In that case download new spreadsheet for next project as default formula that resides in D 17 will be deleted whe direct entry is made.
A21: B. Habitat Evaluation
F22: Before | I22: After
A23: # | B23: Indicator of Physical Habitat/ Physical and Biological Features | C23: Rating Questions | D23: Percent Influence of Indicator on Habitat Value | E23: Scores 0 to 1 | F23: Evaluation of Site Condition | G23: Indicator specific Score | H23: Indicator Specific Summary Score | I23: Evaluation of Site Condition | J23: Indicator specific Score | K23: Indicator Specific Summary Score | L23: Elements of Nearshore Marine PCEs addressed | M23: Notes
A24: Shoreline Complexity: Beach Logs and Wrack
A25: 1a | B25: Habitat Function from Large Wood and/or beach warack. Evaluate how much wood is present and what function it provides to site. Benefits from placement of large wood can be evaluated here. | C25: Beach logs and warack line provide full function - Chose this option for hybrid and soft armoring and natural shoreline. | D25: 0.1 | E25: 1 | F25: No | G25: =IF(F25="Yes",E25,0) -> 0 | I25: no | J25: =IF(I25="Yes",E25,0) -> 0 | L25: Food, Cover, | M25: Shoreline complexity including shallow-sloped banks with rack and beach logs as well as undercut banks provide food and cover to juvenile salmonids.
A26: 1b | C26: Beach logs and wrack line provide medium function. Choose this option for hard armoring above MHHW. | E26: 0.5 | F26: Yes | G26: =IF(F26="Yes",E26,0) -> 0.5 | I26: Yes | J26: =IF(I26="Yes",E26,0) -> 0.5
A27: 1c | C27: Beach logs provide little to no function. Choose this option for shoreline armoring at or below MHHW and when evaluating low profile man-made structures like boat ramps. | E27: 0 | F27: No | G27: =IF(F27="Yes",E27,0) -> 0 | H27: =SUM(G25:G27) -> 0.5 | I27: No | J27: =IF(I27="Yes",E27,0) -> 0 | K27: =SUM(J25:J27) -> 0.5
A28: Unobstructed Migratory Corridor
A29: What shallow water area [in sqft] juvenile rearing area is adversely impacted? A reduction in quality could be the result of shading from OWS, interruption of migratory corridor by boat ramps, rails, and low concrete rubble. The construction of three-dimensional structures is considered as a complete loss of habitat during most tides. Enter the footprint of three dimensional high structures like piles and jetties in the Shade and Structure Imp USZ tab.
A30: 2a | B30: The model only evaluates areas accessible to fish. Areas inaccessible to fish, for example areas covered up by piles and jetties, automatically receive an ovarall habitat value of 0 and are not considered in this ranking. | C30: The starting ranking for unobstructed migratory corridor of 1 is reduced below by effects from low structures and OWS. | D30: 0.45 | E30: 1 | F30: =E30 -> 1 | I30: =E30 -> 1 | L30: Migration
A31: 2b | B31: Impacts to Shallow Water Habitat, Accessibility, & Presence from low elevation structures including boat ramps. | C31: What shallow water area [in sqft] waterward of any BH and waterward of MHHW has reduced migratory corridor value for juvenile rearing? A reduction could be the result of man-made obstructions including concrete boat ramps, rip-rap shoulders, and marine rails. | F31: 0 | G31: =F30-(F31/(D19+0.00000000001))/2 -> 1 | I31: 0 | J31: =I30-(I31/(D19+0.00000000001))/2 -> 1 | M31: How much of an obstruction to migration are boat ramps? Boat ramps can have elevation and rip-rap shoulders. Assumption for nearshore is 50% based on discussion with Jeff Vanderpham. ToDo: Work with WDFW, tribes, and on BPJ survey. That includes higher and lower elevation boat ramps. For individual situations this can be changed as needed.
A32: 2c | B32: Shading from OWS | C32: Discounting factor, proportional to shading, determined in "Shade Imp LSZ" tab. For projects with no OWS impacts, check that Shade Imp USZ to make sure F31 and I31 remain at "1". | F32: ='Jetty Str Imp Inst USZ 2 '!D29 -> 1 | H32: =G31*F32 -> 1 | I32: ='Jetty Str Imp Inst USZ 2 '!E29 -> 1 | K32: =J31*I32 -> 1
A33: Substrate/Sediment Quality and Quantity: Active Erosion
A34: 3a | B34: Changes in Shoreline Armoring and their effects on sediment quality and quantity are evaluated in other shorel Stabiliz USZ tabs. We don't expect active erosion including beach lowering and substrate coarsening to result from the shoreline developments including piers and boat ramps evaluated in this tab. Thus, the entries in this category are set to a fixed value. Since there is no difference in the before and after it does not matter what the value is. | C34: How many linear feet of the existing or proposed shoreline is natural, soft, or hybrid? | D34: 0.1 | E34: 1 | F34: 0 | G34: 0 | I34: 0 | J34: 0 | L34: F, C, M | M34: Consider simplifying by adding these 10% from column D to category below. That would give greater impact/benefit to boat ramps. However, would be different PBF distribution compared to armoring. Run examples, discuss with Dave.
A35: Substrate/Sediment Quality and Quantity | E35: Enter sqft of area covered by low-elevation structures like concrete boat ramps. | I35: Enter sqft of area covered by low-elevation structures like concrete boat ramps.
A36: 3b | B36: This row evaluates the loss of substrate function resulting from development. It is based on sediment quality lost to low elevation structures like boat ramps. | C36: What area of sediment [in sqft] waterward of MHHW is lost for providing substate functions? Such loss includes sediment being covered up by low elevation structures like boat ramps and dislodged pieces of concrete rubble. High elevation structures that preclude access at most times, including piles and jetties, are evaluated separately; enter in Shade and Structure Imp USZ tab. | D36: 0.15 | F36: 0 | G36: =F36/'Jetty Str Imp Inst USZ 2 '!B23 -> 0 | I36: 0 | J36: =I36/'Jetty Str Imp Inst USZ 2 '!E23 -> 0 | M36: G41 calculates area averaged partial habitat value of sediment in the entire affected area. Calculations are based on assuming 0% function for area covered up by structures.
A37: 3c | B37: Reduction of substrate function due to interruption of longshore drift in the area not covered up by structures. | C37: What area of sediment [in sqft] provides reduced substrate function due to effects including visible interruption of longshore drift. This calculation reflects a reduction in values of the substrate in affected areas next to hard low and high structures including boat ramps and jetties. | F37: 0 | G37: =F37/'Jetty Str Imp Inst USZ 2 '!B23*0.5 -> 0 | H37: =1-(G37+G36) -> 1 | I37: ='BoatR, Jetty'!I22 -> 0 | J37: =I37/'Jetty Str Imp Inst USZ 2 '!E23*0.5 -> 0 | K37: =1-(J37+J36) -> 1 | M37: Reduction of values set to 50% as default. For simplicity, erosion potential was not considered here.
A38: Vegetation | F38: pick applicable condition | I38: pick applicable condition
A39: 4a | B39: Vegetation Condition, select one | C39: Enter “Y” if area with elevation that would support salmarsh vegetation is covered with >60% of upper intertidal vegetation including macro algae and saltmarsh vegetation like Salicornia sp. and Disticilis sp.. | D39: 0.1 | E39: 1 | F39: =IF('BoatR, Jetty'!E19=3,"yes","no") -> no | G39: =IF(F39="Yes",E39,0) -> 0 | I39: No | J39: =IF(I39="Yes",E39,0) -> 0 | L39: Food, Cover, Migration | M39: The lowest vegetation values gets a score of 0.25 rather than 0 to reflect the importance of micophytoplancton (diatoms) in the USZ 2, that is especially relevant in situations with no/little upper intertidal vegetation. | N39: Include in calculator if needed. Currently set to 0 as I have seen only one project with upper intertidal veg
A40: 4b | C40: Enter “Y” if area with elevation that would support salmarsh vegetation is covered with >30% and <60% of upper intertidal vegetation including macro algae and saltmarsh vegetation like Salicornia sp. and Disticilis sp.. | E40: 75 | F40: =IF('BoatR, Jetty'!E19=2,"yes","no") -> no | G40: =IF(F40="Yes",E40,0) -> 0 | I40: No | J40: =IF(I40="Yes",E40,0) -> 0
A41: 4c | C41: Enter “Y” if area with elevation that would support salmarsh vegetation is covered with >5% and < 30% of upper intertidal vegetation including macro algae and saltmarsh vegetation like Salicornia sp. and Disticilis sp.. | E41: 0.5 | F41: =IF('BoatR, Jetty'!E19=1,"yes","no") -> no | G41: =IF(F41="Yes",E41,0) -> 0 | I41: No | J41: =IF(I41="Yes",E41,0) -> 0
A42: 4d | C42: Enter “Y” if area with elevation that would support salmarsh vegetation is covered with <5% of upper intertidal vegetation including macro algae and saltmarsh vegetation like Salicornia sp. and Disticilis sp.. | E42: 0.25 | F42: =IF('BoatR, Jetty'!E19=0,"yes","no") -> yes | G42: =IF(F42="Yes",E42,0) -> 0.25 | I42: Yes | J42: =IF(I42="Yes",E42,0) -> 0.25
B43: Shading from OWS | C43: Discounting factor proportional to shading from pier, see "Shade&Str Imp USZ (before)" worksheet. | F43: ='Jetty Str Imp Inst USZ 2 '!D29 -> 1 | H43: =SUM(G39:G42)*F43 -> 0.25 | I43: ='Jetty Str Imp Inst USZ 2 '!E29 -> 1 | K43: =SUM(J39:J42)*I43 -> 0.25
A44: Water Quality | F44: pick applicable condition | I44: pick applicable condition
A45: 5a | B45: Evaluation of change in Water Quality Condition. Select one condition for before and after. What matters for the model is the difference between before and after. | C45: Good | D45: 0.1 | E45: 1 | F45: No | G45: =IF(F45="Yes",E45,0) -> 0 | I45: No | J45: =IF(I45="Yes",E45,0) -> 0 | L45: Water Quality | M45: Construction of a PRF and associated boat usually reduces the WQ in the small action area by one WQ category. For floats and any structure containing AZCA-treated wood that is likely to leach and chip, apply a one category (e.g. from medium to ppor for installation of treated wood pier) reduction/improvement of WQ. WQ benefit from removal of creosote is evaluated separately by ton of creosote removed.
A46: 5b | C46: Medium | E46: 0.5 | F46: Yes | G46: =IF(F46="Yes",E46,0) -> 0.5 | I46: No | J46: =IF(I46="Yes",E46,0) -> 0 | L46: Water Quality
A47: 5c | C47: Poor | E47: 0 | F47: No | G47: =IF(F47="Yes",E47,0) -> 0 | I47: Yes | J47: =IF(I47="Yes",E47,0) -> 0 | L47: Water Quality
H48: =SUM(G45:G47) -> 0.5 | K48: =SUM(J45:J47) -> 0
A49: Habitat Value | D49: =SUM(D24:D47) -> 1 | G49: NHV | H49: =(D25*H27+D30*H32+D34*G34+D36*H37+D39*H43+D45*H48)*D16 -> 0.6525 | J49: NHV | K49: =(K48*D45+K43*D39+K37*D36+J34*D34+K32*D30+K27*D25)*D16 -> 0.6075 | L49: NHV is already multiplied by max habitat value for elevation zone.
A50: DSAYs for USZ 2 high-elevation Structure effects | D50: =NoEntryDSAYCalcualtion!BL327 -> 0
A51: DSAYs for USZ 2 low elevation and OWS effects | D51: =NoEntryDSAYCalcualtion!BL10 -> 0
A52: DSAYs for Structure and Shade imp in USZ 2 | D52: =SUM(D50:D51) -> 0

Sheet BR Jetty Str Imp Inst LSZ (hidden)
A1: Inputs for Overwater Structures, Piles, Jetties
A2: You do not need to fill out this tab if your LSZ pre- AND post-project area are not impacted by OWS. Just make shure that blue cells in the LSZ tab show a 1.
A3: Yellow cells are to fill in.
A4: Grey cells contain essential questions
A5: Gree cells contain additional explanations
A6: Orange cells contain informational summary values
A7: Purple Cells indicate BPJ reduction/credit factors
A8: A General Overwater Project Inputs
D9: Enter percentages as number between 0 and 1 | E9: Before | F9: After
A10: Percent open space of Grating on Pier | E10: 0 | F10: 0.6 | G10: opens space is not 100% effective - see picture. We used standard 50% reduction factor when considering reduced shading impacts throug grating - G16 and G17.
A11: Percent Pier Grating | E11: 0 | F11: 0.9 | G11: Enter between 0 and 0.9. A value of 0.9 should be the highest entry as usually structural elements cover up at least 10 percent of area.
A12: Percent open space of Grating on Float | E12: 0 | F12: 0.6
A13: Percent Float Grating | E13: 0 | F13: 0.5 | G13: Usually the highes possible float grating is 50%
B14: Before | E14: After | H14: Notes
A15: Overwater Structure Elements | B15: sqft | C15: acres | D15: percent shading/impact | E15: sqft | F15: acres | G15: percent shading/impact
A16: 4-ft Piers, fully grated, exempt for 2018 RGP-6 | B16: 0 | C16: =B16*0.000022956841139 -> 0 | D16: =1-E11+E11*(1-E10/2) -> 1 | E16: 0 | F16: =E16*0.000022956841139 -> 0 | G16: =(1-F11+F11*(1-F10/2)) -> 0.73 | H16: For RGP-6 we assumed that an elevated and fully grated pier with 90% effective grating has no impact. This was partially base on conversations with WDFW Dan Pentilla. Biologically this could be viewed as if 46% shading (0.1*1 (shaded area) +0.9*0.4 (grated area with 60% open space)=0.46) is the threshold value for any effects. However, since we do not know what the threshold value is, or whether there is a threshold value, this value is informed by best possible design standards. For the Nearshore PRGM we changed and simplified: Based on field observation of stark shadows from elevated fully grated 4-foot piers we, we decided to assume an impact from pier shading reduced in effect by elevation and grating.
A17: Elevated Piers for Salish Sea Nearshore Programmatic. If piers are wider than 30 feet and have less than 3 ft clearance above MHHW | B17: 0 | C17: 0 | D17: =(1-E11+E11*(1-E10/2))*0.75 -> 0.75 | E17: 0 | F17: 0 | G17: =(1-F11+F11*(1-F10/2))*0.75 -> 0.5475 | H17: See pictures of 8 2019 RGP-6 compliance visit to right. A fully grated elevated pier has significant shading impact. In fact, at afternoon sun agle, shading impact seems very similar to a solid pier. To account for the significant shading from a fully grated structure, we assumed 50 percent effectiveness for garting. To account for side lighting in elevated structurs, we used an average reduction of the effect of shading related to the elevation of the pier. We did not have the data to model in detail the effecs of variables like hight, orientation, and thickness of grating. Thus, we assumed that side lighting from elevation reduces shading impact by 25% compared to shading effect from a float.
A18: Pier Buffer: 10 feet wide times three shaded sides of structure. For marina floats with finger piers you may simplify and use outside dimensions. | B18: 0 | C18: 0 | D18: =D17/2 -> 0.375 | E18: 0 | F18: 0 | G18: =G17/2 -> 0.27375 | H18: No pier buffer applied for SSNP. Shading impact in buffer set to half of shading impact of pier. Enter piers that have less than 4 feet clearance above MHHW and are wider than 30 feet as floats as there is little side lighting in such structures.
A19: Float area | B19: 0 | C19: 0 | D19: =1-E13+E13*(1-E12) -> 1 | E19: 0 | F19: 0 | G19: =1-F13+F13*(1-F12/2) -> 0.85 | H19: Open area is divided by 2 to account for that it is not 100 % effective and substantial shading can occur based on thickness of material and angle of sun.
A20: Float Buffer: 10 feet wide times three shaded sides of structure. For marina floats with finger piers you may simplify and use outside dimensions. | B20: 0 | C20: 0 | D20: =D19/2 -> 0.5 | E20: 0 | F20: 0 | G20: =G19/2 -> 0.425 | H20: Apply buffer to all foats. Shading impact in buffer set to half of shading impact of float. | I20: Figure shows shade impact from fully grated pier.
A21: Boats | B21: 0 | C21: 0 | D21: 1 | E21: 0 | F21: 0 | G21: 1 | H21: No used in RGP 6 or programmatic.
A22: Prop Scour area | B22: 0 | C22: 0 | D22: 0 | E22: 0 | F22: 0 | G22: 0 | H22: Increase/change percent impact depending on project. For example, intense impacts occur around boat ramps.
A23: Low Structures, or area proposed to be dredged in Lower Shore Zone. | B23: ='BR Jetty Inst LSZ '!F33+'BR Jetty Inst LSZ '!F34 -> 0 | C23: 0 | E23: ='BR Jetty Inst LSZ '!I33+'BR Jetty Inst LSZ '!I34 -> 0 | F23: 0 | H23: Areas for low structures and dredged areas in LSZ are copied from LSZ spreadsheet.
A24: Area impacted by long-term WQ degradation or improvement | B24: =(POWER((C24),2)*PI()) -> 0 | D24: Enter radius of affected area in ft in C24 or direcly enter affected are in B24 | H24: Determine impacts separately for each time horizon. For example, if water quality benefit from creosote is expected to be 100 years, whereas on-site benefits from structure removal would be 10 years, run two separate assessments. | I24: =(24.6+4)/2 -> 14.3
A25: sum | B25: =SUM(B16:B24)+0.0000000001 -> 1e-10 | E25: =SUM(E16:E24)+0.00000000001 -> 1e-11
A26: Affected Area | B26: =IF(B25<E25,E25,B25) -> 1e-10 | C26: =B26*0.000022956841139 -> 2.295684114e-15
A27: Calculations of area weighted averages. No entry fields for transperency, only.
C28: Before | D28: After | E28: Notes
A29: Average impact from shading on affected area | C29: =IF($D$16<=0.46,(B17*D17+B18*D18+B19*D19+B21*D21+B22*D22)/B26,((B16*D16+B17*D17+B18*D18+B19*D19+B21*D21+B22*D22)/B26)) -> 0 | D29: =IF($G$16<=0.46,(E17*G17+E18*G18+E19*G19+G20*E20+E21*G21+E22*G22)/B26,((E16*G16+E17*G17+E18*G18+E19*G19+E20*G20+E21*G21+E22*G22)/B26)) -> 0 | E29: Values in blue cells are used in and automatically transferred into USZ sheet.
A30: Remaining habitat value for affected area | C30: =(1-C29) -> 1 | D30: =(1-D29) -> 1 | E30: This factor is used as a reduction factor for "Vegetation" and "Unobstructed Migratory Corridor"
A31: B Area Calculation for structures that eliminate access at most tides including piles and jetties:
A32: To evaluate the loss or gain in habitat quality related to three dimensional structures, fill out the habitat ranking for the before or after condition in the USZ tab. If piles are to be removed fill out the after condition, if they are to be installed, rank the before condition. OWS piles can be evaluated in one spreadsheet with the OWS.
A33: Piles | C33: Before | D33: After | E33: Notes
A34: #piles | C34: 0 | D34: 0
A35: Diameter[ft] | C35: 1 | D35: 1
A36: Total SF | C36: =(POWER((C35/2),2)*PI())*C34 -> 0 | D36: =(POWER((D35/2),2)*PI())*D34 -> 0 | E36: Area taken up by pilings is inaccessible to fish
A37: SF of Jetties and other three dimensional structures | D37: ='BoatR, Jetty'!E25 -> 0
A38: Sum of 3D structures in SQFT | C38: =SUM(C36:C37) -> 0 | D38: =SUM(D36:D37) -> 0
A39: Sum of 3D structures in acres | C39: =C38*0.000022956841139 -> 0 | D39: =D38*0.000022956841139 -> 0 | E39: Used for HEA calculations where after habitat value is set to 0

Sheet BR Jetty Inst LSZ (hidden)
A1: Model parameters are fixed so that it workes with the entry mask for removal of BoatR, Jettie, Rubble.
A2: Nearshore Habitat Value Determination Model: Lower Shore Zone Habitat Value Determination
A3: The Lower Shore Zone encompassess the area between +5 MLLW and the lowest extent of on-site Submerged Aquatic Vegetation or -10 ft MLLW, whatever is deeper. This tab determines the habitat values for before and after a change occurs, restoration or degradation, for the entire affected lower shore zone. The NHVM and HEA are based on evaluating differenced between before and after conditions for the affected area. The affected area for the LSZ is determined from entries in the "Shade Imp LSZ" tab.
A4: Yellow cells are to fill in.
A5: Grey cells contain essential questions
A6: Gree cells contain additional explanations
A7: Orange cells contain informational summary values
A8: Light blue cells contain factors from Shade Imp tab
A9: Purple Cells contain BPJ reduction/credit factors
A10: A. General Project Factors
B11: Question | C11: Input Format | D11: User Entry | E11: Notes
A12: Duration | B12: Are the project impacts/benefits permanent? | C12: Yes/No | D12: No | E12: If project impacts are not permanent make sure to select NO.
B13: If temporary enter years of project impact | C13: Temp Impact Years | D13: 40 | E13: Enter number of years project will exist if other than permanent (leave blank if permanent)
A14: Time Lag | B14: Years Until Full Functioning Habitat | C14: Years | D14: 1 | E14: If purchasing credits through a mitigation bank, enter 1. If calculating for permittee responsible mitigation, enter how many years after the impact full function of mitigation would be achieved. For restoration, the default for achieving full function after restoration in the nearshore marine environment is 3 years. The lowest possible value is 1. Do not enter values less than 1.
B15: Maximum Habitat Value for LSZ | C15: =IF(AND(D13>1,D12="Yes"), "check D11","") ->  | D15: 1
A16: B. Habitat Evaluation
F17: Before | I17: After
A18: # | B18: Indicator of Physical Habitat | C18: Evaluation Questions | D18: Percent Influence of Indicator on Habitat Value | E18: Scores 0 to 1 | F18: Evaluation of Site Condition | G18: Indicator specific Score | H18: Summary Project Points by Category | I18: Evaluation of Site Condition | J18: Indicator specific Score | K18: Summary Project Points by Category | L18: Elements of Nearshore Marine PCEs addressed | M18: Notes
A20: Cover and Primary Production: Submerged Aquatic Vegetation (SAV) | F20: pick applicable condition | I20: pick applicable condition
A21: 1a | B21: SAV condition, select one. pick "yes" in only one field. Choose condition 1a, 1b, 1c,or 1d. Detailed descriptions are contained in Documentation and on COE RGP-6 web-page. | C21: Aquatic vegetation value 3 high. | D21: 0.3 | E21: 1 | F21: =IF('BoatR, Jetty'!E8=3,"yes","no") -> no | G21: =IF(F21="YES",E21,0) -> 0 | I21: no | J21: =IF(I21="YES",E21,0) -> 0 | L21: Food, Cover | M21: The lowest SAV values gets a score of 0.25 rather than 0 to reflect the importance of micophytoplancton (diatoms) that is especially relevant in situations with no/little SAV (Lessin et al. 2018).
A22: 1b | C22: Aquatic vegetation value medium 2, incl. native oyster beds. | E22: 0.75 | F22: =IF('BoatR, Jetty'!E8=2,"yes","no") -> no | G22: =IF(F22="YES",E22,0) -> 0 | I22: No | J22: =IF(I22="YES",E22,0) -> 0
A23: 1c | C23: Aquatic vegetation 1 value low. | E23: 0.5 | F23: =IF('BoatR, Jetty'!E8=1,"yes","no") -> no | G23: =IF(F23="YES",E23,0) -> 0 | I23: No | J23: =IF(I23="YES",E23,0) -> 0
A24: 1d | C24: Aquatic vegetation value 0, very low. | E24: 0.25 | F24: =IF('BoatR, Jetty'!E8=0,"yes","no") -> yes | G24: =IF(F24="YES",E24,0) -> 0.25 | H24: =SUM(G21:G24) -> 0.25 | I24: yes | J24: =IF(I24="YES",E24,0) -> 0.25 | K24: =SUM(J21:J24) -> 0.25
A25: f1 | B25: Shading from OWS | C25: Discounting factor, proportional to shading and prop scour impact, determined in "Shade Imp LSZ" tab. | F25: ='BR Jetty Str Imp Inst LSZ'!C30 -> 1 | H25: =H24*F25 -> 0.25 | I25: ='BR Jetty Str Imp Inst LSZ'!D30 -> 1 | K25: =K24*I25 -> 0.25
A26: Unobstructed migratory Corridor
A27: What shallow water area [in sqft] juvenile rearing area is adversely impacted? A reduction in quality could be the result of shading from OWS, interruption of migratory corridor by boat ramps, rails, and low concrete rubble. The construction of three-dimensional structures is considered as a complete loss of habitat during most tides. Enter the footprint of three dimensional high structures like piles and jetties in the Shade and Structure Imp USZ tab.
A28: 3a | B28: The model only evaluates areas accessible to fish. Areas inaccessible to fish, for example areas covered up by piles and jetties, automatically receive an ovarall habitat value of 0 and are not considered in this ranking. | C28: The starting ranking for unobstructed migratory corridor of 1 is reduced below by effects from low structures, dredging, and OWS. | E28: 1 | F28: =E28 -> 1 | I28: =E28 -> 1
A29: 3b | B29: Impacts to Shallow Water Habitat, Accessibility, & Presence from low elevation structures including boat ramps, concrete rubble, and mooring anchors. | C29: What shallow water area [in sqft] has reduced migratory corridor value for juvenile rearing? A reduction could be the result of man-made obstructions including concrete boat ramps, rip-rap shoulders, and marine rails. | F29: 0 | G29: =F28-(F29/('BR Jetty Str Imp Inst LSZ'!B25+0.00000000001))/2 -> 1 | I29: ='BoatR, Jetty'!E15 -> 0 | J29: =I28-(I29/('BR Jetty Str Imp Inst LSZ'!E25+0.00000000001))/2 -> 1 | M29: How much of an obstruction to migration are boat ramps? Assumption for nearshore is 50%. That includes higher and lower elevation boat ramps. For individual situations this can be changed as needed.
A30: 2b | B30: Maintenance Dredging - evaluate dredging separately from other potential impacts. | C30: Is habitat is impacted by dredging related? Y or N. If so, NHV for LSZ gets multiplied with 0.6, to account for reduced short-term availiability of invertebrate prey and increased depth. | F30: No | G30: =IF(F30="no",G29,(G29*0.6)) -> 1 | I30: No | J30: =IF(I30="no",J29,(J29*0.6)) -> 1 | M30: Model needs numbers for average frequency of disturbance and average change in depth to better estimate impact. Also, we plan on further developing how the model tracks dredging and appreciate your feedback for our next version.
A31: 2c | B31: Shading from OWS | C31: Discounting factor, proportional to shading, determined in "Shade Imp LSZ" tab. | D31: 0.45 | F31: =F25 -> 1 | H31: =G30*F31 -> 1 | I31: =I25 -> 1 | K31: =J30*I31 -> 1 | M31: Accounts for impact to unobstructed migratory corridor.
A32: Substrate/Sediment Quality
A33: 3a | B33: Loss of substrate function resulting from Development | C33: Sediment quality lost to low-elevation structures: What area of sediment [in sqft] is lost for providing substate functions? Such loss could stem from the sediment being covered up by structures including boat ramps, dislodged pieces of concrete rubble, and dredging. High elevation structures that preclude access including piles and jetties are evaluated separately. Enter high elevation structures in Shade and Structure Imp LSZ tab. | D33: 0.15 | E33: 0 | F33: 0 | G33: =(F33/'BR Jetty Str Imp Inst LSZ'!$B$26) -> 0 | I33: ='BoatR, Jetty'!E15 -> 0 | J33: =(I33/'BR Jetty Str Imp Inst LSZ'!$B$26) -> 0 | L33: F, C, M | M33: Formula determines remaining partial habitat value in action area. For action areas that are completely covered by concrete or riprap, the substrate score should be 0.
A34: 3c | B34: Reduction of substrate function due to interruption of longshore drift in the area not covered up by structures. | C34: What area of sediment [in sqft] provides reduced substrate function due to effects including visible interruption of longshore drift. This calculation reflects a reduction in values of the substrate in affected areas next to hard low and high structures including boat ramps and jetties. | E34: 0 | F34: 0 | G34: =(F34/'BR Jetty Str Imp Inst LSZ'!$B$26)*0.5 -> 0 | H34: =1-(G33+G34) -> 1 | I34: 0 | J34: =(I34/'BR Jetty Str Imp Inst LSZ'!$B$26)*0.5 -> 0 | K34: =1-(J33+J34) -> 1 | M34: Reduction of values set to 50% as default. For simplicity, erosion potential was not considered here. | N34: Is this relevant in LSZ?
A35: Water Quality | F35: pick applicable condition | I35: pick applicable condition
A36: 4a | B36: Evaluation of change in Water Quality Condition. Select one condition for before and after. What matters for the model is the difference between before and after. | C36: Good | D36: 0.1 | E36: 1 | F36: No | G36: =IF(F36="Yes",E36,0) -> 0 | I36: No | J36: =IF(I36="Yes",E36,0) -> 0 | L36: Q | M36: Construction of a float usually reduces the WQ in the action area and buffer by one WQ category because of treated wood in structural elements. For creosote removal, a WQ improvement of two categories applies in the affected area around piles.
A37: 4b | C37: Medium | E37: 0.5 | F37: Yes | G37: =IF(F37="Yes",E37,0) -> 0.5 | I37: =IF('BoatR, Jetty'!E10="Yes","no","yes") -> yes | J37: =IF(I37="Yes",E37,0) -> 0.5 | L37: Q
A38: 4c | C38: Poor | E38: 0 | F38: No | G38: =IF(F38="Yes",E38,0) -> 0 | I38: =IF('BoatR, Jetty'!E10="Yes","Yes","no") -> no | J38: =IF(I38="Yes",E38,0) -> 0 | L38: Q
H39: =IF(F14="yes",0,SUM(G36:G38)) -> 0.5 | K39: =IF(F14="yes",1,SUM(J36:J38)) -> 0.5
A40: Habitat Value | D40: =SUM(D21:D39) -> 1 | G40: NHV | H40: =(D21*H25+D31*H31+D33*H34+D36*H39)*D15 -> 0.725 | J40: NHV | K40: =(D21*K25+D31*K31+D33*K34+D36*K39)*D15 -> 0.725 | L40: NHV is already multiplied by max habitat value for elevation zone.
A41: DSAYs for LSZ high-elevation Structure effects | D41: =NoEntryDSAYCalcualtion!BV327 -> 0
A42: DSAYs for LSZ low elevation and OWS effects | D42: =NoEntryDSAYCalcualtion!BV10 -> 0 | E42: MP
A43: Total DSAYs LSZ | D43: =SUM(D41:D42) -> 0 | E43: =D43*100 -> 0

Sheet BR Jetty Str Imp Inst DZ (hidden)
A1: Inputs for Overwater Structures
A2: You do not need to fill out this tab if your DZ pre- AND post-project area are not impacted by OWS. Just make shure that blue cells in the LSZ tab show a 1.
A3: Yellow cells are to fill in.
A4: Grey cells contain essential questions
A5: Gree cells contain additional explanations
A6: Orange cells contain informational summary values
A7: A General Overwater Project Inputs
D8: Enter percentages as number between 0 and 1 | E8: Before | F8: After
A9: Percent open space of Grating on Pier | E9: 0 | F9: 0.6 | G9: Assumed that only 50% of open space is effective due to shading of open spaces based on thickness of material, orientation, and angle of sun.
A10: Percent Pier Grating | E10: 0 | F10: 0.9 | G10: Enter between 0 and.9. 0.9 should be the highest entry as usually structural elements cover up at least 10 percent of area.
A11: Percent open space of Grating on Float | E11: 0 | F11: 0.6 | G11: Assumed that only 50% of open space is effective due to shading of open spaces based on thickness of material, orientation, and angle of sun.
A12: Percent Float Grating | E12: 0 | F12: 0.5 | G12: Usually the highes possible float grating is 50%
B13: Before | E13: After | H13: Notes
A14: Overwater Structure Elements | B14: sqft | C14: acres | D14: percent shading/impact | E14: sqft | F14: acres | G14: percent shading/impact
A15: 4-ft Piers, fully grated, exempt for 2018 RGP-6 | B15: 0 | C15: =B15*0.000022956841139 -> 0 | D15: =1-E10+E10*(1-E9) -> 1 | E15: 0 | F15: =E15*0.000022956841139 -> 0 | G15: =1-F10+F10*(1-F9) -> 0.46 | H15: For RGP-6 we assumed that an elevated and fully grated pier with 90% effective grating has no impact. This was partially base on conversations with WDFW Dan Pentilla. Biologically this could be viewed as if 46% shading (0.1*1 (shaded area) +0.9*0.4 (grated area with 60% open space)=0.46) is the threshold value for any effects. However, since we do not know what the threshold value is, or whether there is a threshold value, this value is informed by best possible design standards. For the Nearshore PRGM we changed and simplified: Based on field observation of stark shadows from elevated fully grated 4-foot piers we, we decided to assume an impact from pier shading reduced in effect by elevation and grating.
A16: Elevated Piers for Salish Sea Nearshore Programmatic | B16: 0 | C16: 0 | D16: =1-E10+E10*(1-E9*0.8) -> 1 | E16: 0 | F16: 0 | G16: =(1-F10+F10*(1-F9/2))*0.75 -> 0.5475 | H16: See pictures of 8 2019 RGP-6 compliance visit to right. A fully grated elevated pier has significant shading impact. In fact, at afternoon sun agle, shading impact seems very similar to a solid pier. For reasons of simplicity, we chose to estimate an average reduction of effect of shading related to the elevation of the pier rather than model in detail the effecs of variables like hight, orientation, and thickness of grating. We assumed that: side lighting from elevation reduces shading impact by 25% compared to shading effect from a float.
A17: Pier Buffer: 10 feet wide times three shaded sides of structure. For marina floats with finger piers you may simplify and use outside dimensions. | B17: 0 | C17: 0 | D17: =D16/2 -> 0.5 | E17: 0 | F17: 0 | G17: =G16/2 -> 0.27375 | H17: No pier buffer applied for SSNP. Shading impact in buffer set to half of shading impact of pier. Enter piers that have less than 4 feet clearance above MHHW and are wider than 30 feet as floats as there is little side lighting in such structures.
A18: Float area | B18: 0 | C18: 0 | D18: =1-E12+E12*(1-E11*0.4) -> 1 | E18: 0 | F18: 0 | G18: =1-F12+F12*(1-F11/2) -> 0.85 | H18: While the footprint of the shade on the nearshore floor is larger than the float size, we eliminated the buffer concept for the Nearshore prgm for reasons of simplicity.
A19: Float Buffer: 10 feet wide times three shaded sides of structure. For marina floats with finger piers you may simplify and use outside dimensions. | B19: 0 | C19: 0 | D19: =D18/2 -> 0.5 | E19: 0 | F19: 0 | G19: =G18/2 -> 0.425 | H19: Shading impact in buffer set to half of shading impact of float.
A20: Boats | B20: 0 | C20: 0 | D20: 1 | E20: 0 | F20: 0 | G20: 1 | H20: No used in RGP 6 or SSNP programmatic.
A21: Low Structures, or area proposed to be dredged in Deep Shore Zone. | B21: ='BR Jetty Inst DZ '!F22 -> 0 | C21: 0 | E21: ='BR Jetty Inst DZ '!I28 -> 0 | F21: 0 | H21: Areas for pilings, solid structures, and dredged areas in DZ are copied from DZ spreadsheet.
A22: sum | B22: =SUM(B15:B21)+0.0000001 -> 1e-07 | E22: =SUM(E15:E21)+0.00000000001 -> 1e-11
A23: Affected Area | B23: =IF(B22<E22,E22,B22) -> 1e-07 | C23: =B23*0.000022956841139 -> 2.295684114e-12
C25: Before | D25: After | E25: Notes
A26: Impact from shading on combined boat and float cover area. | C26: =IF($D$15<=0.46,(B16*D16+B17*D17+B18*D18+B19*D19+B20*D20)/B23,((B15*D15+B16*D16+B17*D17+B18*D18+B19*D19+B20*D20)/B23)) -> 0 | D26: =IF($G$15<=0.46,(E16*G16+E17*G17+E18*G18+E19*G19+E20*G20)/B23,((E15*G15+E16*G16+E17*G17+E18*G18+E19*G19+E20*G20)/B23)) -> 0 | E26: Values in blue cells are used in and automatically transferred into DZ sheet.
A27: Remaining habitat value for combined shaded area | C27: =(1-C26) -> 1 | D27: =(1-D26) -> 1 | E27: This factor is used as a reduction factor for "Primary Production" & "Shallow Water Habitat and Accessibility"
A29: B Area Calculation for structures that eliminate access including piles and jetties:
A30: To evaluate the loss or gain in habitat quality related to three dimensional structures, fill out the habitat ranking for the before or after condition in the USZ tab. If piles are to be removed fill out the after condition, if they are to be installed, rank the before condition. OWS piles can be evaluated in one spreadsheet with the OWS.
A31: Piles | C31: Before | D31: After | E31: Notes
A32: #piles | C32: 0 | D32: 0
A33: Diameter[ft] | C33: 1 | D33: 1
A34: Total SF | C34: =(POWER((C33/2),2)*PI())*C32 -> 0 | D34: =(POWER((D33/2),2)*PI())*D32 -> 0 | E34: Area taken up by pilings is inaccessible to fish
A35: SF of Jetties and other three dimensional structures | D35: ='BoatR, Jetty'!E26 -> 0
A36: Sum of 3D structures in SQFT | C36: =SUM(C34:C35) -> 0 | D36: =SUM(D34:D35) -> 0
A37: Sum of 3D structures in acres | C37: =C36*0.000022956841139 -> 0 | D37: =D36*0.000022956841139 -> 0 | E37: Used for HEA calculations where after habitat value is set to 0

Sheet BR Jetty Inst DZ (hidden)
A2: Nearshore Habitat Value Determination Model:Deep Shore Zone Habitat Value Determination
A3: The "Deeper Critical Habitat Zone" extends from -10 feet MLLW, or the lowest extend of macroalgae growth, whatever is deeper, to the lowest extent of Chinook Critical Habitat, -98 feet (30 meters).
A4: Yellow cells are to fill in.
A5: Grey cells contain essential questions
A6: Gree cells contain additional explanations
A7: Orange cells contain informational summary values
A8: Light blue cells contain factors from Shade Imp tab
A9: Purple Cells contain BPJ reduction/credit factors | AI9: =IF('BR Jetty Inst DZ '!D12="no",'BR Jetty Inst LSZ '!N13,300) -> 0
A10: A. General Project Factors
B11: Question | C11: Input Format | D11: User Entry | E11: Notes
A12: Duration | B12: Project impacts/benefits are permanent | C12: Yes/No | D12: No | E12: Project impacts or mitigation are assumed to be permanent.
B13: If temporary enter years of project impact | C13: Temp Impact Years | D13: 40 | E13: Enter number of years project will exist if other than permanent (leave blank if permanent)
A14: Time Lag | B14: Years Until Full Functioning Habitat | C14: Years | D14: 1 | E14: If purchasing credits through a mitigation bank, enter 1. If calculating for permittee responsible mitigation, enter how many years after the impact full function of mitigation would be achieved. For restoration, the default for achieving full function after restoration in the nearshore marine environment is 3 years. The lowest possible value is 1. Do not enter values less than 1.
B15: Maximum Habitat Value for Deep Shore Zone | C15: 0.4 | E15: A maximum habitat value of 1 is generally assigned only to areas which are accessible to fish at all times of the year and are of highest value. Higher elevations like riparian areas receive a reduced maximum habitat value based on duration of access and biological importance to fish. For the target species and life stage juvenile Chinook, the shallow water of the USZ, and LSZ are most important. Thus, the DSZ receives a reduced maximum habitat value.
A16: B. Habitat Evaluation
F17: Before | I17: After
A18: # | B18: Indicator of Physical Habitat | C18: Evaluation Questions | D18: Percent Influence of Indicator on Habitat Value | E18: Scores 0 to 1 | F18: Evaluation of Site Condition | G18: Indicator specific Score | H18: Summary Project Points by Category | I18: Evaluation of Site Condition | J18: Indicator specific Score | K18: Summary Project Points by Category | L18: Elements of Nearshore Marine PCEs addressed | M18: Notes
F19: [sqft] | I19: [sqft]
A20: Unobstructed migratory Corridor
A21: 1a | B21: The model only evaluates areas accessible to fish. Areas inaccessible to fish, for example areas covered up by piles and jetties, automatically receive an ovarall habitat value of 0 and are not considered in this ranking. | C21: The starting ranking for unobstructed migratory corridor of 1 is reduced below by effects from low structures, dredging, and OWS. | D21: 0.45 | E21: 1 | F21: =E21 -> 1 | I21: =E21 -> 1
A22: 1b | B22: Impacts to Shallow Water Habitat, Accessibility, & Presence from low elevation structures. | C22: What shallow water area [in sqft] has reduced migratory corridor value for juvenile rearing? | F22: 0 | G22: =F21-(F22/('BR Jetty Str Imp Inst DZ'!B22+0.00000000001))/2 -> 1 | I22: 0 | J22: =I21-(I22/('BR Jetty Str Imp Inst DZ'!E22+0.00000000001))/2 -> 1 | M22: Probably not applicable in deep zone. Consider eliminating from DZ if no example.
B23: Effect of shading in DZ not as relevant as in LSZ and USZ as juveniles don't need to leave protection of shallow water. | C23: Discounting factor for OWS, proportional to shading, see Shade Impact PRF worksheet. | F23: =IF('BR Jetty Str Imp Inst DZ'!C27>=0.99,1,1-'BR Jetty Str Imp Inst DZ'!C26/2) -> 1 | H23: =G22*F23 -> 1 | I23: =IF('BR Jetty Str Imp Inst DZ'!D27>=0.99,1,1-'BR Jetty Str Imp Inst DZ'!D26/2) -> 1 | K23: =J22*I23 -> 1 | L23: Accounts for impact to unobstructed migratory corridor. | M23: 50% impact from shading to migratiory corridor function compared to 100% in USZ and LSZ. Impact to juveniles from increased migratory path length less impactful if they don't have to leave shallow water (Willette et al. 2001)
A24: Primary Production
B25: Primary Production, less relevant per area than SAV | C25: Primary production from phytoplankton and microphytobenthos (e.g. diatoms in sediment). | D25: 0.25 | E25: 1 | G25: 1 | J25: 1 | L25: F, C, M
A26: 2 | C26: Discounting factor for OWS, proportional to shading, see Shade Impact DZ worksheet. | F26: ='BR Jetty Str Imp Inst DZ'!C27 -> 1 | H26: =G25*F26 -> 1 | I26: ='BR Jetty Str Imp Inst DZ'!D27 -> 1 | K26: =J25*I26 -> 1
A27: Substrate/Sediment Quality
B28: Sediment | C28: Sediment quality lost to structures: What area of sediment [in sqft] is lost for providing substate functions? Such loss could stem from the sediment being covered up by structures including dislodged pieces of concrete rubble, jetties, and dredging. | D28: 0.15 | E28: 0 | F28: 0 | G28: =F28/'BR Jetty Str Imp Inst DZ'!B23 -> 0 | H28: =1-G28 -> 1 | I28: ='BoatR, Jetty'!E16 -> 0 | J28: =I28/'BR Jetty Str Imp Inst DZ'!B23 -> 0 | K28: =1-J28 -> 1 | L28: F, C, M
A29: Water Quality | F29: pick applicable condition | I29: pick applicable condition
A30: 6a | B30: Water Quality | C30: Is water quality in action area optimal? Use location as surrogate if no data. If action area is in undeveloped part of Puget Sound choose "yes" | D30: 0.15 | E30: 1 | F30: No | G30: =IF(F30="Yes",E30,0) -> 0 | I30: No | J30: =IF(I30="Yes",E30,0) -> 0 | L30: Q | M30: Chose one condition, a, b, or c. Construction of a PRF and associated boat usually reduces the WQ in the small action area by one category, one point.
A31: 6b | C31: Is water quality in action area free of major contaminants associated with industrial and urban development like harbors, water treatment plants, and untreated storwater inputs? Use location as surrogate if no data. If action area is in little to medium developed part of Puget Sound, like Wollochet Bay, Horshead Bay, Gig Harbor, choose "yes" | E31: 0.5 | F31: Yes | G31: =IF(F31="Yes",E31,0) -> 0.5 | I31: =IF('BoatR, Jetty'!E10="Yes","no","yes") -> yes | J31: =IF(I31="Yes",E31,0) -> 0.5 | L31: Q
A32: 6c | C32: Is WQ impacted by major contaminants associated with industrial and urban development like harbors, water treatment plants, and untreated storwater inputs? Use location, as surrogate if no data. If action area is very developed and has WQ effects from industrial sources, like Commencement Bay, Duwamish, choose "yes". | E32: 0 | F32: No | G32: =IF(F32="Yes",E32,0) -> 0 | H32: =SUM(G30:G32) -> 0.5 | I32: =IF('BoatR, Jetty'!E10="Yes","Yes","no") -> no | J32: =IF(I32="Yes",E32,0) -> 0 | K32: =SUM(J30:J32) -> 0.5 | L32: Q
A33: Habitat Value | D33: =SUM(D21:D30) -> 1 | F33: NHV | G33: =(H23*D21+D28*H28+H26*D25+H32*D30)*C15 -> 0.37 | I33: NHV | J33: =(K32*D30+K26*D25+D28*K28+K23*D21)*C15 -> 0.37 | K33: NHV is already multiplied by max habitat value for elevation zone.
A35: DSAYs for LSZ high-elevation Structure effects | D35: =NoEntryDSAYCalcualtion!CF327 -> 0
A36: DSAYs for LSZ low elevation and OWS effects | D36: =NoEntryDSAYCalcualtion!CF10 -> 0
A37: Total DSAYs LSZ

Sheet NoEntryDSAYCalcualtion (hidden)
A1: The HEA calculators in this tab are from the 2008 version that Steve Landino got from Rob Wolotira (NOAA NRDA). | K1: shorel Stabiliz USZ1 install | O1: USZ 1 is MHHW to HAT | U1: shorel Stabiliz USZ2 install | Y1: USZ 2 is +5 MHHW to MHHW | AF1: shorel Stabiliz USZ1 remove | AP1: shorel Stabiliz USZ2 remove | AZ1: Boat Ramp installation USZ 2 | BJ1: Jetty installation USZ 2 | BT1: Boat Ramp & Jetty Installation LSZ | CD1: Boat Ramp and Jetty Installation DZ
A2: Daniel Krenz (COE) and Stephanie Ehinger updated them. | K2: Shoreline Stabilization USZ 1 area waterward of hard armoring | U2: Shoreline Stabilization USZ 2 remaining, waterward of hard armoring | AF2: Shoreline Stabilization USZ 1 area waterward of hard armoring | AP2: Shoreline Stabilization USZ 2 remaining, waterward of hard armoring | AZ2: USZ 2 Shade and Structures remaining | BJ2: USZ 2 Shade and Structures remaining | BT2: Lower Shore Zone remaining | CD2: Deep Shore Zone
A3: They now allow for determining benefits for limited durations (Lookup function for DSAY raw score) | K3: Acres of Habitat: | O3: ='shorel Stabiliz USZ install'!H24 -> 0 | U3: Acres of Habitat: | Y3: ='shorel Stabiliz USZ install'!H26 -> 0 | AF3: Acres of Habitat: | AJ3: ='shorel Stabiliz USZ remove'!F24 -> 0 | AP3: Acres of Habitat: | AT3: ='shorel Stabiliz USZ remove'!F26 -> 0 | AZ3: Acres of Habitat: | BD3: ='BR Install USZ 2'!E19 -> 0 | BJ3: Acres of Habitat: | BN3: ='Jetty Install USZ 2'!E19 -> 0 | BT3: Acres of Habitat: | BX3: ='BR Jetty Str Imp Inst LSZ'!C26 -> 2.295684114e-15 | BZ3: One HEA be used for BR and Jetty installation as there is no impact on shore drift in LSZ. | CD3: Acres of Habitat: | CH3: ='BR Jetty Str Imp Inst DZ'!C23 -> 2.295684114e-12
A4: These spreadsheets do not allow to determine time delays between impact and benefit. | K4: Initial Value of Habitat/ Habitat Value Before: | O4: ='shorel Stabiliz USZ install'!H67*'shorel Stabiliz USZ install'!D17 -> 0.525 | U4: Initial Value of Habitat/ Habitat Value Before: | Y4: ='shorel Stabiliz USZ install'!H67*'shorel Stabiliz USZ install'!D18 -> 0.7875 | AF4: Initial Value of Habitat/ Habitat Value Before: | AJ4: ='shorel Stabiliz USZ remove'!H67*'shorel Stabiliz USZ remove'!D17 -> 0.36 | AP4: Initial Value of Habitat/ Habitat Value Before: | AT4: ='shorel Stabiliz USZ remove'!H67*'shorel Stabiliz USZ remove'!D18 -> 0.54 | AZ4: Initial Value of Habitat/ Habitat Value Before: | BD4: ='BR Install USZ 2'!H49 -> 0.6525 | BJ4: Initial Value of Habitat/ Habitat Value Before: | BN4: ='Jetty Install USZ 2'!H49 -> 0.6525 | BT4: Initial Value of Habitat/ Habitat Value Before: | BX4: ='BR Jetty Inst LSZ '!H40 -> 0.725 | CD4: Initial Value of Habitat/ Habitat Value Before: | CH4: ='BR Jetty Inst DZ '!G33 -> 0.37
A5: Paul Cereghino (NOAA NRDA) shared a spreadsheet with Stephanie Ehinger that is more refined. | K5: Value of Post-Construction Habitat: | O5: ='shorel Stabiliz USZ install'!K67*'shorel Stabiliz USZ install'!D17 -> 0.39 | U5: Value of Post-Construction Habitat: | Y5: ='shorel Stabiliz USZ install'!K67*'shorel Stabiliz USZ install'!D18 -> 0.585 | AF5: Value of Post-Construction Habitat: | AJ5: ='shorel Stabiliz USZ remove'!K67*'shorel Stabiliz USZ remove'!D17 -> 0.465 | AP5: Value of Post-Construction Habitat: | AT5: ='shorel Stabiliz USZ remove'!K67*'shorel Stabiliz USZ remove'!D18 -> 0.6975 | AZ5: Value of Post-Construction Habitat: | BD5: ='BR Install USZ 2'!K49 -> 0.6525 | BJ5: Value of Post-Construction Habitat: | BN5: ='Jetty Install USZ 2'!K49 -> 0.6075 | BT5: Value of Post-Construction Habitat: | BX5: ='BR Jetty Inst LSZ '!K40 -> 0.725 | CD5: Value of Post-Construction Habitat: | CH5: ='BR Jetty Inst DZ '!J33 -> 0.37
A6: We adopted this spreadsheet for the riparian impact/benefit determinations as we usually expect delays (see RZ HEA). | K6: Delta Habitat Values | O6: =O5-O4 -> -0.135 | U6: Delta Habitat Values | Y6: =Y5-Y4 -> -0.2025 | AF6: Delta Habitat Values | AJ6: =AJ5-AJ4 -> 0.105 | AP6: Delta Habitat Values | AT6: =AT5-AT4 -> 0.1575 | AZ6: Delta Habitat Values | BD6: =BD5-BD4 -> 0 | BJ6: Delta Habitat Values | BN6: =BN5-BN4 -> -0.045 | BT6: Delta Habitat Values | BX6: =BX5-BX4 -> 0 | CD6: Delta Habitat Values | CH6: =CH5-CH4 -> 0
A7: Further, we used the "Cereghino" spreadsheet for determining impacts with time delays that we list in the conservation calculator as lookum values: Creosote removal. | K7: Years Until Full Functioning Habitat/Years for Changes to Fully manifest: | O7: ='shorel Stabiliz USZ install'!D16 -> 1 | U7: Years Until Full Functioning Habitat/Years for Changes to Fully manifest: | Y7: ='shorel Stabiliz USZ install'!D16 -> 1 | AF7: Years Until Full Functioning Habitat/Years for Changes to Fully manifest: | AJ7: ='shorel Stabiliz USZ remove'!D16 -> 1 | AP7: Years Until Full Functioning Habitat/Years for Changes to Fully manifest: | AT7: ='shorel Stabiliz USZ remove'!D16 -> 1 | AZ7: Years Until Full Functioning Habitat/Years for Changes to Fully manifest: | BD7: ='BR Install USZ 2'!D15 -> 1 | BJ7: Years Until Full Functioning Habitat/Years for Changes to Fully manifest: | BN7: ='Jetty Install USZ 2'!D15 -> 1 | BT7: Years Until Full Functioning Habitat/Years for Changes to Fully manifest: | BX7: ='BR Jetty Inst LSZ '!D14 -> 1 | CD7: Years Until Full Functioning Habitat/Years for Changes to Fully manifest: | CH7: ='BR Jetty Inst DZ '!D14 -> 1
K8: # Years Project Exists: | O8: =IF('shorel Stabiliz USZ install'!D14="no",'shorel Stabiliz USZ install'!D15,300) -> 50 | U8: # Years Project Exists: | Y8: =IF('shorel Stabiliz USZ install'!D14="NO",'shorel Stabiliz USZ install'!D15,300) -> 50 | AF8: # Years Project Exists: | AJ8: =IF('shorel Stabiliz USZ remove'!D14="no",'shorel Stabiliz USZ remove'!D15,300) -> 10 | AP8: # Years Project Exists: | AT8: =IF('shorel Stabiliz USZ remove'!D14="no",'shorel Stabiliz USZ remove'!D15,300) -> 10 | AZ8: # Years Project Exists: | BD8: =IF('BR Install USZ 2'!D13="no",'BR Install USZ 2'!D14,300) -> 40 | BJ8: # Years Project Exists: | BN8: =IF('Jetty Install USZ 2'!D13="no",'Jetty Install USZ 2'!D14,300) -> 40 | BT8: # Years Project Exists: | BX8: =IF('BR Jetty Inst LSZ '!D12="no",'BR Jetty Inst LSZ '!D13,300) -> 40 | CD8: # Years Project Exists: | CH8: =IF('BR Jetty Inst DZ '!D12="no",'BR Jetty Inst DZ '!D13,300) -> 40
K9: Base Year: | O9: 0 | P9: fixed | U9: Base Year: | Y9: 0 | Z9: fixed | AF9: Base Year: | AJ9: 0 | AK9: fixed | AP9: Base Year: | AT9: 0 | AU9: fixed | AZ9: Base Year: | BD9: 0 | BE9: fixed | BJ9: Base Year: | BN9: 0 | BO9: fixed | BT9: Base Year: | BX9: 0 | BY9: fixed | CD9: Base Year: | CH9: 0 | CI9: fixed
K10: DSAYs Raw Score: | M10: =LOOKUP(O8,K13:K312,S13:S312) -> 0 | N10: Lookup function finds the value in I column that associated with row position with value O8 in A row. Does not contain credit/debit factors. | U10: DSAYs Raw Score: | W10: =LOOKUP(Y8,U13:U312,AC13:AC312) -> 0 | X10: Lookup function finds the value in I column that associated with row position with value E8 in A row. Does not contain credit/debit factors. | AF10: DSAYs Raw Score: | AH10: =LOOKUP(AJ8,AF13:AF312,AN13:AN312) -> 0 | AI10: Lookup function finds the value in I column that associated with row position with value O8 in A row. Does not contain credit/debit factors. | AP10: DSAYs Raw Score: | AR10: =LOOKUP(AT8,AP13:AP312,AX13:AX312) -> 0 | AS10: Lookup function finds the value in I column that associated with row position with value E8 in A row. Does not contain credit/debit factors. | AZ10: DSAYs Raw Score: | BB10: =LOOKUP(BD8,AZ13:AZ312,BH13:BH312) -> 0 | BC10: Lookup function finds the value in I column that associated with row position with value E8 in A row. Does not contain credit/debit factors. | BJ10: DSAYs Raw Score: | BL10: =LOOKUP(BN8,BJ13:BJ312,BR13:BR312) -> 0 | BM10: Lookup function finds the value in I column that associated with row position with value E8 in A row. Does not contain credit/debit factors. | BT10: DSAYs Raw Score: | BV10: =LOOKUP(BX8,BT13:BT312,CB13:CB312) -> 0 | BW10: Lookup function finds the value in I column that associated with row position with value E8 in A row. Does not contain credit/debit factors. | CD10: DSAYs Raw Score: | CF10: =LOOKUP(CH8,CD13:CD312,CL13:CL312) -> 0 | CG10: Lookup function finds the value in I column that associated with row position with value E8 in A row. Does not contain credit/debit factors.
K12: YEAR | L12: DISCOUNT FACTOR | M12: INCREASE TOWARDS FULL VALUE | N12: STARTING HABITAT VALUE | O12: ADDITIONAL HABITAT BENEFITS | P12: TOTAL HABITAT VALUE | Q12: ACRES OF HABITAT | R12: DISCOUNTED BENEFITS ACRES | S12: SUMMATION OF DSAYS | U12: YEAR | V12: DISCOUNT FACTOR | W12: INCREASE TOWARDS FULL VALUE | X12: STARTING HABITAT VALUE | Y12: ADDITIONAL HABITAT BENEFITS | Z12: TOTAL HABITAT VALUE | AA12: ACRES OF HABITAT | AB12: DISCOUNTED BENEFITS ACRES | AC12: SUMMATION OF DSAYS | AF12: YEAR | AG12: DISCOUNT FACTOR | AH12: INCREASE TOWARDS FULL VALUE | AI12: STARTING HABITAT VALUE | AJ12: ADDITIONAL HABITAT BENEFITS | AK12: TOTAL HABITAT VALUE | AL12: ACRES OF HABITAT | AM12: DISCOUNTED BENEFITS ACRES | AN12: SUMMATION OF DSAYS | AP12: YEAR | AQ12: DISCOUNT FACTOR | AR12: INCREASE TOWARDS FULL VALUE | AS12: STARTING HABITAT VALUE | AT12: ADDITIONAL HABITAT BENEFITS | AU12: TOTAL HABITAT VALUE | AV12: ACRES OF HABITAT | AW12: DISCOUNTED BENEFITS ACRES | AX12: SUMMATION OF DSAYS | AZ12: YEAR | BA12: DISCOUNT FACTOR | BB12: INCREASE TOWARDS FULL VALUE | BC12: STARTING HABITAT VALUE | BD12: ADDITIONAL HABITAT BENEFITS | BE12: TOTAL HABITAT VALUE | BF12: ACRES OF HABITAT | BG12: DISCOUNTED BENEFITS ACRES | BH12: SUMMATION OF DSAYS | BJ12: YEAR | BK12: DISCOUNT FACTOR | BL12: INCREASE TOWARDS FULL VALUE | BM12: STARTING HABITAT VALUE | BN12: ADDITIONAL HABITAT BENEFITS | BO12: TOTAL HABITAT VALUE | BP12: ACRES OF HABITAT | BQ12: DISCOUNTED BENEFITS ACRES | BR12: SUMMATION OF DSAYS | BT12: YEAR | BU12: DISCOUNT FACTOR | BV12: INCREASE TOWARDS FULL VALUE | BW12: STARTING HABITAT VALUE | BX12: ADDITIONAL HABITAT BENEFITS | BY12: TOTAL HABITAT VALUE | BZ12: ACRES OF HABITAT | CA12: DISCOUNTED BENEFITS ACRES | CB12: SUMMATION OF DSAYS | CD12: YEAR | CE12: DISCOUNT FACTOR | CF12: INCREASE TOWARDS FULL VALUE | CG12: STARTING HABITAT VALUE | CH12: ADDITIONAL HABITAT BENEFITS | CI12: TOTAL HABITAT VALUE | CJ12: ACRES OF HABITAT | CK12: DISCOUNTED BENEFITS ACRES | CL12: SUMMATION OF DSAYS
K13: 1 | L13: =1.03^($O$9-K13) -> 0.9708737864 | M13: =1/$O$7 -> 1 | N13: =$O$4 -> 0.525 | O13: =M13*$O$6 -> -0.135 | P13: =O13+N13 -> 0.39 | Q13: =$O$3 -> 0 | R13: =L13*O13*Q13 -> 0 | S13: =R13 -> 0 | U13: 1 | V13: =1.03^($Y$9-U13) -> 0.9708737864 | W13: =1/$Y$7 -> 1 | X13: =$Y$4 -> 0.7875 | Y13: =W13*$Y$6 -> -0.2025 | Z13: =Y13+X13 -> 0.585 | AA13: =$Y$3 -> 0 | AB13: =V13*Y13*AA13 -> 0 | AC13: =AB13 -> 0 | AF13: 1 | AG13: =1.03^($AJ$9-AF13) -> 0.9708737864 | AH13: =1/$AJ$7 -> 1 | AI13: =$AJ$4 -> 0.36 | AJ13: =AH13*$AJ$6 -> 0.105 | AK13: =AJ13+AI13 -> 0.465 | AL13: =$AJ$3 -> 0 | AM13: =AG13*AJ13*AL13 -> 0 | AN13: =AM13 -> 0 | AP13: 1 | AQ13: =1.03^($AT$9-AP13) -> 0.9708737864 | AR13: =1/$AT$7 -> 1 | AS13: =$AT$4 -> 0.54 | AT13: =AR13*$AT$6 -> 0.1575 | AU13: =AT13+AS13 -> 0.6975 | AV13: =$AT$3 -> 0 | AW13: =AQ13*AT13*AV13 -> 0 | AX13: =AW13 -> 0 | AZ13: 1 | BA13: =1.03^($BD$9-AZ13) -> 0.9708737864 | BB13: =1/$BD$7 -> 1 | BC13: =$BD$4 -> 0.6525 | BD13: =BB13*$BD$6 -> 0 | BE13: =BD13+BC13 -> 0.6525 | BF13: =$BD$3 -> 0 | BG13: =BA13*BD13*BF13 -> 0 | BH13: =BG13 -> 0 | BJ13: 1 | BK13: =1.03^($BN$9-BJ13) -> 0.9708737864 | BL13: =1/$BN$7 -> 1 | BM13: =$BN$4 -> 0.6525 | BN13: =BL13*$BN$6 -> -0.045 | BO13: =BN13+BM13 -> 0.6075 | BP13: =$BN$3 -> 0 | BQ13: =BK13*BN13*BP13 -> 0 | BR13: =BQ13 -> 0 | BT13: 1 | BU13: =1.03^($BX$9-BT13) -> 0.9708737864 | BV13: =1/$BX$7 -> 1 | BW13: =$BX$4 -> 0.725 | BX13: =BV13*$BX$6 -> 0 | BY13: =BX13+BW13 -> 0.725 | BZ13: =$BX$3 -> 2.295684114e-15 | CA13: =BU13*BX13*BZ13 -> 0 | CB13: =CA13 -> 0 | CD13: 1 | CE13: =1.03^($CH$9-CD13) -> 0.9708737864 | CF13: =1/$CH$7 -> 1 | CG13: =$CH$4 -> 0.37 | CH13: =CF13*$CH$6 -> 0 | CI13: =CH13+CG13 -> 0.37 | CJ13: =$CH$3 -> 2.295684114e-12 | CK13: =CE13*CH13*CJ13 -> 0 | CL13: =CK13 -> 0
K14: 2 | L14: =1.03^($O$9-K14) -> 0.9425959091 | M14: =1/$O$7 -> 1 | N14: =$O$4 -> 0.525 | O14: =M14*$O$6 -> -0.135 | P14: 0.39 | Q14: =$O$3 -> 0 | R14: 0 | S14: =S13+R14 -> 0 | U14: 2 | V14: =1.03^($Y$9-U14) -> 0.9425959091 | W14: =1/$Y$7 -> 1 | X14: =$Y$4 -> 0.7875 | Y14: =W14*$Y$6 -> -0.2025 | Z14: 0.585 | AA14: =$Y$3 -> 0 | AB14: 0 | AC14: =AC13+AB14 -> 0 | AF14: 2 | AG14: =1.03^($AJ$9-AF14) -> 0.9425959091 | AH14: =IF(AH13+(1/$AJ$7)<=1,AH13+(1/$AJ$7),1) -> 1 | AI14: 0.36 | AJ14: 0.105 | AK14: 0.465 | AL14: 0 | AM14: 0 | AN14: =AN13+AM14 -> 0 | AP14: 2 | AQ14: =1.03^($AT$9-AP14) -> 0.9425959091 | AR14: =IF(AR13+(1/$AT$7)<=1,AR13+(1/$AT$7),1) -> 1 | AS14: =$AT$4 -> 0.54 | AT14: =AR14*$AT$6 -> 0.1575 | AU14: 0.6975 | AV14: =$AT$3 -> 0 | AW14: 0 | AX14: =AX13+AW14 -> 0 | AZ14: 2 | BA14: 0.9425959091 | BB14: =IF(BB13+(1/$BD$7)<=1,BB13+(1/$BD$7),1) -> 1 | BC14: 0.6525 | BD14: 0 | BE14: 0.6525 | BF14: 0 | BG14: 0 | BH14: =BH13+BG14 -> 0 | BJ14: 2 | BK14: =1.03^($BN$9-BJ14) -> 0.9425959091 | BL14: =IF(BL13+(1/$BN$7)<=1,BL13+(1/$BN$7),1) -> 1 | BM14: =$BN$4 -> 0.6525 | BN14: =BL14*$BN$6 -> -0.045 | BO14: 0.6075 | BP14: =$BN$3 -> 0 | BQ14: 0 | BR14: =BR13+BQ14 -> 0 | BT14: 2 | BU14: 0.9425959091 | BV14: =IF(BV13+(1/$BX$7)<=1,BV13+(1/$BX$7),1) -> 1 | BW14: 0.725 | BX14: 0 | BY14: 0.725 | BZ14: 2.295684114e-15 | CA14: 0 | CB14: =CB13+CA14 -> 0 | CD14: 2 | CE14: =1.03^($CH$9-CD14) -> 0.9425959091 | CF14: =IF(CF13+(1/$CH$7)<=1,CF13+(1/$CH$7),1) -> 1 | CG14: 0.37 | CH14: 0 | CI14: 0.37 | CJ14: 2.295684114e-12 | CK14: 0 | CL14: =CL13+CK14 -> 0
K15: 3 | L15: 0.9151416594 | M15: 1 | N15: 0.525 | O15: -0.135 | P15: 0.39 | Q15: 0 | R15: 0 | S15: 0 | U15: 3 | V15: 0.9151416594 | W15: 1 | X15: 0.7875 | Y15: -0.2025 | Z15: 0.585 | AA15: 0 | AB15: 0 | AC15: 0 | AF15: 3 | AG15: 0.9151416594 | AH15: 1 | AI15: 0.36 | AJ15: 0.105 | AK15: 0.465 | AL15: 0 | AM15: 0 | AN15: 0 | AP15: 3 | AQ15: =1.03^($AT$9-AP15) -> 0.9151416594 | AR15: =IF(AR14+(1/$AT$7)<=1,AR14+(1/$AT$7),1) -> 1 | AS15: 0.54 | AT15: 0.1575 | AU15: 0.6975 | AV15: 0 | AW15: 0 | AX15: 0 | AZ15: 3 | BA15: 0.9151416594 | BB15: 1 | BC15: 0.6525 | BD15: 0 | BE15: 0.6525 | BF15: 0 | BG15: 0 | BH15: 0 | BJ15: 3 | BK15: =1.03^($BN$9-BJ15) -> 0.9151416594 | BL15: =IF(BL14+(1/$BN$7)<=1,BL14+(1/$BN$7),1) -> 1 | BM15: 0.6525 | BN15: -0.045 | BO15: 0.6075 | BP15: 0 | BQ15: 0 | BR15: 0 | BT15: 3 | BU15: 0.9151416594 | BV15: 1 | BW15: 0.725 | BX15: 0 | BY15: 0.725 | BZ15: 2.295684114e-15 | CA15: 0 | CB15: 0 | CD15: 3 | CE15: =1.03^($CH$9-CD15) -> 0.9151416594 | CF15: 1 | CG15: 0.37 | CH15: 0 | CI15: 0.37 | CJ15: 2.295684114e-12 | CK15: 0 | CL15: 0
K16: 4 | L16: 0.8884870479 | M16: 1 | N16: 0.525 | O16: -0.135 | P16: 0.39 | Q16: 0 | R16: 0 | S16: 0 | U16: 4 | V16: 0.8884870479 | W16: 1 | X16: 0.7875 | Y16: -0.2025 | Z16: 0.585 | AA16: 0 | AB16: 0 | AC16: 0 | AF16: 4 | AG16: 0.8884870479 | AH16: 1 | AI16: 0.36 | AJ16: 0.105 | AK16: 0.465 | AL16: 0 | AM16: 0 | AN16: 0 | AP16: 4 | AQ16: 0.8884870479 | AR16: 1 | AS16: 0.54 | AT16: 0.1575 | AU16: 0.6975 | AV16: 0 | AW16: 0 | AX16: 0 | AZ16: 4 | BA16: 0.8884870479 | BB16: 1 | BC16: 0.6525 | BD16: 0 | BE16: 0.6525 | BF16: 0 | BG16: 0 | BH16: 0 | BJ16: 4 | BK16: 0.8884870479 | BL16: 1 | BM16: 0.6525 | BN16: -0.045 | BO16: 0.6075 | BP16: 0 | BQ16: 0 | BR16: 0 | BT16: 4 | BU16: 0.8884870479 | BV16: 1 | BW16: 0.725 | BX16: 0 | BY16: 0.725 | BZ16: 2.295684114e-15 | CA16: 0 | CB16: 0 | CD16: 4 | CE16: =1.03^($CE$9-CD16) -> 0.8884870479 | CF16: 1 | CG16: 0.37 | CH16: 0 | CI16: 0.37 | CJ16: 2.295684114e-12 | CK16: 0 | CL16: 0
K17: 5 | L17: 0.8626087844 | M17: 1 | N17: 0.525 | O17: -0.135 | P17: 0.39 | Q17: 0 | R17: 0 | S17: 0 | U17: 5 | V17: 0.8626087844 | W17: 1 | X17: 0.7875 | Y17: -0.2025 | Z17: 0.585 | AA17: 0 | AB17: 0 | AC17: 0 | AF17: 5 | AG17: 0.8626087844 | AH17: 1 | AI17: 0.36 | AJ17: 0.105 | AK17: 0.465 | AL17: 0 | AM17: 0 | AN17: 0 | AP17: 5 | AQ17: 0.8626087844 | AR17: 1 | AS17: 0.54 | AT17: 0.1575 | AU17: 0.6975 | AV17: 0 | AW17: 0 | AX17: 0 | AZ17: 5 | BA17: 0.8626087844 | BB17: 1 | BC17: 0.6525 | BD17: 0 | BE17: 0.6525 | BF17: 0 | BG17: 0 | BH17: 0 | BJ17: 5 | BK17: 0.8626087844 | BL17: 1 | BM17: 0.6525 | BN17: -0.045 | BO17: 0.6075 | BP17: 0 | BQ17: 0 | BR17: 0 | BT17: 5 | BU17: 0.8626087844 | BV17: 1 | BW17: 0.725 | BX17: 0 | BY17: 0.725 | BZ17: 2.295684114e-15 | CA17: 0 | CB17: 0 | CD17: 5 | CE17: 0.8626087844 | CF17: 1 | CG17: 0.37 | CH17: 0 | CI17: 0.37 | CJ17: 2.295684114e-12 | CK17: 0 | CL17: 0
K18: 6 | L18: 0.8374842567 | M18: 1 | N18: 0.525 | O18: -0.135 | P18: 0.39 | Q18: 0 | R18: 0 | S18: 0 | U18: 6 | V18: 0.8374842567 | W18: 1 | X18: 0.7875 | Y18: -0.2025 | Z18: 0.585 | AA18: 0 | AB18: 0 | AC18: 0 | AF18: 6 | AG18: 0.8374842567 | AH18: 1 | AI18: 0.36 | AJ18: 0.105 | AK18: 0.465 | AL18: 0 | AM18: 0 | AN18: 0 | AP18: 6 | AQ18: 0.8374842567 | AR18: 1 | AS18: 0.54 | AT18: 0.1575 | AU18: 0.6975 | AV18: 0 | AW18: 0 | AX18: 0 | AZ18: 6 | BA18: 0.8374842567 | BB18: 1 | BC18: 0.6525 | BD18: 0 | BE18: 0.6525 | BF18: 0 | BG18: 0 | BH18: 0 | BJ18: 6 | BK18: 0.8374842567 | BL18: 1 | BM18: 0.6525 | BN18: -0.045 | BO18: 0.6075 | BP18: 0 | BQ18: 0 | BR18: 0 | BT18: 6 | BU18: 0.8374842567 | BV18: 1 | BW18: 0.725 | BX18: 0 | BY18: 0.725 | BZ18: 2.295684114e-15 | CA18: 0 | CB18: 0 | CD18: 6 | CE18: 0.8374842567 | CF18: 1 | CG18: 0.37 | CH18: 0 | CI18: 0.37 | CJ18: 2.295684114e-12 | CK18: 0 | CL18: 0
K19: 7 | L19: 0.8130915113 | M19: 1 | N19: 0.525 | O19: -0.135 | P19: 0.39 | Q19: 0 | R19: 0 | S19: 0 | U19: 7 | V19: 0.8130915113 | W19: 1 | X19: 0.7875 | Y19: -0.2025 | Z19: 0.585 | AA19: 0 | AB19: 0 | AC19: 0 | AF19: 7 | AG19: 0.8130915113 | AH19: 1 | AI19: 0.36 | AJ19: 0.105 | AK19: 0.465 | AL19: 0 | AM19: 0 | AN19: 0 | AP19: 7 | AQ19: 0.8130915113 | AR19: 1 | AS19: 0.54 | AT19: 0.1575 | AU19: 0.6975 | AV19: 0 | AW19: 0 | AX19: 0 | AZ19: 7 | BA19: 0.8130915113 | BB19: 1 | BC19: 0.6525 | BD19: 0 | BE19: 0.6525 | BF19: 0 | BG19: 0 | BH19: 0 | BJ19: 7 | BK19: 0.8130915113 | BL19: 1 | BM19: 0.6525 | BN19: -0.045 | BO19: 0.6075 | BP19: 0 | BQ19: 0 | BR19: 0 | BT19: 7 | BU19: 0.8130915113 | BV19: 1 | BW19: 0.725 | BX19: 0 | BY19: 0.725 | BZ19: 2.295684114e-15 | CA19: 0 | CB19: 0 | CD19: 7 | CE19: 0.8130915113 | CF19: 1 | CG19: 0.37 | CH19: 0 | CI19: 0.37 | CJ19: 2.295684114e-12 | CK19: 0 | CL19: 0
K20: 8 | L20: 0.7894092343 | M20: 1 | N20: 0.525 | O20: -0.135 | P20: 0.39 | Q20: 0 | R20: 0 | S20: 0 | U20: 8 | V20: 0.7894092343 | W20: 1 | X20: 0.7875 | Y20: -0.2025 | Z20: 0.585 | AA20: 0 | AB20: 0 | AC20: 0 | AF20: 8 | AG20: 0.7894092343 | AH20: 1 | AI20: 0.36 | AJ20: 0.105 | AK20: 0.465 | AL20: 0 | AM20: 0 | AN20: 0 | AP20: 8 | AQ20: 0.7894092343 | AR20: 1 | AS20: 0.54 | AT20: 0.1575 | AU20: 0.6975 | AV20: 0 | AW20: 0 | AX20: 0 | AZ20: 8 | BA20: 0.7894092343 | BB20: 1 | BC20: 0.6525 | BD20: 0 | BE20: 0.6525 | BF20: 0 | BG20: 0 | BH20: 0 | BJ20: 8 | BK20: 0.7894092343 | BL20: 1 | BM20: 0.6525 | BN20: -0.045 | BO20: 0.6075 | BP20: 0 | BQ20: 0 | BR20: 0 | BT20: 8 | BU20: 0.7894092343 | BV20: 1 | BW20: 0.725 | BX20: 0 | BY20: 0.725 | BZ20: 2.295684114e-15 | CA20: 0 | CB20: 0 | CD20: 8 | CE20: 0.7894092343 | CF20: 1 | CG20: 0.37 | CH20: 0 | CI20: 0.37 | CJ20: 2.295684114e-12 | CK20: 0 | CL20: 0
K21: 9 | L21: 0.7664167323 | M21: 1 | N21: 0.525 | O21: -0.135 | P21: 0.39 | Q21: 0 | R21: 0 | S21: 0 | U21: 9 | V21: 0.7664167323 | W21: 1 | X21: 0.7875 | Y21: -0.2025 | Z21: 0.585 | AA21: 0 | AB21: 0 | AC21: 0 | AF21: 9 | AG21: 0.7664167323 | AH21: 1 | AI21: 0.36 | AJ21: 0.105 | AK21: 0.465 | AL21: 0 | AM21: 0 | AN21: 0 | AP21: 9 | AQ21: 0.7664167323 | AR21: 1 | AS21: 0.54 | AT21: 0.1575 | AU21: 0.6975 | AV21: 0 | AW21: 0 | AX21: 0 | AZ21: 9 | BA21: 0.7664167323 | BB21: 1 | BC21: 0.6525 | BD21: 0 | BE21: 0.6525 | BF21: 0 | BG21: 0 | BH21: 0 | BJ21: 9 | BK21: 0.7664167323 | BL21: 1 | BM21: 0.6525 | BN21: -0.045 | BO21: 0.6075 | BP21: 0 | BQ21: 0 | BR21: 0 | BT21: 9 | BU21: 0.7664167323 | BV21: 1 | BW21: 0.725 | BX21: 0 | BY21: 0.725 | BZ21: 2.295684114e-15 | CA21: 0 | CB21: 0 | CD21: 9 | CE21: 0.7664167323 | CF21: 1 | CG21: 0.37 | CH21: 0 | CI21: 0.37 | CJ21: 2.295684114e-12 | CK21: 0 | CL21: 0
K22: 10 | L22: 0.7440939149 | M22: 1 | N22: 0.525 | O22: -0.135 | P22: 0.39 | Q22: 0 | R22: 0 | S22: 0 | U22: 10 | V22: 0.7440939149 | W22: 1 | X22: 0.7875 | Y22: -0.2025 | Z22: 0.585 | AA22: 0 | AB22: 0 | AC22: 0 | AF22: 10 | AG22: 0.7440939149 | AH22: 1 | AI22: 0.36 | AJ22: 0.105 | AK22: 0.465 | AL22: 0 | AM22: 0 | AN22: 0 | AP22: 10 | AQ22: 0.7440939149 | AR22: 1 | AS22: 0.54 | AT22: 0.1575 | AU22: 0.6975 | AV22: 0 | AW22: 0 | AX22: 0 | AZ22: 10 | BA22: 0.7440939149 | BB22: 1 | BC22: 0.6525 | BD22: 0 | BE22: 0.6525 | BF22: 0 | BG22: 0 | BH22: 0 | BJ22: 10 | BK22: 0.7440939149 | BL22: 1 | BM22: 0.6525 | BN22: -0.045 | BO22: 0.6075 | BP22: 0 | BQ22: 0 | BR22: 0 | BT22: 10 | BU22: 0.7440939149 | BV22: 1 | BW22: 0.725 | BX22: 0 | BY22: 0.725 | BZ22: 2.295684114e-15 | CA22: 0 | CB22: 0 | CD22: 10 | CE22: 0.7440939149 | CF22: 1 | CG22: 0.37 | CH22: 0 | CI22: 0.37 | CJ22: 2.295684114e-12 | CK22: 0 | CL22: 0
K23: 11 | L23: 0.7224212766 | M23: 1 | N23: 0.525 | O23: -0.135 | P23: 0.39 | Q23: 0 | R23: 0 | S23: 0 | U23: 11 | V23: 0.7224212766 | W23: 1 | X23: 0.7875 | Y23: -0.2025 | Z23: 0.585 | AA23: 0 | AB23: 0 | AC23: 0 | AF23: 11 | AG23: 0.7224212766 | AH23: 1 | AI23: 0.36 | AJ23: 0.105 | AK23: 0.465 | AL23: 0 | AM23: 0 | AN23: 0 | AP23: 11 | AQ23: 0.7224212766 | AR23: 1 | AS23: 0.54 | AT23: 0.1575 | AU23: 0.6975 | AV23: 0 | AW23: 0 | AX23: 0 | AZ23: 11 | BA23: 0.7224212766 | BB23: 1 | BC23: 0.6525 | BD23: 0 | BE23: 0.6525 | BF23: 0 | BG23: 0 | BH23: 0 | BJ23: 11 | BK23: 0.7224212766 | BL23: 1 | BM23: 0.6525 | BN23: -0.045 | BO23: 0.6075 | BP23: 0 | BQ23: 0 | BR23: 0 | BT23: 11 | BU23: 0.7224212766 | BV23: 1 | BW23: 0.725 | BX23: 0 | BY23: 0.725 | BZ23: 2.295684114e-15 | CA23: 0 | CB23: 0 | CD23: 11 | CE23: 0.7224212766 | CF23: 1 | CG23: 0.37 | CH23: 0 | CI23: 0.37 | CJ23: 2.295684114e-12 | CK23: 0 | CL23: 0
K24: 12 | L24: 0.7013798802 | M24: 1 | N24: 0.525 | O24: -0.135 | P24: 0.39 | Q24: 0 | R24: 0 | S24: 0 | U24: 12 | V24: 0.7013798802 | W24: 1 | X24: 0.7875 | Y24: -0.2025 | Z24: 0.585 | AA24: 0 | AB24: 0 | AC24: 0 | AF24: 12 | AG24: 0.7013798802 | AH24: 1 | AI24: 0.36 | AJ24: 0.105 | AK24: 0.465 | AL24: 0 | AM24: 0 | AN24: 0 | AP24: 12 | AQ24: 0.7013798802 | AR24: 1 | AS24: 0.54 | AT24: 0.1575 | AU24: 0.6975 | AV24: 0 | AW24: 0 | AX24: 0 | AZ24: 12 | BA24: 0.7013798802 | BB24: 1 | BC24: 0.6525 | BD24: 0 | BE24: 0.6525 | BF24: 0 | BG24: 0 | BH24: 0 | BJ24: 12 | BK24: 0.7013798802 | BL24: 1 | BM24: 0.6525 | BN24: -0.045 | BO24: 0.6075 | BP24: 0 | BQ24: 0 | BR24: 0 | BT24: 12 | BU24: 0.7013798802 | BV24: 1 | BW24: 0.725 | BX24: 0 | BY24: 0.725 | BZ24: 2.295684114e-15 | CA24: 0 | CB24: 0 | CD24: 12 | CE24: 0.7013798802 | CF24: 1 | CG24: 0.37 | CH24: 0 | CI24: 0.37 | CJ24: 2.295684114e-12 | CK24: 0 | CL24: 0
K25: 13 | L25: 0.68095134 | M25: 1 | N25: 0.525 | O25: -0.135 | P25: 0.39 | Q25: 0 | R25: 0 | S25: 0 | U25: 13 | V25: 0.68095134 | W25: 1 | X25: 0.7875 | Y25: -0.2025 | Z25: 0.585 | AA25: 0 | AB25: 0 | AC25: 0 | AF25: 13 | AG25: 0.68095134 | AH25: 1 | AI25: 0.36 | AJ25: 0.105 | AK25: 0.465 | AL25: 0 | AM25: 0 | AN25: 0 | AP25: 13 | AQ25: 0.68095134 | AR25: 1 | AS25: 0.54 | AT25: 0.1575 | AU25: 0.6975 | AV25: 0 | AW25: 0 | AX25: 0 | AZ25: 13 | BA25: 0.68095134 | BB25: 1 | BC25: 0.6525 | BD25: 0 | BE25: 0.6525 | BF25: 0 | BG25: 0 | BH25: 0 | BJ25: 13 | BK25: 0.68095134 | BL25: 1 | BM25: 0.6525 | BN25: -0.045 | BO25: 0.6075 | BP25: 0 | BQ25: 0 | BR25: 0 | BT25: 13 | BU25: 0.68095134 | BV25: 1 | BW25: 0.725 | BX25: 0 | BY25: 0.725 | BZ25: 2.295684114e-15 | CA25: 0 | CB25: 0 | CD25: 13 | CE25: 0.68095134 | CF25: 1 | CG25: 0.37 | CH25: 0 | CI25: 0.37 | CJ25: 2.295684114e-12 | CK25: 0 | CL25: 0
K26: 14 | L26: 0.6611178058 | M26: 1 | N26: 0.525 | O26: -0.135 | P26: 0.39 | Q26: 0 | R26: 0 | S26: 0 | U26: 14 | V26: 0.6611178058 | W26: 1 | X26: 0.7875 | Y26: -0.2025 | Z26: 0.585 | AA26: 0 | AB26: 0 | AC26: 0 | AF26: 14 | AG26: 0.6611178058 | AH26: 1 | AI26: 0.36 | AJ26: 0.105 | AK26: 0.465 | AL26: 0 | AM26: 0 | AN26: 0 | AP26: 14 | AQ26: 0.6611178058 | AR26: 1 | AS26: 0.54 | AT26: 0.1575 | AU26: 0.6975 | AV26: 0 | AW26: 0 | AX26: 0 | AZ26: 14 | BA26: 0.6611178058 | BB26: 1 | BC26: 0.6525 | BD26: 0 | BE26: 0.6525 | BF26: 0 | BG26: 0 | BH26: 0 | BJ26: 14 | BK26: 0.6611178058 | BL26: 1 | BM26: 0.6525 | BN26: -0.045 | BO26: 0.6075 | BP26: 0 | BQ26: 0 | BR26: 0 | BT26: 14 | BU26: 0.6611178058 | BV26: 1 | BW26: 0.725 | BX26: 0 | BY26: 0.725 | BZ26: 2.295684114e-15 | CA26: 0 | CB26: 0 | CD26: 14 | CE26: 0.6611178058 | CF26: 1 | CG26: 0.37 | CH26: 0 | CI26: 0.37 | CJ26: 2.295684114e-12 | CK26: 0 | CL26: 0
K27: 15 | L27: 0.6418619474 | M27: 1 | N27: 0.525 | O27: -0.135 | P27: 0.39 | Q27: 0 | R27: 0 | S27: 0 | U27: 15 | V27: 0.6418619474 | W27: 1 | X27: 0.7875 | Y27: -0.2025 | Z27: 0.585 | AA27: 0 | AB27: 0 | AC27: 0 | AF27: 15 | AG27: 0.6418619474 | AH27: 1 | AI27: 0.36 | AJ27: 0.105 | AK27: 0.465 | AL27: 0 | AM27: 0 | AN27: 0 | AP27: 15 | AQ27: 0.6418619474 | AR27: 1 | AS27: 0.54 | AT27: 0.1575 | AU27: 0.6975 | AV27: 0 | AW27: 0 | AX27: 0 | AZ27: 15 | BA27: 0.6418619474 | BB27: 1 | BC27: 0.6525 | BD27: 0 | BE27: 0.6525 | BF27: 0 | BG27: 0 | BH27: 0 | BJ27: 15 | BK27: 0.6418619474 | BL27: 1 | BM27: 0.6525 | BN27: -0.045 | BO27: 0.6075 | BP27: 0 | BQ27: 0 | BR27: 0 | BT27: 15 | BU27: 0.6418619474 | BV27: 1 | BW27: 0.725 | BX27: 0 | BY27: 0.725 | BZ27: 2.295684114e-15 | CA27: 0 | CB27: 0 | CD27: 15 | CE27: 0.6418619474 | CF27: 1 | CG27: 0.37 | CH27: 0 | CI27: 0.37 | CJ27: 2.295684114e-12 | CK27: 0 | CL27: 0
K28: 16 | L28: 0.6231669392 | M28: 1 | N28: 0.525 | O28: -0.135 | P28: 0.39 | Q28: 0 | R28: 0 | S28: 0 | U28: 16 | V28: 0.6231669392 | W28: 1 | X28: 0.7875 | Y28: -0.2025 | Z28: 0.585 | AA28: 0 | AB28: 0 | AC28: 0 | AF28: 16 | AG28: 0.6231669392 | AH28: 1 | AI28: 0.36 | AJ28: 0.105 | AK28: 0.465 | AL28: 0 | AM28: 0 | AN28: 0 | AP28: 16 | AQ28: 0.6231669392 | AR28: 1 | AS28: 0.54 | AT28: 0.1575 | AU28: 0.6975 | AV28: 0 | AW28: 0 | AX28: 0 | AZ28: 16 | BA28: 0.6231669392 | BB28: 1 | BC28: 0.6525 | BD28: 0 | BE28: 0.6525 | BF28: 0 | BG28: 0 | BH28: 0 | BJ28: 16 | BK28: 0.6231669392 | BL28: 1 | BM28: 0.6525 | BN28: -0.045 | BO28: 0.6075 | BP28: 0 | BQ28: 0 | BR28: 0 | BT28: 16 | BU28: 0.6231669392 | BV28: 1 | BW28: 0.725 | BX28: 0 | BY28: 0.725 | BZ28: 2.295684114e-15 | CA28: 0 | CB28: 0 | CD28: 16 | CE28: 0.6231669392 | CF28: 1 | CG28: 0.37 | CH28: 0 | CI28: 0.37 | CJ28: 2.295684114e-12 | CK28: 0 | CL28: 0
K29: 17 | L29: 0.6050164458 | M29: 1 | N29: 0.525 | O29: -0.135 | P29: 0.39 | Q29: 0 | R29: 0 | S29: 0 | U29: 17 | V29: 0.6050164458 | W29: 1 | X29: 0.7875 | Y29: -0.2025 | Z29: 0.585 | AA29: 0 | AB29: 0 | AC29: 0 | AF29: 17 | AG29: 0.6050164458 | AH29: 1 | AI29: 0.36 | AJ29: 0.105 | AK29: 0.465 | AL29: 0 | AM29: 0 | AN29: 0 | AP29: 17 | AQ29: 0.6050164458 | AR29: 1 | AS29: 0.54 | AT29: 0.1575 | AU29: 0.6975 | AV29: 0 | AW29: 0 | AX29: 0 | AZ29: 17 | BA29: 0.6050164458 | BB29: 1 | BC29: 0.6525 | BD29: 0 | BE29: 0.6525 | BF29: 0 | BG29: 0 | BH29: 0 | BJ29: 17 | BK29: 0.6050164458 | BL29: 1 | BM29: 0.6525 | BN29: -0.045 | BO29: 0.6075 | BP29: 0 | BQ29: 0 | BR29: 0 | BT29: 17 | BU29: 0.6050164458 | BV29: 1 | BW29: 0.725 | BX29: 0 | BY29: 0.725 | BZ29: 2.295684114e-15 | CA29: 0 | CB29: 0 | CD29: 17 | CE29: 0.6050164458 | CF29: 1 | CG29: 0.37 | CH29: 0 | CI29: 0.37 | CJ29: 2.295684114e-12 | CK29: 0 | CL29: 0
K30: 18 | L30: 0.5873946076 | M30: 1 | N30: 0.525 | O30: -0.135 | P30: 0.39 | Q30: 0 | R30: 0 | S30: 0 | U30: 18 | V30: 0.5873946076 | W30: 1 | X30: 0.7875 | Y30: -0.2025 | Z30: 0.585 | AA30: 0 | AB30: 0 | AC30: 0 | AF30: 18 | AG30: 0.5873946076 | AH30: 1 | AI30: 0.36 | AJ30: 0.105 | AK30: 0.465 | AL30: 0 | AM30: 0 | AN30: 0 | AP30: 18 | AQ30: 0.5873946076 | AR30: 1 | AS30: 0.54 | AT30: 0.1575 | AU30: 0.6975 | AV30: 0 | AW30: 0 | AX30: 0 | AZ30: 18 | BA30: 0.5873946076 | BB30: 1 | BC30: 0.6525 | BD30: 0 | BE30: 0.6525 | BF30: 0 | BG30: 0 | BH30: 0 | BJ30: 18 | BK30: 0.5873946076 | BL30: 1 | BM30: 0.6525 | BN30: -0.045 | BO30: 0.6075 | BP30: 0 | BQ30: 0 | BR30: 0 | BT30: 18 | BU30: 0.5873946076 | BV30: 1 | BW30: 0.725 | BX30: 0 | BY30: 0.725 | BZ30: 2.295684114e-15 | CA30: 0 | CB30: 0 | CD30: 18 | CE30: 0.5873946076 | CF30: 1 | CG30: 0.37 | CH30: 0 | CI30: 0.37 | CJ30: 2.295684114e-12 | CK30: 0 | CL30: 0
K31: 19 | L31: 0.5702860268 | M31: 1 | N31: 0.525 | O31: -0.135 | P31: 0.39 | Q31: 0 | R31: 0 | S31: 0 | U31: 19 | V31: 0.5702860268 | W31: 1 | X31: 0.7875 | Y31: -0.2025 | Z31: 0.585 | AA31: 0 | AB31: 0 | AC31: 0 | AF31: 19 | AG31: 0.5702860268 | AH31: 1 | AI31: 0.36 | AJ31: 0.105 | AK31: 0.465 | AL31: 0 | AM31: 0 | AN31: 0 | AP31: 19 | AQ31: 0.5702860268 | AR31: 1 | AS31: 0.54 | AT31: 0.1575 | AU31: 0.6975 | AV31: 0 | AW31: 0 | AX31: 0 | AZ31: 19 | BA31: 0.5702860268 | BB31: 1 | BC31: 0.6525 | BD31: 0 | BE31: 0.6525 | BF31: 0 | BG31: 0 | BH31: 0 | BJ31: 19 | BK31: 0.5702860268 | BL31: 1 | BM31: 0.6525 | BN31: -0.045 | BO31: 0.6075 | BP31: 0 | BQ31: 0 | BR31: 0 | BT31: 19 | BU31: 0.5702860268 | BV31: 1 | BW31: 0.725 | BX31: 0 | BY31: 0.725 | BZ31: 2.295684114e-15 | CA31: 0 | CB31: 0 | CD31: 19 | CE31: 0.5702860268 | CF31: 1 | CG31: 0.37 | CH31: 0 | CI31: 0.37 | CJ31: 2.295684114e-12 | CK31: 0 | CL31: 0
K32: 20 | L32: 0.5536757542 | M32: 1 | N32: 0.525 | O32: -0.135 | P32: 0.39 | Q32: 0 | R32: 0 | S32: 0 | U32: 20 | V32: 0.5536757542 | W32: 1 | X32: 0.7875 | Y32: -0.2025 | Z32: 0.585 | AA32: 0 | AB32: 0 | AC32: 0 | AF32: 20 | AG32: 0.5536757542 | AH32: 1 | AI32: 0.36 | AJ32: 0.105 | AK32: 0.465 | AL32: 0 | AM32: 0 | AN32: 0 | AP32: 20 | AQ32: 0.5536757542 | AR32: 1 | AS32: 0.54 | AT32: 0.1575 | AU32: 0.6975 | AV32: 0 | AW32: 0 | AX32: 0 | AZ32: 20 | BA32: 0.5536757542 | BB32: 1 | BC32: 0.6525 | BD32: 0 | BE32: 0.6525 | BF32: 0 | BG32: 0 | BH32: 0 | BJ32: 20 | BK32: 0.5536757542 | BL32: 1 | BM32: 0.6525 | BN32: -0.045 | BO32: 0.6075 | BP32: 0 | BQ32: 0 | BR32: 0 | BT32: 20 | BU32: 0.5536757542 | BV32: 1 | BW32: 0.725 | BX32: 0 | BY32: 0.725 | BZ32: 2.295684114e-15 | CA32: 0 | CB32: 0 | CD32: 20 | CE32: 0.5536757542 | CF32: 1 | CG32: 0.37 | CH32: 0 | CI32: 0.37 | CJ32: 2.295684114e-12 | CK32: 0 | CL32: 0
K33: 21 | L33: 0.5375492759 | M33: 1 | N33: 0.525 | O33: -0.135 | P33: 0.39 | Q33: 0 | R33: 0 | S33: 0 | U33: 21 | V33: 0.5375492759 | W33: 1 | X33: 0.7875 | Y33: -0.2025 | Z33: 0.585 | AA33: 0 | AB33: 0 | AC33: 0 | AF33: 21 | AG33: 0.5375492759 | AH33: 1 | AI33: 0.36 | AJ33: 0.105 | AK33: 0.465 | AL33: 0 | AM33: 0 | AN33: 0 | AP33: 21 | AQ33: 0.5375492759 | AR33: 1 | AS33: 0.54 | AT33: 0.1575 | AU33: 0.6975 | AV33: 0 | AW33: 0 | AX33: 0 | AZ33: 21 | BA33: 0.5375492759 | BB33: 1 | BC33: 0.6525 | BD33: 0 | BE33: 0.6525 | BF33: 0 | BG33: 0 | BH33: 0 | BJ33: 21 | BK33: 0.5375492759 | BL33: 1 | BM33: 0.6525 | BN33: -0.045 | BO33: 0.6075 | BP33: 0 | BQ33: 0 | BR33: 0 | BT33: 21 | BU33: 0.5375492759 | BV33: 1 | BW33: 0.725 | BX33: 0 | BY33: 0.725 | BZ33: 2.295684114e-15 | CA33: 0 | CB33: 0 | CD33: 21 | CE33: 0.5375492759 | CF33: 1 | CG33: 0.37 | CH33: 0 | CI33: 0.37 | CJ33: 2.295684114e-12 | CK33: 0 | CL33: 0
K34: 22 | L34: 0.5218925009 | M34: 1 | N34: 0.525 | O34: -0.135 | P34: 0.39 | Q34: 0 | R34: 0 | S34: 0 | U34: 22 | V34: 0.5218925009 | W34: 1 | X34: 0.7875 | Y34: -0.2025 | Z34: 0.585 | AA34: 0 | AB34: 0 | AC34: 0 | AF34: 22 | AG34: 0.5218925009 | AH34: 1 | AI34: 0.36 | AJ34: 0.105 | AK34: 0.465 | AL34: 0 | AM34: 0 | AN34: 0 | AP34: 22 | AQ34: 0.5218925009 | AR34: 1 | AS34: 0.54 | AT34: 0.1575 | AU34: 0.6975 | AV34: 0 | AW34: 0 | AX34: 0 | AZ34: 22 | BA34: 0.5218925009 | BB34: 1 | BC34: 0.6525 | BD34: 0 | BE34: 0.6525 | BF34: 0 | BG34: 0 | BH34: 0 | BJ34: 22 | BK34: 0.5218925009 | BL34: 1 | BM34: 0.6525 | BN34: -0.045 | BO34: 0.6075 | BP34: 0 | BQ34: 0 | BR34: 0 | BT34: 22 | BU34: 0.5218925009 | BV34: 1 | BW34: 0.725 | BX34: 0 | BY34: 0.725 | BZ34: 2.295684114e-15 | CA34: 0 | CB34: 0 | CD34: 22 | CE34: 0.5218925009 | CF34: 1 | CG34: 0.37 | CH34: 0 | CI34: 0.37 | CJ34: 2.295684114e-12 | CK34: 0 | CL34: 0
K35: 23 | L35: 0.5066917484 | M35: 1 | N35: 0.525 | O35: -0.135 | P35: 0.39 | Q35: 0 | R35: 0 | S35: 0 | U35: 23 | V35: 0.5066917484 | W35: 1 | X35: 0.7875 | Y35: -0.2025 | Z35: 0.585 | AA35: 0 | AB35: 0 | AC35: 0 | AF35: 23 | AG35: 0.5066917484 | AH35: 1 | AI35: 0.36 | AJ35: 0.105 | AK35: 0.465 | AL35: 0 | AM35: 0 | AN35: 0 | AP35: 23 | AQ35: 0.5066917484 | AR35: 1 | AS35: 0.54 | AT35: 0.1575 | AU35: 0.6975 | AV35: 0 | AW35: 0 | AX35: 0 | AZ35: 23 | BA35: 0.5066917484 | BB35: 1 | BC35: 0.6525 | BD35: 0 | BE35: 0.6525 | BF35: 0 | BG35: 0 | BH35: 0 | BJ35: 23 | BK35: 0.5066917484 | BL35: 1 | BM35: 0.6525 | BN35: -0.045 | BO35: 0.6075 | BP35: 0 | BQ35: 0 | BR35: 0 | BT35: 23 | BU35: 0.5066917484 | BV35: 1 | BW35: 0.725 | BX35: 0 | BY35: 0.725 | BZ35: 2.295684114e-15 | CA35: 0 | CB35: 0 | CD35: 23 | CE35: 0.5066917484 | CF35: 1 | CG35: 0.37 | CH35: 0 | CI35: 0.37 | CJ35: 2.295684114e-12 | CK35: 0 | CL35: 0
K36: 24 | L36: 0.4919337363 | M36: 1 | N36: 0.525 | O36: -0.135 | P36: 0.39 | Q36: 0 | R36: 0 | S36: 0 | U36: 24 | V36: 0.4919337363 | W36: 1 | X36: 0.7875 | Y36: -0.2025 | Z36: 0.585 | AA36: 0 | AB36: 0 | AC36: 0 | AF36: 24 | AG36: 0.4919337363 | AH36: 1 | AI36: 0.36 | AJ36: 0.105 | AK36: 0.465 | AL36: 0 | AM36: 0 | AN36: 0 | AP36: 24 | AQ36: 0.4919337363 | AR36: 1 | AS36: 0.54 | AT36: 0.1575 | AU36: 0.6975 | AV36: 0 | AW36: 0 | AX36: 0 | AZ36: 24 | BA36: 0.4919337363 | BB36: 1 | BC36: 0.6525 | BD36: 0 | BE36: 0.6525 | BF36: 0 | BG36: 0 | BH36: 0 | BJ36: 24 | BK36: 0.4919337363 | BL36: 1 | BM36: 0.6525 | BN36: -0.045 | BO36: 0.6075 | BP36: 0 | BQ36: 0 | BR36: 0 | BT36: 24 | BU36: 0.4919337363 | BV36: 1 | BW36: 0.725 | BX36: 0 | BY36: 0.725 | BZ36: 2.295684114e-15 | CA36: 0 | CB36: 0 | CD36: 24 | CE36: 0.4919337363 | CF36: 1 | CG36: 0.37 | CH36: 0 | CI36: 0.37 | CJ36: 2.295684114e-12 | CK36: 0 | CL36: 0
K37: 25 | L37: 0.4776055693 | M37: 1 | N37: 0.525 | O37: -0.135 | P37: 0.39 | Q37: 0 | R37: 0 | S37: 0 | U37: 25 | V37: 0.4776055693 | W37: 1 | X37: 0.7875 | Y37: -0.2025 | Z37: 0.585 | AA37: 0 | AB37: 0 | AC37: 0 | AF37: 25 | AG37: 0.4776055693 | AH37: 1 | AI37: 0.36 | AJ37: 0.105 | AK37: 0.465 | AL37: 0 | AM37: 0 | AN37: 0 | AP37: 25 | AQ37: 0.4776055693 | AR37: 1 | AS37: 0.54 | AT37: 0.1575 | AU37: 0.6975 | AV37: 0 | AW37: 0 | AX37: 0 | AZ37: 25 | BA37: 0.4776055693 | BB37: 1 | BC37: 0.6525 | BD37: 0 | BE37: 0.6525 | BF37: 0 | BG37: 0 | BH37: 0 | BJ37: 25 | BK37: 0.4776055693 | BL37: 1 | BM37: 0.6525 | BN37: -0.045 | BO37: 0.6075 | BP37: 0 | BQ37: 0 | BR37: 0 | BT37: 25 | BU37: 0.4776055693 | BV37: 1 | BW37: 0.725 | BX37: 0 | BY37: 0.725 | BZ37: 2.295684114e-15 | CA37: 0 | CB37: 0 | CD37: 25 | CE37: 0.4776055693 | CF37: 1 | CG37: 0.37 | CH37: 0 | CI37: 0.37 | CJ37: 2.295684114e-12 | CK37: 0 | CL37: 0
K38: 26 | L38: 0.4636947274 | M38: 1 | N38: 0.525 | O38: -0.135 | P38: 0.39 | Q38: 0 | R38: 0 | S38: 0 | U38: 26 | V38: 0.4636947274 | W38: 1 | X38: 0.7875 | Y38: -0.2025 | Z38: 0.585 | AA38: 0 | AB38: 0 | AC38: 0 | AF38: 26 | AG38: 0.4636947274 | AH38: 1 | AI38: 0.36 | AJ38: 0.105 | AK38: 0.465 | AL38: 0 | AM38: 0 | AN38: 0 | AP38: 26 | AQ38: 0.4636947274 | AR38: 1 | AS38: 0.54 | AT38: 0.1575 | AU38: 0.6975 | AV38: 0 | AW38: 0 | AX38: 0 | AZ38: 26 | BA38: 0.4636947274 | BB38: 1 | BC38: 0.6525 | BD38: 0 | BE38: 0.6525 | BF38: 0 | BG38: 0 | BH38: 0 | BJ38: 26 | BK38: 0.4636947274 | BL38: 1 | BM38: 0.6525 | BN38: -0.045 | BO38: 0.6075 | BP38: 0 | BQ38: 0 | BR38: 0 | BT38: 26 | BU38: 0.4636947274 | BV38: 1 | BW38: 0.725 | BX38: 0 | BY38: 0.725 | BZ38: 2.295684114e-15 | CA38: 0 | CB38: 0 | CD38: 26 | CE38: 0.4636947274 | CF38: 1 | CG38: 0.37 | CH38: 0 | CI38: 0.37 | CJ38: 2.295684114e-12 | CK38: 0 | CL38: 0
K39: 27 | L39: 0.4501890558 | M39: 1 | N39: 0.525 | O39: -0.135 | P39: 0.39 | Q39: 0 | R39: 0 | S39: 0 | U39: 27 | V39: 0.4501890558 | W39: 1 | X39: 0.7875 | Y39: -0.2025 | Z39: 0.585 | AA39: 0 | AB39: 0 | AC39: 0 | AF39: 27 | AG39: 0.4501890558 | AH39: 1 | AI39: 0.36 | AJ39: 0.105 | AK39: 0.465 | AL39: 0 | AM39: 0 | AN39: 0 | AP39: 27 | AQ39: 0.4501890558 | AR39: 1 | AS39: 0.54 | AT39: 0.1575 | AU39: 0.6975 | AV39: 0 | AW39: 0 | AX39: 0 | AZ39: 27 | BA39: 0.4501890558 | BB39: 1 | BC39: 0.6525 | BD39: 0 | BE39: 0.6525 | BF39: 0 | BG39: 0 | BH39: 0 | BJ39: 27 | BK39: 0.4501890558 | BL39: 1 | BM39: 0.6525 | BN39: -0.045 | BO39: 0.6075 | BP39: 0 | BQ39: 0 | BR39: 0 | BT39: 27 | BU39: 0.4501890558 | BV39: 1 | BW39: 0.725 | BX39: 0 | BY39: 0.725 | BZ39: 2.295684114e-15 | CA39: 0 | CB39: 0 | CD39: 27 | CE39: 0.4501890558 | CF39: 1 | CG39: 0.37 | CH39: 0 | CI39: 0.37 | CJ39: 2.295684114e-12 | CK39: 0 | CL39: 0
K40: 28 | L40: 0.4370767532 | M40: 1 | N40: 0.525 | O40: -0.135 | P40: 0.39 | Q40: 0 | R40: 0 | S40: 0 | U40: 28 | V40: 0.4370767532 | W40: 1 | X40: 0.7875 | Y40: -0.2025 | Z40: 0.585 | AA40: 0 | AB40: 0 | AC40: 0 | AF40: 28 | AG40: 0.4370767532 | AH40: 1 | AI40: 0.36 | AJ40: 0.105 | AK40: 0.465 | AL40: 0 | AM40: 0 | AN40: 0 | AP40: 28 | AQ40: 0.4370767532 | AR40: 1 | AS40: 0.54 | AT40: 0.1575 | AU40: 0.6975 | AV40: 0 | AW40: 0 | AX40: 0 | AZ40: 28 | BA40: 0.4370767532 | BB40: 1 | BC40: 0.6525 | BD40: 0 | BE40: 0.6525 | BF40: 0 | BG40: 0 | BH40: 0 | BJ40: 28 | BK40: 0.4370767532 | BL40: 1 | BM40: 0.6525 | BN40: -0.045 | BO40: 0.6075 | BP40: 0 | BQ40: 0 | BR40: 0 | BT40: 28 | BU40: 0.4370767532 | BV40: 1 | BW40: 0.725 | BX40: 0 | BY40: 0.725 | BZ40: 2.295684114e-15 | CA40: 0 | CB40: 0 | CD40: 28 | CE40: 0.4370767532 | CF40: 1 | CG40: 0.37 | CH40: 0 | CI40: 0.37 | CJ40: 2.295684114e-12 | CK40: 0 | CL40: 0
K41: 29 | L41: 0.4243463623 | M41: 1 | N41: 0.525 | O41: -0.135 | P41: 0.39 | Q41: 0 | R41: 0 | S41: 0 | U41: 29 | V41: 0.4243463623 | W41: 1 | X41: 0.7875 | Y41: -0.2025 | Z41: 0.585 | AA41: 0 | AB41: 0 | AC41: 0 | AF41: 29 | AG41: 0.4243463623 | AH41: 1 | AI41: 0.36 | AJ41: 0.105 | AK41: 0.465 | AL41: 0 | AM41: 0 | AN41: 0 | AP41: 29 | AQ41: 0.4243463623 | AR41: 1 | AS41: 0.54 | AT41: 0.1575 | AU41: 0.6975 | AV41: 0 | AW41: 0 | AX41: 0 | AZ41: 29 | BA41: 0.4243463623 | BB41: 1 | BC41: 0.6525 | BD41: 0 | BE41: 0.6525 | BF41: 0 | BG41: 0 | BH41: 0 | BJ41: 29 | BK41: 0.4243463623 | BL41: 1 | BM41: 0.6525 | BN41: -0.045 | BO41: 0.6075 | BP41: 0 | BQ41: 0 | BR41: 0 | BT41: 29 | BU41: 0.4243463623 | BV41: 1 | BW41: 0.725 | BX41: 0 | BY41: 0.725 | BZ41: 2.295684114e-15 | CA41: 0 | CB41: 0 | CD41: 29 | CE41: 0.4243463623 | CF41: 1 | CG41: 0.37 | CH41: 0 | CI41: 0.37 | CJ41: 2.295684114e-12 | CK41: 0 | CL41: 0
K42: 30 | L42: 0.4119867595 | M42: 1 | N42: 0.525 | O42: -0.135 | P42: 0.39 | Q42: 0 | R42: 0 | S42: 0 | U42: 30 | V42: 0.4119867595 | W42: 1 | X42: 0.7875 | Y42: -0.2025 | Z42: 0.585 | AA42: 0 | AB42: 0 | AC42: 0 | AF42: 30 | AG42: 0.4119867595 | AH42: 1 | AI42: 0.36 | AJ42: 0.105 | AK42: 0.465 | AL42: 0 | AM42: 0 | AN42: 0 | AP42: 30 | AQ42: 0.4119867595 | AR42: 1 | AS42: 0.54 | AT42: 0.1575 | AU42: 0.6975 | AV42: 0 | AW42: 0 | AX42: 0 | AZ42: 30 | BA42: 0.4119867595 | BB42: 1 | BC42: 0.6525 | BD42: 0 | BE42: 0.6525 | BF42: 0 | BG42: 0 | BH42: 0 | BJ42: 30 | BK42: 0.4119867595 | BL42: 1 | BM42: 0.6525 | BN42: -0.045 | BO42: 0.6075 | BP42: 0 | BQ42: 0 | BR42: 0 | BT42: 30 | BU42: 0.4119867595 | BV42: 1 | BW42: 0.725 | BX42: 0 | BY42: 0.725 | BZ42: 2.295684114e-15 | CA42: 0 | CB42: 0 | CD42: 30 | CE42: 0.4119867595 | CF42: 1 | CG42: 0.37 | CH42: 0 | CI42: 0.37 | CJ42: 2.295684114e-12 | CK42: 0 | CL42: 0
K43: 31 | L43: 0.3999871452 | M43: 1 | N43: 0.525 | O43: -0.135 | P43: 0.39 | Q43: 0 | R43: 0 | S43: 0 | U43: 31 | V43: 0.3999871452 | W43: 1 | X43: 0.7875 | Y43: -0.2025 | Z43: 0.585 | AA43: 0 | AB43: 0 | AC43: 0 | AF43: 31 | AG43: 0.3999871452 | AH43: 1 | AI43: 0.36 | AJ43: 0.105 | AK43: 0.465 | AL43: 0 | AM43: 0 | AN43: 0 | AP43: 31 | AQ43: 0.3999871452 | AR43: 1 | AS43: 0.54 | AT43: 0.1575 | AU43: 0.6975 | AV43: 0 | AW43: 0 | AX43: 0 | AZ43: 31 | BA43: 0.3999871452 | BB43: 1 | BC43: 0.6525 | BD43: 0 | BE43: 0.6525 | BF43: 0 | BG43: 0 | BH43: 0 | BJ43: 31 | BK43: 0.3999871452 | BL43: 1 | BM43: 0.6525 | BN43: -0.045 | BO43: 0.6075 | BP43: 0 | BQ43: 0 | BR43: 0 | BT43: 31 | BU43: 0.3999871452 | BV43: 1 | BW43: 0.725 | BX43: 0 | BY43: 0.725 | BZ43: 2.295684114e-15 | CA43: 0 | CB43: 0 | CD43: 31 | CE43: 0.3999871452 | CF43: 1 | CG43: 0.37 | CH43: 0 | CI43: 0.37 | CJ43: 2.295684114e-12 | CK43: 0 | CL43: 0
K44: 32 | L44: 0.3883370341 | M44: 1 | N44: 0.525 | O44: -0.135 | P44: 0.39 | Q44: 0 | R44: 0 | S44: 0 | U44: 32 | V44: 0.3883370341 | W44: 1 | X44: 0.7875 | Y44: -0.2025 | Z44: 0.585 | AA44: 0 | AB44: 0 | AC44: 0 | AF44: 32 | AG44: 0.3883370341 | AH44: 1 | AI44: 0.36 | AJ44: 0.105 | AK44: 0.465 | AL44: 0 | AM44: 0 | AN44: 0 | AP44: 32 | AQ44: 0.3883370341 | AR44: 1 | AS44: 0.54 | AT44: 0.1575 | AU44: 0.6975 | AV44: 0 | AW44: 0 | AX44: 0 | AZ44: 32 | BA44: 0.3883370341 | BB44: 1 | BC44: 0.6525 | BD44: 0 | BE44: 0.6525 | BF44: 0 | BG44: 0 | BH44: 0 | BJ44: 32 | BK44: 0.3883370341 | BL44: 1 | BM44: 0.6525 | BN44: -0.045 | BO44: 0.6075 | BP44: 0 | BQ44: 0 | BR44: 0 | BT44: 32 | BU44: 0.3883370341 | BV44: 1 | BW44: 0.725 | BX44: 0 | BY44: 0.725 | BZ44: 2.295684114e-15 | CA44: 0 | CB44: 0 | CD44: 32 | CE44: 0.3883370341 | CF44: 1 | CG44: 0.37 | CH44: 0 | CI44: 0.37 | CJ44: 2.295684114e-12 | CK44: 0 | CL44: 0
K45: 33 | L45: 0.3770262467 | M45: 1 | N45: 0.525 | O45: -0.135 | P45: 0.39 | Q45: 0 | R45: 0 | S45: 0 | U45: 33 | V45: 0.3770262467 | W45: 1 | X45: 0.7875 | Y45: -0.2025 | Z45: 0.585 | AA45: 0 | AB45: 0 | AC45: 0 | AF45: 33 | AG45: 0.3770262467 | AH45: 1 | AI45: 0.36 | AJ45: 0.105 | AK45: 0.465 | AL45: 0 | AM45: 0 | AN45: 0 | AP45: 33 | AQ45: 0.3770262467 | AR45: 1 | AS45: 0.54 | AT45: 0.1575 | AU45: 0.6975 | AV45: 0 | AW45: 0 | AX45: 0 | AZ45: 33 | BA45: 0.3770262467 | BB45: 1 | BC45: 0.6525 | BD45: 0 | BE45: 0.6525 | BF45: 0 | BG45: 0 | BH45: 0 | BJ45: 33 | BK45: 0.3770262467 | BL45: 1 | BM45: 0.6525 | BN45: -0.045 | BO45: 0.6075 | BP45: 0 | BQ45: 0 | BR45: 0 | BT45: 33 | BU45: 0.3770262467 | BV45: 1 | BW45: 0.725 | BX45: 0 | BY45: 0.725 | BZ45: 2.295684114e-15 | CA45: 0 | CB45: 0 | CD45: 33 | CE45: 0.3770262467 | CF45: 1 | CG45: 0.37 | CH45: 0 | CI45: 0.37 | CJ45: 2.295684114e-12 | CK45: 0 | CL45: 0
K46: 34 | L46: 0.3660448997 | M46: 1 | N46: 0.525 | O46: -0.135 | P46: 0.39 | Q46: 0 | R46: 0 | S46: 0 | U46: 34 | V46: 0.3660448997 | W46: 1 | X46: 0.7875 | Y46: -0.2025 | Z46: 0.585 | AA46: 0 | AB46: 0 | AC46: 0 | AF46: 34 | AG46: 0.3660448997 | AH46: 1 | AI46: 0.36 | AJ46: 0.105 | AK46: 0.465 | AL46: 0 | AM46: 0 | AN46: 0 | AP46: 34 | AQ46: 0.3660448997 | AR46: 1 | AS46: 0.54 | AT46: 0.1575 | AU46: 0.6975 | AV46: 0 | AW46: 0 | AX46: 0 | AZ46: 34 | BA46: 0.3660448997 | BB46: 1 | BC46: 0.6525 | BD46: 0 | BE46: 0.6525 | BF46: 0 | BG46: 0 | BH46: 0 | BJ46: 34 | BK46: 0.3660448997 | BL46: 1 | BM46: 0.6525 | BN46: -0.045 | BO46: 0.6075 | BP46: 0 | BQ46: 0 | BR46: 0 | BT46: 34 | BU46: 0.3660448997 | BV46: 1 | BW46: 0.725 | BX46: 0 | BY46: 0.725 | BZ46: 2.295684114e-15 | CA46: 0 | CB46: 0 | CD46: 34 | CE46: 0.3660448997 | CF46: 1 | CG46: 0.37 | CH46: 0 | CI46: 0.37 | CJ46: 2.295684114e-12 | CK46: 0 | CL46: 0
K47: 35 | L47: 0.3553833978 | M47: 1 | N47: 0.525 | O47: -0.135 | P47: 0.39 | Q47: 0 | R47: 0 | S47: 0 | U47: 35 | V47: 0.3553833978 | W47: 1 | X47: 0.7875 | Y47: -0.2025 | Z47: 0.585 | AA47: 0 | AB47: 0 | AC47: 0 | AF47: 35 | AG47: 0.3553833978 | AH47: 1 | AI47: 0.36 | AJ47: 0.105 | AK47: 0.465 | AL47: 0 | AM47: 0 | AN47: 0 | AP47: 35 | AQ47: 0.3553833978 | AR47: 1 | AS47: 0.54 | AT47: 0.1575 | AU47: 0.6975 | AV47: 0 | AW47: 0 | AX47: 0 | AZ47: 35 | BA47: 0.3553833978 | BB47: 1 | BC47: 0.6525 | BD47: 0 | BE47: 0.6525 | BF47: 0 | BG47: 0 | BH47: 0 | BJ47: 35 | BK47: 0.3553833978 | BL47: 1 | BM47: 0.6525 | BN47: -0.045 | BO47: 0.6075 | BP47: 0 | BQ47: 0 | BR47: 0 | BT47: 35 | BU47: 0.3553833978 | BV47: 1 | BW47: 0.725 | BX47: 0 | BY47: 0.725 | BZ47: 2.295684114e-15 | CA47: 0 | CB47: 0 | CD47: 35 | CE47: 0.3553833978 | CF47: 1 | CG47: 0.37 | CH47: 0 | CI47: 0.37 | CJ47: 2.295684114e-12 | CK47: 0 | CL47: 0
K48: 36 | L48: 0.3450324251 | M48: 1 | N48: 0.525 | O48: -0.135 | P48: 0.39 | Q48: 0 | R48: 0 | S48: 0 | U48: 36 | V48: 0.3450324251 | W48: 1 | X48: 0.7875 | Y48: -0.2025 | Z48: 0.585 | AA48: 0 | AB48: 0 | AC48: 0 | AF48: 36 | AG48: 0.3450324251 | AH48: 1 | AI48: 0.36 | AJ48: 0.105 | AK48: 0.465 | AL48: 0 | AM48: 0 | AN48: 0 | AP48: 36 | AQ48: 0.3450324251 | AR48: 1 | AS48: 0.54 | AT48: 0.1575 | AU48: 0.6975 | AV48: 0 | AW48: 0 | AX48: 0 | AZ48: 36 | BA48: 0.3450324251 | BB48: 1 | BC48: 0.6525 | BD48: 0 | BE48: 0.6525 | BF48: 0 | BG48: 0 | BH48: 0 | BJ48: 36 | BK48: 0.3450324251 | BL48: 1 | BM48: 0.6525 | BN48: -0.045 | BO48: 0.6075 | BP48: 0 | BQ48: 0 | BR48: 0 | BT48: 36 | BU48: 0.3450324251 | BV48: 1 | BW48: 0.725 | BX48: 0 | BY48: 0.725 | BZ48: 2.295684114e-15 | CA48: 0 | CB48: 0 | CD48: 36 | CE48: 0.3450324251 | CF48: 1 | CG48: 0.37 | CH48: 0 | CI48: 0.37 | CJ48: 2.295684114e-12 | CK48: 0 | CL48: 0
K49: 37 | L49: 0.3349829369 | M49: 1 | N49: 0.525 | O49: -0.135 | P49: 0.39 | Q49: 0 | R49: 0 | S49: 0 | U49: 37 | V49: 0.3349829369 | W49: 1 | X49: 0.7875 | Y49: -0.2025 | Z49: 0.585 | AA49: 0 | AB49: 0 | AC49: 0 | AF49: 37 | AG49: 0.3349829369 | AH49: 1 | AI49: 0.36 | AJ49: 0.105 | AK49: 0.465 | AL49: 0 | AM49: 0 | AN49: 0 | AP49: 37 | AQ49: 0.3349829369 | AR49: 1 | AS49: 0.54 | AT49: 0.1575 | AU49: 0.6975 | AV49: 0 | AW49: 0 | AX49: 0 | AZ49: 37 | BA49: 0.3349829369 | BB49: 1 | BC49: 0.6525 | BD49: 0 | BE49: 0.6525 | BF49: 0 | BG49: 0 | BH49: 0 | BJ49: 37 | BK49: 0.3349829369 | BL49: 1 | BM49: 0.6525 | BN49: -0.045 | BO49: 0.6075 | BP49: 0 | BQ49: 0 | BR49: 0 | BT49: 37 | BU49: 0.3349829369 | BV49: 1 | BW49: 0.725 | BX49: 0 | BY49: 0.725 | BZ49: 2.295684114e-15 | CA49: 0 | CB49: 0 | CD49: 37 | CE49: 0.3349829369 | CF49: 1 | CG49: 0.37 | CH49: 0 | CI49: 0.37 | CJ49: 2.295684114e-12 | CK49: 0 | CL49: 0
K50: 38 | L50: 0.3252261524 | M50: 1 | N50: 0.525 | O50: -0.135 | P50: 0.39 | Q50: 0 | R50: 0 | S50: 0 | U50: 38 | V50: 0.3252261524 | W50: 1 | X50: 0.7875 | Y50: -0.2025 | Z50: 0.585 | AA50: 0 | AB50: 0 | AC50: 0 | AF50: 38 | AG50: 0.3252261524 | AH50: 1 | AI50: 0.36 | AJ50: 0.105 | AK50: 0.465 | AL50: 0 | AM50: 0 | AN50: 0 | AP50: 38 | AQ50: 0.3252261524 | AR50: 1 | AS50: 0.54 | AT50: 0.1575 | AU50: 0.6975 | AV50: 0 | AW50: 0 | AX50: 0 | AZ50: 38 | BA50: 0.3252261524 | BB50: 1 | BC50: 0.6525 | BD50: 0 | BE50: 0.6525 | BF50: 0 | BG50: 0 | BH50: 0 | BJ50: 38 | BK50: 0.3252261524 | BL50: 1 | BM50: 0.6525 | BN50: -0.045 | BO50: 0.6075 | BP50: 0 | BQ50: 0 | BR50: 0 | BT50: 38 | BU50: 0.3252261524 | BV50: 1 | BW50: 0.725 | BX50: 0 | BY50: 0.725 | BZ50: 2.295684114e-15 | CA50: 0 | CB50: 0 | CD50: 38 | CE50: 0.3252261524 | CF50: 1 | CG50: 0.37 | CH50: 0 | CI50: 0.37 | CJ50: 2.295684114e-12 | CK50: 0 | CL50: 0
K51: 39 | L51: 0.315753546 | M51: 1 | N51: 0.525 | O51: -0.135 | P51: 0.39 | Q51: 0 | R51: 0 | S51: 0 | U51: 39 | V51: 0.315753546 | W51: 1 | X51: 0.7875 | Y51: -0.2025 | Z51: 0.585 | AA51: 0 | AB51: 0 | AC51: 0 | AF51: 39 | AG51: 0.315753546 | AH51: 1 | AI51: 0.36 | AJ51: 0.105 | AK51: 0.465 | AL51: 0 | AM51: 0 | AN51: 0 | AP51: 39 | AQ51: 0.315753546 | AR51: 1 | AS51: 0.54 | AT51: 0.1575 | AU51: 0.6975 | AV51: 0 | AW51: 0 | AX51: 0 | AZ51: 39 | BA51: 0.315753546 | BB51: 1 | BC51: 0.6525 | BD51: 0 | BE51: 0.6525 | BF51: 0 | BG51: 0 | BH51: 0 | BJ51: 39 | BK51: 0.315753546 | BL51: 1 | BM51: 0.6525 | BN51: -0.045 | BO51: 0.6075 | BP51: 0 | BQ51: 0 | BR51: 0 | BT51: 39 | BU51: 0.315753546 | BV51: 1 | BW51: 0.725 | BX51: 0 | BY51: 0.725 | BZ51: 2.295684114e-15 | CA51: 0 | CB51: 0 | CD51: 39 | CE51: 0.315753546 | CF51: 1 | CG51: 0.37 | CH51: 0 | CI51: 0.37 | CJ51: 2.295684114e-12 | CK51: 0 | CL51: 0
K52: 40 | L52: 0.3065568408 | M52: 1 | N52: 0.525 | O52: -0.135 | P52: 0.39 | Q52: 0 | R52: 0 | S52: 0 | U52: 40 | V52: 0.3065568408 | W52: 1 | X52: 0.7875 | Y52: -0.2025 | Z52: 0.585 | AA52: 0 | AB52: 0 | AC52: 0 | AF52: 40 | AG52: 0.3065568408 | AH52: 1 | AI52: 0.36 | AJ52: 0.105 | AK52: 0.465 | AL52: 0 | AM52: 0 | AN52: 0 | AP52: 40 | AQ52: 0.3065568408 | AR52: 1 | AS52: 0.54 | AT52: 0.1575 | AU52: 0.6975 | AV52: 0 | AW52: 0 | AX52: 0 | AZ52: 40 | BA52: 0.3065568408 | BB52: 1 | BC52: 0.6525 | BD52: 0 | BE52: 0.6525 | BF52: 0 | BG52: 0 | BH52: 0 | BJ52: 40 | BK52: 0.3065568408 | BL52: 1 | BM52: 0.6525 | BN52: -0.045 | BO52: 0.6075 | BP52: 0 | BQ52: 0 | BR52: 0 | BT52: 40 | BU52: 0.3065568408 | BV52: 1 | BW52: 0.725 | BX52: 0 | BY52: 0.725 | BZ52: 2.295684114e-15 | CA52: 0 | CB52: 0 | CD52: 40 | CE52: 0.3065568408 | CF52: 1 | CG52: 0.37 | CH52: 0 | CI52: 0.37 | CJ52: 2.295684114e-12 | CK52: 0 | CL52: 0
K53: 41 | L53: 0.2976280008 | M53: 1 | N53: 0.525 | O53: -0.135 | P53: 0.39 | Q53: 0 | R53: 0 | S53: 0 | U53: 41 | V53: 0.2976280008 | W53: 1 | X53: 0.7875 | Y53: -0.2025 | Z53: 0.585 | AA53: 0 | AB53: 0 | AC53: 0 | AF53: 41 | AG53: 0.2976280008 | AH53: 1 | AI53: 0.36 | AJ53: 0.105 | AK53: 0.465 | AL53: 0 | AM53: 0 | AN53: 0 | AP53: 41 | AQ53: 0.2976280008 | AR53: 1 | AS53: 0.54 | AT53: 0.1575 | AU53: 0.6975 | AV53: 0 | AW53: 0 | AX53: 0 | AZ53: 41 | BA53: 0.2976280008 | BB53: 1 | BC53: 0.6525 | BD53: 0 | BE53: 0.6525 | BF53: 0 | BG53: 0 | BH53: 0 | BJ53: 41 | BK53: 0.2976280008 | BL53: 1 | BM53: 0.6525 | BN53: -0.045 | BO53: 0.6075 | BP53: 0 | BQ53: 0 | BR53: 0 | BT53: 41 | BU53: 0.2976280008 | BV53: 1 | BW53: 0.725 | BX53: 0 | BY53: 0.725 | BZ53: 2.295684114e-15 | CA53: 0 | CB53: 0 | CD53: 41 | CE53: 0.2976280008 | CF53: 1 | CG53: 0.37 | CH53: 0 | CI53: 0.37 | CJ53: 2.295684114e-12 | CK53: 0 | CL53: 0
K54: 42 | L54: 0.288959224 | M54: 1 | N54: 0.525 | O54: -0.135 | P54: 0.39 | Q54: 0 | R54: 0 | S54: 0 | U54: 42 | V54: 0.288959224 | W54: 1 | X54: 0.7875 | Y54: -0.2025 | Z54: 0.585 | AA54: 0 | AB54: 0 | AC54: 0 | AF54: 42 | AG54: 0.288959224 | AH54: 1 | AI54: 0.36 | AJ54: 0.105 | AK54: 0.465 | AL54: 0 | AM54: 0 | AN54: 0 | AP54: 42 | AQ54: 0.288959224 | AR54: 1 | AS54: 0.54 | AT54: 0.1575 | AU54: 0.6975 | AV54: 0 | AW54: 0 | AX54: 0 | AZ54: 42 | BA54: 0.288959224 | BB54: 1 | BC54: 0.6525 | BD54: 0 | BE54: 0.6525 | BF54: 0 | BG54: 0 | BH54: 0 | BJ54: 42 | BK54: 0.288959224 | BL54: 1 | BM54: 0.6525 | BN54: -0.045 | BO54: 0.6075 | BP54: 0 | BQ54: 0 | BR54: 0 | BT54: 42 | BU54: 0.288959224 | BV54: 1 | BW54: 0.725 | BX54: 0 | BY54: 0.725 | BZ54: 2.295684114e-15 | CA54: 0 | CB54: 0 | CD54: 42 | CE54: 0.288959224 | CF54: 1 | CG54: 0.37 | CH54: 0 | CI54: 0.37 | CJ54: 2.295684114e-12 | CK54: 0 | CL54: 0
K55: 43 | L55: 0.280542936 | M55: 1 | N55: 0.525 | O55: -0.135 | P55: 0.39 | Q55: 0 | R55: 0 | S55: 0 | U55: 43 | V55: 0.280542936 | W55: 1 | X55: 0.7875 | Y55: -0.2025 | Z55: 0.585 | AA55: 0 | AB55: 0 | AC55: 0 | AF55: 43 | AG55: 0.280542936 | AH55: 1 | AI55: 0.36 | AJ55: 0.105 | AK55: 0.465 | AL55: 0 | AM55: 0 | AN55: 0 | AP55: 43 | AQ55: 0.280542936 | AR55: 1 | AS55: 0.54 | AT55: 0.1575 | AU55: 0.6975 | AV55: 0 | AW55: 0 | AX55: 0 | AZ55: 43 | BA55: 0.280542936 | BB55: 1 | BC55: 0.6525 | BD55: 0 | BE55: 0.6525 | BF55: 0 | BG55: 0 | BH55: 0 | BJ55: 43 | BK55: 0.280542936 | BL55: 1 | BM55: 0.6525 | BN55: -0.045 | BO55: 0.6075 | BP55: 0 | BQ55: 0 | BR55: 0 | BT55: 43 | BU55: 0.280542936 | BV55: 1 | BW55: 0.725 | BX55: 0 | BY55: 0.725 | BZ55: 2.295684114e-15 | CA55: 0 | CB55: 0 | CD55: 43 | CE55: 0.280542936 | CF55: 1 | CG55: 0.37 | CH55: 0 | CI55: 0.37 | CJ55: 2.295684114e-12 | CK55: 0 | CL55: 0
K56: 44 | L56: 0.2723717825 | M56: 1 | N56: 0.525 | O56: -0.135 | P56: 0.39 | Q56: 0 | R56: 0 | S56: 0 | U56: 44 | V56: 0.2723717825 | W56: 1 | X56: 0.7875 | Y56: -0.2025 | Z56: 0.585 | AA56: 0 | AB56: 0 | AC56: 0 | AF56: 44 | AG56: 0.2723717825 | AH56: 1 | AI56: 0.36 | AJ56: 0.105 | AK56: 0.465 | AL56: 0 | AM56: 0 | AN56: 0 | AP56: 44 | AQ56: 0.2723717825 | AR56: 1 | AS56: 0.54 | AT56: 0.1575 | AU56: 0.6975 | AV56: 0 | AW56: 0 | AX56: 0 | AZ56: 44 | BA56: 0.2723717825 | BB56: 1 | BC56: 0.6525 | BD56: 0 | BE56: 0.6525 | BF56: 0 | BG56: 0 | BH56: 0 | BJ56: 44 | BK56: 0.2723717825 | BL56: 1 | BM56: 0.6525 | BN56: -0.045 | BO56: 0.6075 | BP56: 0 | BQ56: 0 | BR56: 0 | BT56: 44 | BU56: 0.2723717825 | BV56: 1 | BW56: 0.725 | BX56: 0 | BY56: 0.725 | BZ56: 2.295684114e-15 | CA56: 0 | CB56: 0 | CD56: 44 | CE56: 0.2723717825 | CF56: 1 | CG56: 0.37 | CH56: 0 | CI56: 0.37 | CJ56: 2.295684114e-12 | CK56: 0 | CL56: 0
K57: 45 | L57: 0.2644386238 | M57: 1 | N57: 0.525 | O57: -0.135 | P57: 0.39 | Q57: 0 | R57: 0 | S57: 0 | U57: 45 | V57: 0.2644386238 | W57: 1 | X57: 0.7875 | Y57: -0.2025 | Z57: 0.585 | AA57: 0 | AB57: 0 | AC57: 0 | AF57: 45 | AG57: 0.2644386238 | AH57: 1 | AI57: 0.36 | AJ57: 0.105 | AK57: 0.465 | AL57: 0 | AM57: 0 | AN57: 0 | AP57: 45 | AQ57: 0.2644386238 | AR57: 1 | AS57: 0.54 | AT57: 0.1575 | AU57: 0.6975 | AV57: 0 | AW57: 0 | AX57: 0 | AZ57: 45 | BA57: 0.2644386238 | BB57: 1 | BC57: 0.6525 | BD57: 0 | BE57: 0.6525 | BF57: 0 | BG57: 0 | BH57: 0 | BJ57: 45 | BK57: 0.2644386238 | BL57: 1 | BM57: 0.6525 | BN57: -0.045 | BO57: 0.6075 | BP57: 0 | BQ57: 0 | BR57: 0 | BT57: 45 | BU57: 0.2644386238 | BV57: 1 | BW57: 0.725 | BX57: 0 | BY57: 0.725 | BZ57: 2.295684114e-15 | CA57: 0 | CB57: 0 | CD57: 45 | CE57: 0.2644386238 | CF57: 1 | CG57: 0.37 | CH57: 0 | CI57: 0.37 | CJ57: 2.295684114e-12 | CK57: 0 | CL57: 0
K58: 46 | L58: 0.2567365279 | M58: 1 | N58: 0.525 | O58: -0.135 | P58: 0.39 | Q58: 0 | R58: 0 | S58: 0 | U58: 46 | V58: 0.2567365279 | W58: 1 | X58: 0.7875 | Y58: -0.2025 | Z58: 0.585 | AA58: 0 | AB58: 0 | AC58: 0 | AF58: 46 | AG58: 0.2567365279 | AH58: 1 | AI58: 0.36 | AJ58: 0.105 | AK58: 0.465 | AL58: 0 | AM58: 0 | AN58: 0 | AP58: 46 | AQ58: 0.2567365279 | AR58: 1 | AS58: 0.54 | AT58: 0.1575 | AU58: 0.6975 | AV58: 0 | AW58: 0 | AX58: 0 | AZ58: 46 | BA58: 0.2567365279 | BB58: 1 | BC58: 0.6525 | BD58: 0 | BE58: 0.6525 | BF58: 0 | BG58: 0 | BH58: 0 | BJ58: 46 | BK58: 0.2567365279 | BL58: 1 | BM58: 0.6525 | BN58: -0.045 | BO58: 0.6075 | BP58: 0 | BQ58: 0 | BR58: 0 | BT58: 46 | BU58: 0.2567365279 | BV58: 1 | BW58: 0.725 | BX58: 0 | BY58: 0.725 | BZ58: 2.295684114e-15 | CA58: 0 | CB58: 0 | CD58: 46 | CE58: 0.2567365279 | CF58: 1 | CG58: 0.37 | CH58: 0 | CI58: 0.37 | CJ58: 2.295684114e-12 | CK58: 0 | CL58: 0
K59: 47 | L59: 0.249258765 | M59: 1 | N59: 0.525 | O59: -0.135 | P59: 0.39 | Q59: 0 | R59: 0 | S59: 0 | U59: 47 | V59: 0.249258765 | W59: 1 | X59: 0.7875 | Y59: -0.2025 | Z59: 0.585 | AA59: 0 | AB59: 0 | AC59: 0 | AF59: 47 | AG59: 0.249258765 | AH59: 1 | AI59: 0.36 | AJ59: 0.105 | AK59: 0.465 | AL59: 0 | AM59: 0 | AN59: 0 | AP59: 47 | AQ59: 0.249258765 | AR59: 1 | AS59: 0.54 | AT59: 0.1575 | AU59: 0.6975 | AV59: 0 | AW59: 0 | AX59: 0 | AZ59: 47 | BA59: 0.249258765 | BB59: 1 | BC59: 0.6525 | BD59: 0 | BE59: 0.6525 | BF59: 0 | BG59: 0 | BH59: 0 | BJ59: 47 | BK59: 0.249258765 | BL59: 1 | BM59: 0.6525 | BN59: -0.045 | BO59: 0.6075 | BP59: 0 | BQ59: 0 | BR59: 0 | BT59: 47 | BU59: 0.249258765 | BV59: 1 | BW59: 0.725 | BX59: 0 | BY59: 0.725 | BZ59: 2.295684114e-15 | CA59: 0 | CB59: 0 | CD59: 47 | CE59: 0.249258765 | CF59: 1 | CG59: 0.37 | CH59: 0 | CI59: 0.37 | CJ59: 2.295684114e-12 | CK59: 0 | CL59: 0
K60: 48 | L60: 0.2419988009 | M60: 1 | N60: 0.525 | O60: -0.135 | P60: 0.39 | Q60: 0 | R60: 0 | S60: 0 | U60: 48 | V60: 0.2419988009 | W60: 1 | X60: 0.7875 | Y60: -0.2025 | Z60: 0.585 | AA60: 0 | AB60: 0 | AC60: 0 | AF60: 48 | AG60: 0.2419988009 | AH60: 1 | AI60: 0.36 | AJ60: 0.105 | AK60: 0.465 | AL60: 0 | AM60: 0 | AN60: 0 | AP60: 48 | AQ60: 0.2419988009 | AR60: 1 | AS60: 0.54 | AT60: 0.1575 | AU60: 0.6975 | AV60: 0 | AW60: 0 | AX60: 0 | AZ60: 48 | BA60: 0.2419988009 | BB60: 1 | BC60: 0.6525 | BD60: 0 | BE60: 0.6525 | BF60: 0 | BG60: 0 | BH60: 0 | BJ60: 48 | BK60: 0.2419988009 | BL60: 1 | BM60: 0.6525 | BN60: -0.045 | BO60: 0.6075 | BP60: 0 | BQ60: 0 | BR60: 0 | BT60: 48 | BU60: 0.2419988009 | BV60: 1 | BW60: 0.725 | BX60: 0 | BY60: 0.725 | BZ60: 2.295684114e-15 | CA60: 0 | CB60: 0 | CD60: 48 | CE60: 0.2419988009 | CF60: 1 | CG60: 0.37 | CH60: 0 | CI60: 0.37 | CJ60: 2.295684114e-12 | CK60: 0 | CL60: 0
K61: 49 | L61: 0.2349502922 | M61: 1 | N61: 0.525 | O61: -0.135 | P61: 0.39 | Q61: 0 | R61: 0 | S61: 0 | U61: 49 | V61: 0.2349502922 | W61: 1 | X61: 0.7875 | Y61: -0.2025 | Z61: 0.585 | AA61: 0 | AB61: 0 | AC61: 0 | AF61: 49 | AG61: 0.2349502922 | AH61: 1 | AI61: 0.36 | AJ61: 0.105 | AK61: 0.465 | AL61: 0 | AM61: 0 | AN61: 0 | AP61: 49 | AQ61: 0.2349502922 | AR61: 1 | AS61: 0.54 | AT61: 0.1575 | AU61: 0.6975 | AV61: 0 | AW61: 0 | AX61: 0 | AZ61: 49 | BA61: 0.2349502922 | BB61: 1 | BC61: 0.6525 | BD61: 0 | BE61: 0.6525 | BF61: 0 | BG61: 0 | BH61: 0 | BJ61: 49 | BK61: 0.2349502922 | BL61: 1 | BM61: 0.6525 | BN61: -0.045 | BO61: 0.6075 | BP61: 0 | BQ61: 0 | BR61: 0 | BT61: 49 | BU61: 0.2349502922 | BV61: 1 | BW61: 0.725 | BX61: 0 | BY61: 0.725 | BZ61: 2.295684114e-15 | CA61: 0 | CB61: 0 | CD61: 49 | CE61: 0.2349502922 | CF61: 1 | CG61: 0.37 | CH61: 0 | CI61: 0.37 | CJ61: 2.295684114e-12 | CK61: 0 | CL61: 0
K62: 50 | L62: 0.2281070798 | M62: 1 | N62: 0.525 | O62: -0.135 | P62: 0.39 | Q62: 0 | R62: 0 | S62: 0 | U62: 50 | V62: 0.2281070798 | W62: 1 | X62: 0.7875 | Y62: -0.2025 | Z62: 0.585 | AA62: 0 | AB62: 0 | AC62: 0 | AF62: 50 | AG62: 0.2281070798 | AH62: 1 | AI62: 0.36 | AJ62: 0.105 | AK62: 0.465 | AL62: 0 | AM62: 0 | AN62: 0 | AP62: 50 | AQ62: 0.2281070798 | AR62: 1 | AS62: 0.54 | AT62: 0.1575 | AU62: 0.6975 | AV62: 0 | AW62: 0 | AX62: 0 | AZ62: 50 | BA62: 0.2281070798 | BB62: 1 | BC62: 0.6525 | BD62: 0 | BE62: 0.6525 | BF62: 0 | BG62: 0 | BH62: 0 | BJ62: 50 | BK62: 0.2281070798 | BL62: 1 | BM62: 0.6525 | BN62: -0.045 | BO62: 0.6075 | BP62: 0 | BQ62: 0 | BR62: 0 | BT62: 50 | BU62: 0.2281070798 | BV62: 1 | BW62: 0.725 | BX62: 0 | BY62: 0.725 | BZ62: 2.295684114e-15 | CA62: 0 | CB62: 0 | CD62: 50 | CE62: 0.2281070798 | CF62: 1 | CG62: 0.37 | CH62: 0 | CI62: 0.37 | CJ62: 2.295684114e-12 | CK62: 0 | CL62: 0
K63: 51 | L63: 0.2214631843 | M63: 1 | N63: 0.525 | O63: -0.135 | P63: 0.39 | Q63: 0 | R63: 0 | S63: 0 | U63: 51 | V63: 0.2214631843 | W63: 1 | X63: 0.7875 | Y63: -0.2025 | Z63: 0.585 | AA63: 0 | AB63: 0 | AC63: 0 | AF63: 51 | AG63: 0.2214631843 | AH63: 1 | AI63: 0.36 | AJ63: 0.105 | AK63: 0.465 | AL63: 0 | AM63: 0 | AN63: 0 | AP63: 51 | AQ63: 0.2214631843 | AR63: 1 | AS63: 0.54 | AT63: 0.1575 | AU63: 0.6975 | AV63: 0 | AW63: 0 | AX63: 0 | AZ63: 51 | BA63: 0.2214631843 | BB63: 1 | BC63: 0.6525 | BD63: 0 | BE63: 0.6525 | BF63: 0 | BG63: 0 | BH63: 0 | BJ63: 51 | BK63: 0.2214631843 | BL63: 1 | BM63: 0.6525 | BN63: -0.045 | BO63: 0.6075 | BP63: 0 | BQ63: 0 | BR63: 0 | BT63: 51 | BU63: 0.2214631843 | BV63: 1 | BW63: 0.725 | BX63: 0 | BY63: 0.725 | BZ63: 2.295684114e-15 | CA63: 0 | CB63: 0 | CD63: 51 | CE63: 0.2214631843 | CF63: 1 | CG63: 0.37 | CH63: 0 | CI63: 0.37 | CJ63: 2.295684114e-12 | CK63: 0 | CL63: 0
K64: 52 | L64: 0.2150128003 | M64: 1 | N64: 0.525 | O64: -0.135 | P64: 0.39 | Q64: 0 | R64: 0 | S64: 0 | U64: 52 | V64: 0.2150128003 | W64: 1 | X64: 0.7875 | Y64: -0.2025 | Z64: 0.585 | AA64: 0 | AB64: 0 | AC64: 0 | AF64: 52 | AG64: 0.2150128003 | AH64: 1 | AI64: 0.36 | AJ64: 0.105 | AK64: 0.465 | AL64: 0 | AM64: 0 | AN64: 0 | AP64: 52 | AQ64: 0.2150128003 | AR64: 1 | AS64: 0.54 | AT64: 0.1575 | AU64: 0.6975 | AV64: 0 | AW64: 0 | AX64: 0 | AZ64: 52 | BA64: 0.2150128003 | BB64: 1 | BC64: 0.6525 | BD64: 0 | BE64: 0.6525 | BF64: 0 | BG64: 0 | BH64: 0 | BJ64: 52 | BK64: 0.2150128003 | BL64: 1 | BM64: 0.6525 | BN64: -0.045 | BO64: 0.6075 | BP64: 0 | BQ64: 0 | BR64: 0 | BT64: 52 | BU64: 0.2150128003 | BV64: 1 | BW64: 0.725 | BX64: 0 | BY64: 0.725 | BZ64: 2.295684114e-15 | CA64: 0 | CB64: 0 | CD64: 52 | CE64: 0.2150128003 | CF64: 1 | CG64: 0.37 | CH64: 0 | CI64: 0.37 | CJ64: 2.295684114e-12 | CK64: 0 | CL64: 0
K65: 53 | L65: 0.2087502915 | M65: 1 | N65: 0.525 | O65: -0.135 | P65: 0.39 | Q65: 0 | R65: 0 | S65: 0 | U65: 53 | V65: 0.2087502915 | W65: 1 | X65: 0.7875 | Y65: -0.2025 | Z65: 0.585 | AA65: 0 | AB65: 0 | AC65: 0 | AF65: 53 | AG65: 0.2087502915 | AH65: 1 | AI65: 0.36 | AJ65: 0.105 | AK65: 0.465 | AL65: 0 | AM65: 0 | AN65: 0 | AP65: 53 | AQ65: 0.2087502915 | AR65: 1 | AS65: 0.54 | AT65: 0.1575 | AU65: 0.6975 | AV65: 0 | AW65: 0 | AX65: 0 | AZ65: 53 | BA65: 0.2087502915 | BB65: 1 | BC65: 0.6525 | BD65: 0 | BE65: 0.6525 | BF65: 0 | BG65: 0 | BH65: 0 | BJ65: 53 | BK65: 0.2087502915 | BL65: 1 | BM65: 0.6525 | BN65: -0.045 | BO65: 0.6075 | BP65: 0 | BQ65: 0 | BR65: 0 | BT65: 53 | BU65: 0.2087502915 | BV65: 1 | BW65: 0.725 | BX65: 0 | BY65: 0.725 | BZ65: 2.295684114e-15 | CA65: 0 | CB65: 0 | CD65: 53 | CE65: 0.2087502915 | CF65: 1 | CG65: 0.37 | CH65: 0 | CI65: 0.37 | CJ65: 2.295684114e-12 | CK65: 0 | CL65: 0
K66: 54 | L66: 0.2026701859 | M66: 1 | N66: 0.525 | O66: -0.135 | P66: 0.39 | Q66: 0 | R66: 0 | S66: 0 | U66: 54 | V66: 0.2026701859 | W66: 1 | X66: 0.7875 | Y66: -0.2025 | Z66: 0.585 | AA66: 0 | AB66: 0 | AC66: 0 | AF66: 54 | AG66: 0.2026701859 | AH66: 1 | AI66: 0.36 | AJ66: 0.105 | AK66: 0.465 | AL66: 0 | AM66: 0 | AN66: 0 | AP66: 54 | AQ66: 0.2026701859 | AR66: 1 | AS66: 0.54 | AT66: 0.1575 | AU66: 0.6975 | AV66: 0 | AW66: 0 | AX66: 0 | AZ66: 54 | BA66: 0.2026701859 | BB66: 1 | BC66: 0.6525 | BD66: 0 | BE66: 0.6525 | BF66: 0 | BG66: 0 | BH66: 0 | BJ66: 54 | BK66: 0.2026701859 | BL66: 1 | BM66: 0.6525 | BN66: -0.045 | BO66: 0.6075 | BP66: 0 | BQ66: 0 | BR66: 0 | BT66: 54 | BU66: 0.2026701859 | BV66: 1 | BW66: 0.725 | BX66: 0 | BY66: 0.725 | BZ66: 2.295684114e-15 | CA66: 0 | CB66: 0 | CD66: 54 | CE66: 0.2026701859 | CF66: 1 | CG66: 0.37 | CH66: 0 | CI66: 0.37 | CJ66: 2.295684114e-12 | CK66: 0 | CL66: 0
K67: 55 | L67: 0.1967671708 | M67: 1 | N67: 0.525 | O67: -0.135 | P67: 0.39 | Q67: 0 | R67: 0 | S67: 0 | U67: 55 | V67: 0.1967671708 | W67: 1 | X67: 0.7875 | Y67: -0.2025 | Z67: 0.585 | AA67: 0 | AB67: 0 | AC67: 0 | AF67: 55 | AG67: 0.1967671708 | AH67: 1 | AI67: 0.36 | AJ67: 0.105 | AK67: 0.465 | AL67: 0 | AM67: 0 | AN67: 0 | AP67: 55 | AQ67: 0.1967671708 | AR67: 1 | AS67: 0.54 | AT67: 0.1575 | AU67: 0.6975 | AV67: 0 | AW67: 0 | AX67: 0 | AZ67: 55 | BA67: 0.1967671708 | BB67: 1 | BC67: 0.6525 | BD67: 0 | BE67: 0.6525 | BF67: 0 | BG67: 0 | BH67: 0 | BJ67: 55 | BK67: 0.1967671708 | BL67: 1 | BM67: 0.6525 | BN67: -0.045 | BO67: 0.6075 | BP67: 0 | BQ67: 0 | BR67: 0 | BT67: 55 | BU67: 0.1967671708 | BV67: 1 | BW67: 0.725 | BX67: 0 | BY67: 0.725 | BZ67: 2.295684114e-15 | CA67: 0 | CB67: 0 | CD67: 55 | CE67: 0.1967671708 | CF67: 1 | CG67: 0.37 | CH67: 0 | CI67: 0.37 | CJ67: 2.295684114e-12 | CK67: 0 | CL67: 0
K68: 56 | L68: 0.1910360882 | M68: 1 | N68: 0.525 | O68: -0.135 | P68: 0.39 | Q68: 0 | R68: 0 | S68: 0 | U68: 56 | V68: 0.1910360882 | W68: 1 | X68: 0.7875 | Y68: -0.2025 | Z68: 0.585 | AA68: 0 | AB68: 0 | AC68: 0 | AF68: 56 | AG68: 0.1910360882 | AH68: 1 | AI68: 0.36 | AJ68: 0.105 | AK68: 0.465 | AL68: 0 | AM68: 0 | AN68: 0 | AP68: 56 | AQ68: 0.1910360882 | AR68: 1 | AS68: 0.54 | AT68: 0.1575 | AU68: 0.6975 | AV68: 0 | AW68: 0 | AX68: 0 | AZ68: 56 | BA68: 0.1910360882 | BB68: 1 | BC68: 0.6525 | BD68: 0 | BE68: 0.6525 | BF68: 0 | BG68: 0 | BH68: 0 | BJ68: 56 | BK68: 0.1910360882 | BL68: 1 | BM68: 0.6525 | BN68: -0.045 | BO68: 0.6075 | BP68: 0 | BQ68: 0 | BR68: 0 | BT68: 56 | BU68: 0.1910360882 | BV68: 1 | BW68: 0.725 | BX68: 0 | BY68: 0.725 | BZ68: 2.295684114e-15 | CA68: 0 | CB68: 0 | CD68: 56 | CE68: 0.1910360882 | CF68: 1 | CG68: 0.37 | CH68: 0 | CI68: 0.37 | CJ68: 2.295684114e-12 | CK68: 0 | CL68: 0
K69: 57 | L69: 0.1854719303 | M69: 1 | N69: 0.525 | O69: -0.135 | P69: 0.39 | Q69: 0 | R69: 0 | S69: 0 | U69: 57 | V69: 0.1854719303 | W69: 1 | X69: 0.7875 | Y69: -0.2025 | Z69: 0.585 | AA69: 0 | AB69: 0 | AC69: 0 | AF69: 57 | AG69: 0.1854719303 | AH69: 1 | AI69: 0.36 | AJ69: 0.105 | AK69: 0.465 | AL69: 0 | AM69: 0 | AN69: 0 | AP69: 57 | AQ69: 0.1854719303 | AR69: 1 | AS69: 0.54 | AT69: 0.1575 | AU69: 0.6975 | AV69: 0 | AW69: 0 | AX69: 0 | AZ69: 57 | BA69: 0.1854719303 | BB69: 1 | BC69: 0.6525 | BD69: 0 | BE69: 0.6525 | BF69: 0 | BG69: 0 | BH69: 0 | BJ69: 57 | BK69: 0.1854719303 | BL69: 1 | BM69: 0.6525 | BN69: -0.045 | BO69: 0.6075 | BP69: 0 | BQ69: 0 | BR69: 0 | BT69: 57 | BU69: 0.1854719303 | BV69: 1 | BW69: 0.725 | BX69: 0 | BY69: 0.725 | BZ69: 2.295684114e-15 | CA69: 0 | CB69: 0 | CD69: 57 | CE69: 0.1854719303 | CF69: 1 | CG69: 0.37 | CH69: 0 | CI69: 0.37 | CJ69: 2.295684114e-12 | CK69: 0 | CL69: 0
K70: 58 | L70: 0.1800698352 | M70: 1 | N70: 0.525 | O70: -0.135 | P70: 0.39 | Q70: 0 | R70: 0 | S70: 0 | U70: 58 | V70: 0.1800698352 | W70: 1 | X70: 0.7875 | Y70: -0.2025 | Z70: 0.585 | AA70: 0 | AB70: 0 | AC70: 0 | AF70: 58 | AG70: 0.1800698352 | AH70: 1 | AI70: 0.36 | AJ70: 0.105 | AK70: 0.465 | AL70: 0 | AM70: 0 | AN70: 0 | AP70: 58 | AQ70: 0.1800698352 | AR70: 1 | AS70: 0.54 | AT70: 0.1575 | AU70: 0.6975 | AV70: 0 | AW70: 0 | AX70: 0 | AZ70: 58 | BA70: 0.1800698352 | BB70: 1 | BC70: 0.6525 | BD70: 0 | BE70: 0.6525 | BF70: 0 | BG70: 0 | BH70: 0 | BJ70: 58 | BK70: 0.1800698352 | BL70: 1 | BM70: 0.6525 | BN70: -0.045 | BO70: 0.6075 | BP70: 0 | BQ70: 0 | BR70: 0 | BT70: 58 | BU70: 0.1800698352 | BV70: 1 | BW70: 0.725 | BX70: 0 | BY70: 0.725 | BZ70: 2.295684114e-15 | CA70: 0 | CB70: 0 | CD70: 58 | CE70: 0.1800698352 | CF70: 1 | CG70: 0.37 | CH70: 0 | CI70: 0.37 | CJ70: 2.295684114e-12 | CK70: 0 | CL70: 0
K71: 59 | L71: 0.1748250827 | M71: 1 | N71: 0.525 | O71: -0.135 | P71: 0.39 | Q71: 0 | R71: 0 | S71: 0 | U71: 59 | V71: 0.1748250827 | W71: 1 | X71: 0.7875 | Y71: -0.2025 | Z71: 0.585 | AA71: 0 | AB71: 0 | AC71: 0 | AF71: 59 | AG71: 0.1748250827 | AH71: 1 | AI71: 0.36 | AJ71: 0.105 | AK71: 0.465 | AL71: 0 | AM71: 0 | AN71: 0 | AP71: 59 | AQ71: 0.1748250827 | AR71: 1 | AS71: 0.54 | AT71: 0.1575 | AU71: 0.6975 | AV71: 0 | AW71: 0 | AX71: 0 | AZ71: 59 | BA71: 0.1748250827 | BB71: 1 | BC71: 0.6525 | BD71: 0 | BE71: 0.6525 | BF71: 0 | BG71: 0 | BH71: 0 | BJ71: 59 | BK71: 0.1748250827 | BL71: 1 | BM71: 0.6525 | BN71: -0.045 | BO71: 0.6075 | BP71: 0 | BQ71: 0 | BR71: 0 | BT71: 59 | BU71: 0.1748250827 | BV71: 1 | BW71: 0.725 | BX71: 0 | BY71: 0.725 | BZ71: 2.295684114e-15 | CA71: 0 | CB71: 0 | CD71: 59 | CE71: 0.1748250827 | CF71: 1 | CG71: 0.37 | CH71: 0 | CI71: 0.37 | CJ71: 2.295684114e-12 | CK71: 0 | CL71: 0
K72: 60 | L72: 0.16973309 | M72: 1 | N72: 0.525 | O72: -0.135 | P72: 0.39 | Q72: 0 | R72: 0 | S72: 0 | U72: 60 | V72: 0.16973309 | W72: 1 | X72: 0.7875 | Y72: -0.2025 | Z72: 0.585 | AA72: 0 | AB72: 0 | AC72: 0 | AF72: 60 | AG72: 0.16973309 | AH72: 1 | AI72: 0.36 | AJ72: 0.105 | AK72: 0.465 | AL72: 0 | AM72: 0 | AN72: 0 | AP72: 60 | AQ72: 0.16973309 | AR72: 1 | AS72: 0.54 | AT72: 0.1575 | AU72: 0.6975 | AV72: 0 | AW72: 0 | AX72: 0 | AZ72: 60 | BA72: 0.16973309 | BB72: 1 | BC72: 0.6525 | BD72: 0 | BE72: 0.6525 | BF72: 0 | BG72: 0 | BH72: 0 | BJ72: 60 | BK72: 0.16973309 | BL72: 1 | BM72: 0.6525 | BN72: -0.045 | BO72: 0.6075 | BP72: 0 | BQ72: 0 | BR72: 0 | BT72: 60 | BU72: 0.16973309 | BV72: 1 | BW72: 0.725 | BX72: 0 | BY72: 0.725 | BZ72: 2.295684114e-15 | CA72: 0 | CB72: 0 | CD72: 60 | CE72: 0.16973309 | CF72: 1 | CG72: 0.37 | CH72: 0 | CI72: 0.37 | CJ72: 2.295684114e-12 | CK72: 0 | CL72: 0
K73: 61 | L73: 0.1647894078 | M73: 1 | N73: 0.525 | O73: -0.135 | P73: 0.39 | Q73: 0 | R73: 0 | S73: 0 | U73: 61 | V73: 0.1647894078 | W73: 1 | X73: 0.7875 | Y73: -0.2025 | Z73: 0.585 | AA73: 0 | AB73: 0 | AC73: 0 | AF73: 61 | AG73: 0.1647894078 | AH73: 1 | AI73: 0.36 | AJ73: 0.105 | AK73: 0.465 | AL73: 0 | AM73: 0 | AN73: 0 | AP73: 61 | AQ73: 0.1647894078 | AR73: 1 | AS73: 0.54 | AT73: 0.1575 | AU73: 0.6975 | AV73: 0 | AW73: 0 | AX73: 0 | AZ73: 61 | BA73: 0.1647894078 | BB73: 1 | BC73: 0.6525 | BD73: 0 | BE73: 0.6525 | BF73: 0 | BG73: 0 | BH73: 0 | BJ73: 61 | BK73: 0.1647894078 | BL73: 1 | BM73: 0.6525 | BN73: -0.045 | BO73: 0.6075 | BP73: 0 | BQ73: 0 | BR73: 0 | BT73: 61 | BU73: 0.1647894078 | BV73: 1 | BW73: 0.725 | BX73: 0 | BY73: 0.725 | BZ73: 2.295684114e-15 | CA73: 0 | CB73: 0 | CD73: 61 | CE73: 0.1647894078 | CF73: 1 | CG73: 0.37 | CH73: 0 | CI73: 0.37 | CJ73: 2.295684114e-12 | CK73: 0 | CL73: 0
K74: 62 | L74: 0.1599897163 | M74: 1 | N74: 0.525 | O74: -0.135 | P74: 0.39 | Q74: 0 | R74: 0 | S74: 0 | U74: 62 | V74: 0.1599897163 | W74: 1 | X74: 0.7875 | Y74: -0.2025 | Z74: 0.585 | AA74: 0 | AB74: 0 | AC74: 0 | AF74: 62 | AG74: 0.1599897163 | AH74: 1 | AI74: 0.36 | AJ74: 0.105 | AK74: 0.465 | AL74: 0 | AM74: 0 | AN74: 0 | AP74: 62 | AQ74: 0.1599897163 | AR74: 1 | AS74: 0.54 | AT74: 0.1575 | AU74: 0.6975 | AV74: 0 | AW74: 0 | AX74: 0 | AZ74: 62 | BA74: 0.1599897163 | BB74: 1 | BC74: 0.6525 | BD74: 0 | BE74: 0.6525 | BF74: 0 | BG74: 0 | BH74: 0 | BJ74: 62 | BK74: 0.1599897163 | BL74: 1 | BM74: 0.6525 | BN74: -0.045 | BO74: 0.6075 | BP74: 0 | BQ74: 0 | BR74: 0 | BT74: 62 | BU74: 0.1599897163 | BV74: 1 | BW74: 0.725 | BX74: 0 | BY74: 0.725 | BZ74: 2.295684114e-15 | CA74: 0 | CB74: 0 | CD74: 62 | CE74: 0.1599897163 | CF74: 1 | CG74: 0.37 | CH74: 0 | CI74: 0.37 | CJ74: 2.295684114e-12 | CK74: 0 | CL74: 0
K75: 63 | L75: 0.1553298216 | M75: 1 | N75: 0.525 | O75: -0.135 | P75: 0.39 | Q75: 0 | R75: 0 | S75: 0 | U75: 63 | V75: 0.1553298216 | W75: 1 | X75: 0.7875 | Y75: -0.2025 | Z75: 0.585 | AA75: 0 | AB75: 0 | AC75: 0 | AF75: 63 | AG75: 0.1553298216 | AH75: 1 | AI75: 0.36 | AJ75: 0.105 | AK75: 0.465 | AL75: 0 | AM75: 0 | AN75: 0 | AP75: 63 | AQ75: 0.1553298216 | AR75: 1 | AS75: 0.54 | AT75: 0.1575 | AU75: 0.6975 | AV75: 0 | AW75: 0 | AX75: 0 | AZ75: 63 | BA75: 0.1553298216 | BB75: 1 | BC75: 0.6525 | BD75: 0 | BE75: 0.6525 | BF75: 0 | BG75: 0 | BH75: 0 | BJ75: 63 | BK75: 0.1553298216 | BL75: 1 | BM75: 0.6525 | BN75: -0.045 | BO75: 0.6075 | BP75: 0 | BQ75: 0 | BR75: 0 | BT75: 63 | BU75: 0.1553298216 | BV75: 1 | BW75: 0.725 | BX75: 0 | BY75: 0.725 | BZ75: 2.295684114e-15 | CA75: 0 | CB75: 0 | CD75: 63 | CE75: 0.1553298216 | CF75: 1 | CG75: 0.37 | CH75: 0 | CI75: 0.37 | CJ75: 2.295684114e-12 | CK75: 0 | CL75: 0
K76: 64 | L76: 0.1508056521 | M76: 1 | N76: 0.525 | O76: -0.135 | P76: 0.39 | Q76: 0 | R76: 0 | S76: 0 | U76: 64 | V76: 0.1508056521 | W76: 1 | X76: 0.7875 | Y76: -0.2025 | Z76: 0.585 | AA76: 0 | AB76: 0 | AC76: 0 | AF76: 64 | AG76: 0.1508056521 | AH76: 1 | AI76: 0.36 | AJ76: 0.105 | AK76: 0.465 | AL76: 0 | AM76: 0 | AN76: 0 | AP76: 64 | AQ76: 0.1508056521 | AR76: 1 | AS76: 0.54 | AT76: 0.1575 | AU76: 0.6975 | AV76: 0 | AW76: 0 | AX76: 0 | AZ76: 64 | BA76: 0.1508056521 | BB76: 1 | BC76: 0.6525 | BD76: 0 | BE76: 0.6525 | BF76: 0 | BG76: 0 | BH76: 0 | BJ76: 64 | BK76: 0.1508056521 | BL76: 1 | BM76: 0.6525 | BN76: -0.045 | BO76: 0.6075 | BP76: 0 | BQ76: 0 | BR76: 0 | BT76: 64 | BU76: 0.1508056521 | BV76: 1 | BW76: 0.725 | BX76: 0 | BY76: 0.725 | BZ76: 2.295684114e-15 | CA76: 0 | CB76: 0 | CD76: 64 | CE76: 0.1508056521 | CF76: 1 | CG76: 0.37 | CH76: 0 | CI76: 0.37 | CJ76: 2.295684114e-12 | CK76: 0 | CL76: 0
K77: 65 | L77: 0.1464132544 | M77: 1 | N77: 0.525 | O77: -0.135 | P77: =O77+N77 -> 0.39 | Q77: 0 | R77: =L77*O77*Q77 -> 0 | S77: 0 | U77: 65 | V77: 0.1464132544 | W77: 1 | X77: 0.7875 | Y77: -0.2025 | Z77: =Y77+X77 -> 0.585 | AA77: 0 | AB77: =V77*Y77*AA77 -> 0 | AC77: 0 | AF77: 65 | AG77: 0.1464132544 | AH77: 1 | AI77: =$AJ$4 -> 0.36 | AJ77: =AH77*$AJ$6 -> 0.105 | AK77: =AJ77+AI77 -> 0.465 | AL77: =$AJ$3 -> 0 | AM77: =AG77*AJ77*AL77 -> 0 | AN77: 0 | AP77: 65 | AQ77: 0.1464132544 | AR77: 1 | AS77: 0.54 | AT77: 0.1575 | AU77: =AT77+AS77 -> 0.6975 | AV77: 0 | AW77: =AQ77*AT77*AV77 -> 0 | AX77: 0 | AZ77: 65 | BA77: =1.03^($BD$9-AZ77) -> 0.1464132544 | BB77: 1 | BC77: =$BD$4 -> 0.6525 | BD77: =BB77*$BD$6 -> 0 | BE77: =BD77+BC77 -> 0.6525 | BF77: =$BD$3 -> 0 | BG77: =BA77*BD77*BF77 -> 0 | BH77: 0 | BJ77: 65 | BK77: 0.1464132544 | BL77: 1 | BM77: 0.6525 | BN77: -0.045 | BO77: =BN77+BM77 -> 0.6075 | BP77: 0 | BQ77: =BK77*BN77*BP77 -> 0 | BR77: 0 | BT77: 65 | BU77: =1.03^($BX$9-BT77) -> 0.1464132544 | BV77: 1 | BW77: =$BX$4 -> 0.725 | BX77: =BV77*$BX$6 -> 0 | BY77: =BX77+BW77 -> 0.725 | BZ77: =$BX$3 -> 2.295684114e-15 | CA77: =BU77*BX77*BZ77 -> 0 | CB77: 0 | CD77: 65 | CE77: 0.1464132544 | CF77: 1 | CG77: =$CH$4 -> 0.37 | CH77: =CF77*$CH$6 -> 0 | CI77: =CH77+CG77 -> 0.37 | CJ77: =$CH$3 -> 2.295684114e-12 | CK77: =CE77*CH77*CJ77 -> 0 | CL77: 0
K78: 66 | L78: =1.03^($O$9-K78) -> 0.1421487907 | M78: =1/$O$7 -> 1 | N78: =$O$4 -> 0.525 | O78: =M78*$O$6 -> -0.135 | P78: 0.39 | Q78: =$O$3 -> 0 | R78: 0 | S78: =S77+R78 -> 0 | U78: 66 | V78: =1.03^($Y$9-U78) -> 0.1421487907 | W78: =1/$Y$7 -> 1 | X78: =$Y$4 -> 0.7875 | Y78: =W78*$Y$6 -> -0.2025 | Z78: 0.585 | AA78: =$Y$3 -> 0 | AB78: 0 | AC78: =AC77+AB78 -> 0 | AF78: 66 | AG78: =1.03^($AJ$9-AF78) -> 0.1421487907 | AH78: =IF(AH77+(1/$AJ$7)<=1,AH77+(1/$AJ$7),1) -> 1 | AI78: 0.36 | AJ78: 0.105 | AK78: 0.465 | AL78: 0 | AM78: 0 | AN78: =AN77+AM78 -> 0 | AP78: 66 | AQ78: 0.1421487907 | AR78: 1 | AS78: =$AT$4 -> 0.54 | AT78: =AR78*$AT$6 -> 0.1575 | AU78: 0.6975 | AV78: =$AT$3 -> 0 | AW78: 0 | AX78: =AX77+AW78 -> 0 | AZ78: 66 | BA78: 0.1421487907 | BB78: =IF(BB77+(1/$BD$7)<=1,BB77+(1/$BD$7),1) -> 1 | BC78: 0.6525 | BD78: 0 | BE78: 0.6525 | BF78: 0 | BG78: 0 | BH78: =BH77+BG78 -> 0 | BJ78: 66 | BK78: 0.1421487907 | BL78: 1 | BM78: =$BN$4 -> 0.6525 | BN78: =BL78*$BN$6 -> -0.045 | BO78: 0.6075 | BP78: =$BN$3 -> 0 | BQ78: 0 | BR78: =BR77+BQ78 -> 0 | BT78: 66 | BU78: 0.1421487907 | BV78: =IF(BV77+(1/$BX$7)<=1,BV77+(1/$BX$7),1) -> 1 | BW78: 0.725 | BX78: 0 | BY78: 0.725 | BZ78: 2.295684114e-15 | CA78: 0 | CB78: =CB77+CA78 -> 0 | CD78: 66 | CE78: 0.1421487907 | CF78: =IF(CF77+(1/$CH$7)<=1,CF77+(1/$CH$7),1) -> 1 | CG78: 0.37 | CH78: 0 | CI78: 0.37 | CJ78: 2.295684114e-12 | CK78: 0 | CL78: =CL77+CK78 -> 0
K79: 67 | L79: 0.1380085347 | M79: 1 | N79: 0.525 | O79: -0.135 | P79: 0.39 | Q79: 0 | R79: 0 | S79: 0 | U79: 67 | V79: 0.1380085347 | W79: 1 | X79: 0.7875 | Y79: -0.2025 | Z79: 0.585 | AA79: 0 | AB79: 0 | AC79: 0 | AF79: 67 | AG79: 0.1380085347 | AH79: 1 | AI79: 0.36 | AJ79: 0.105 | AK79: 0.465 | AL79: 0 | AM79: 0 | AN79: 0 | AP79: 67 | AQ79: =1.03^($AT$9-AP79) -> 0.1380085347 | AR79: =IF(AR78+(1/$AT$7)<=1,AR78+(1/$AT$7),1) -> 1 | AS79: 0.54 | AT79: 0.1575 | AU79: 0.6975 | AV79: 0 | AW79: 0 | AX79: 0 | AZ79: 67 | BA79: 0.1380085347 | BB79: 1 | BC79: 0.6525 | BD79: 0 | BE79: 0.6525 | BF79: 0 | BG79: 0 | BH79: 0 | BJ79: 67 | BK79: =1.03^($BN$9-BJ79) -> 0.1380085347 | BL79: =IF(BL78+(1/$BN$7)<=1,BL78+(1/$BN$7),1) -> 1 | BM79: 0.6525 | BN79: -0.045 | BO79: 0.6075 | BP79: 0 | BQ79: 0 | BR79: 0 | BT79: 67 | BU79: 0.1380085347 | BV79: 1 | BW79: 0.725 | BX79: 0 | BY79: 0.725 | BZ79: 2.295684114e-15 | CA79: 0 | CB79: 0 | CD79: 67 | CE79: 0.1380085347 | CF79: 1 | CG79: 0.37 | CH79: 0 | CI79: 0.37 | CJ79: 2.295684114e-12 | CK79: 0 | CL79: 0
K80: 68 | L80: 0.1339888686 | M80: 1 | N80: 0.525 | O80: -0.135 | P80: 0.39 | Q80: 0 | R80: 0 | S80: 0 | U80: 68 | V80: 0.1339888686 | W80: 1 | X80: 0.7875 | Y80: -0.2025 | Z80: 0.585 | AA80: 0 | AB80: 0 | AC80: 0 | AF80: 68 | AG80: 0.1339888686 | AH80: 1 | AI80: 0.36 | AJ80: 0.105 | AK80: 0.465 | AL80: 0 | AM80: 0 | AN80: 0 | AP80: 68 | AQ80: 0.1339888686 | AR80: 1 | AS80: 0.54 | AT80: 0.1575 | AU80: 0.6975 | AV80: 0 | AW80: 0 | AX80: 0 | AZ80: 68 | BA80: 0.1339888686 | BB80: 1 | BC80: 0.6525 | BD80: 0 | BE80: 0.6525 | BF80: 0 | BG80: 0 | BH80: 0 | BJ80: 68 | BK80: 0.1339888686 | BL80: 1 | BM80: 0.6525 | BN80: -0.045 | BO80: 0.6075 | BP80: 0 | BQ80: 0 | BR80: 0 | BT80: 68 | BU80: 0.1339888686 | BV80: 1 | BW80: 0.725 | BX80: 0 | BY80: 0.725 | BZ80: 2.295684114e-15 | CA80: 0 | CB80: 0 | CD80: 68 | CE80: =1.03^($CE$9-CD80) -> 0.1339888686 | CF80: 1 | CG80: 0.37 | CH80: 0 | CI80: 0.37 | CJ80: 2.295684114e-12 | CK80: 0 | CL80: 0
